Workbook

Sheet Notice
B2: DISCLAIMER
B4: 1. This workbook is the property of Fonterra Co-operative Group Limited (Fonterra).
B5: 2. The workbook contains the higher level inputs and calculations underpinning the calculation of the Farmgate Milk Price for the 2022/23 season.
B6: 3. Fonterra does not warrant that the workbook is free from error, and explicitly disclaims any liability to any third party with respect to any use they may make of the workbook.
B7: 4. Third party recipients of this workbook use it entirely at their own risk. Fonterra will not accept any responsibility for any loss which may result from the use of the workbook including the direct or indirect consequences of computer viruses.
B8: 5. The workbook was not designed for use by third parties and Fonterra provides no assurance that third parties will be able to readily operate the workbook.

Sheet Global
K1: F23 Milk Price | N1: =Summary!L110 -> 8.216708761
K2: Average FX conversion rate (Sales) | N2: =Summary!L20 -> 0.6357361696
F7: Period Ended | O7: =K34 -> 2023-05-31 | Q7: =EOMONTH(T7,-1) -> 2022-05-31 | R7: =EOMONTH(S7,-1) -> 2022-04-30 | S7: =EOMONTH(T7,-1) -> 2022-05-31 | T7: =K32 -> 2022-06-30 | U7: =EOMONTH(T7,1) -> 2022-07-31 | V7: 2022-08-31 | W7: 2022-09-30 | X7: 2022-10-31 | Y7: 2022-11-30 | Z7: 2022-12-31 | AA7: 2023-01-31 | AB7: 2023-02-28 | AC7: 2023-03-31 | AD7: 2023-04-30 | AE7: 2023-05-31 | AF7: 2023-06-30 | AG7: 2023-07-31 | AH7: 2023-08-31 | AI7: 2023-09-30 | AJ7: 2023-10-31 | AK7: 2023-11-30 | AL7: 2023-12-31 | AM7: 2024-01-31 | AN7: 2024-02-29 | AO7: 2024-03-31 | AP7: =EOMONTH(AO7,1) -> 2024-04-30 | AQ7: =EOMONTH(AP7,1) -> 2024-05-31 | AR7: =EOMONTH(AQ7,1) -> 2024-06-30
D8: Calendar Year | T8: =YEAR(T7) -> 2022 | U8: 2022 | V8: 2022 | W8: 2022 | X8: 2022 | Y8: 2022 | Z8: 2022 | AA8: 2023 | AB8: 2023 | AC8: 2023 | AD8: 2023 | AE8: 2023 | AF8: 2023 | AG8: 2023 | AH8: 2023 | AI8: 2023 | AJ8: 2023 | AK8: 2023 | AL8: 2023 | AM8: 2024 | AN8: 2024 | AO8: 2024
D9: Month Number | T9: 1 | U9: =T9+1 -> 2 | V9: 3 | W9: 4 | X9: 5 | Y9: 6 | Z9: 7 | AA9: 8 | AB9: 9 | AC9: 10 | AD9: 11 | AE9: 12 | AF9: 13 | AG9: 14 | AH9: 15 | AI9: 16 | AJ9: 17 | AK9: 18 | AL9: 19 | AM9: 20 | AN9: 21 | AO9: 22
D10: Days in Period | R10: =R7-EOMONTH(R7,-1) -> 30 | S10: =S7-R7 -> 31 | T10: =T7-S7 -> 30 | U10: =U7-T7 -> 31 | V10: 31 | W10: 30 | X10: 31 | Y10: 30 | Z10: 31 | AA10: 31 | AB10: 28 | AC10: 31 | AD10: 30 | AE10: 31 | AF10: 30 | AG10: 31 | AH10: 31 | AI10: 30 | AJ10: 31 | AK10: 30 | AL10: 31 | AM10: 31 | AN10: 29 | AO10: 31
D11: Year to Go flag | O11: =INDEX(LookupTables!E11:E28,LookupTables!I11) -> 2023-11-30 | P11: =LookupTables!I11 -> 18 | T11: =IF(T9<=$P$11,1,0) -> 1 | U11: 1 | V11: 1 | W11: 1 | X11: 1 | Y11: 1 | Z11: 1 | AA11: 1 | AB11: 1 | AC11: 1 | AD11: 1 | AE11: 1 | AF11: 1 | AG11: 1 | AH11: 1 | AI11: 1 | AJ11: 1 | AK11: 1 | AL11: 0 | AM11: 0 | AN11: 0 | AO11: 0
C13: GENERAL MODEL INPUTS
C15: MODEL INFORMATION
C17: This model contains circular logic relating to the calculation of tax expense and net working capital. It is therefore necessary to set the calculation approach to 'iterative calculations.'
C20: INPUT KEY
F22: Colour Key: | K22: Description
K23: General Input Cells
K24: Calculation cell with different logic to adjacent cells
K25: Normal general input cells where inputs have been 'bundled' into a higher level / different input for purposes of this simplified model.
K26: Additional input cells added for purpose of this public model
K27: Cells intentionally left blank in 'Calculations' Tab
C29: DATE AND TIME DATA
A31: 7 | F31: First Day of the season | K31: 2022-06-01
F32: End Date of First Period | K32: =EOMONTH(K31,0) -> 2022-06-30
F34: End of season | K34: =EOMONTH(K31,11) -> 2023-05-31
C36: GLOBAL TIME DEPENDENT INPUTS | R36: =R7 -> 2022-04-30 | S36: 2022-05-31 | T36: 2022-06-30 | U36: 2022-07-31 | V36: 2022-08-31 | W36: 2022-09-30 | X36: 2022-10-31 | Y36: 2022-11-30 | Z36: 2022-12-31 | AA36: 2023-01-31 | AB36: 2023-02-28 | AC36: 2023-03-31 | AD36: 2023-04-30 | AE36: 2023-05-31 | AF36: 2023-06-30 | AG36: 2023-07-31 | AH36: 2023-08-31 | AI36: 2023-09-30 | AJ36: 2023-10-31 | AK36: 2023-11-30 | AL36: 2023-12-31 | AM36: 2024-01-31 | AN36: 2024-02-29 | AO36: 2024-03-31
F38: WACC - Annual | O38: 0.05
F39: WACC - monthly | O39: =(1+$O$38)^(1/12)-1 -> 0.004074123784
C41: SUMMARY OF ERROR CHECKS
F43: Worksheet name:
F44: Data Input | K44: ='Data Input'!J4 -> Okay
F45: Calculations | K45: =Calculations!J5 -> Okay
F46: Summary | K46: =Summary!L147 -> Okay | L46: If the 'Summary' sheet error check returns 'error', press F9 for more iterations until the figure (right) is close to zero. | U46: =SUM(Summary!Q147:AJ147) -> -4.825535143e-06
F47: Overall model | K47: =IF(COUNTA(K44:K46)=COUNTIF(K44:K46,"Okay"),"Okay","Error") -> Okay
F49: Calculations Worksheet:
F50: Debtor Reconciliation Check | K50: =Calculations!B926 -> Okay
F51: Closing Inventory Check | K51: =Calculations!B998 -> Okay
F52: FIFO Production Volume Check | K52: =Calculations!B1032 -> Okay
F53: Milk Solids Volume Check | K53: =Calculations!B1051 -> Okay
F54: Milk Price Calculation Check | K54: =Calculations!B1279 -> Okay
F55: PV of Cash Flow Check | K55: =Calculations!B1293 -> Okay
F57: Summary Worksheet
F58: Operating Cash Flow Check | K58: =Summary!L147 -> Okay

Sheet Data Input
F4: =Calculations!F5 -> Overall error check | J4: =IF(COUNTA(B:B)=COUNTIF(B:B,"Okay"),"Okay","Error") -> Okay | M4: Annual | T4: Monthly
J6: Units | K6: Input | N6: =Global!O7 -> 2023-05-31 | R6: =Global!R7 -> 2022-04-30 | S6: =Global!S7 -> 2022-05-31 | T6: =Global!T7 -> 2022-06-30 | U6: =Global!U7 -> 2022-07-31 | V6: =Global!V7 -> 2022-08-31 | W6: =Global!W7 -> 2022-09-30 | X6: =Global!X7 -> 2022-10-31 | Y6: =Global!Y7 -> 2022-11-30 | Z6: =Global!Z7 -> 2022-12-31 | AA6: =Global!AA7 -> 2023-01-31 | AB6: =Global!AB7 -> 2023-02-28 | AC6: =Global!AC7 -> 2023-03-31 | AD6: =Global!AD7 -> 2023-04-30 | AE6: =Global!AE7 -> 2023-05-31 | AF6: =Global!AF7 -> 2023-06-30 | AG6: =Global!AG7 -> 2023-07-31 | AH6: =Global!AH7 -> 2023-08-31 | AI6: =Global!AI7 -> 2023-09-30 | AJ6: =Global!AJ7 -> 2023-10-31 | AK6: =Global!AK7 -> 2023-11-30 | AL6: =Global!AL7 -> 2023-12-31 | AM6: =Global!AM7 -> 2024-01-31 | AN6: =Global!AN7 -> 2024-02-29 | AO6: =Global!AO7 -> 2024-03-31
D7: Calendar Year | T7: =YEAR(T6) -> 2022 | U7: 2022 | V7: 2022 | W7: 2022 | X7: 2022 | Y7: 2022 | Z7: 2022 | AA7: =YEAR(AA6) -> 2023 | AB7: 2023 | AC7: 2023 | AD7: 2023 | AE7: 2023 | AF7: 2023 | AG7: 2023 | AH7: 2023 | AI7: 2023 | AJ7: 2023 | AK7: 2023 | AL7: 2023 | AM7: 2024 | AN7: =YEAR(AN6) -> 2024 | AO7: =YEAR(AO6) -> 2024
D8: Month Number | T8: =Global!T9 -> 1 | U8: =Global!U9 -> 2 | V8: =Global!V9 -> 3 | W8: =Global!W9 -> 4 | X8: =Global!X9 -> 5 | Y8: =Global!Y9 -> 6 | Z8: =Global!Z9 -> 7 | AA8: =Global!AA9 -> 8 | AB8: =Global!AB9 -> 9 | AC8: =Global!AC9 -> 10 | AD8: =Global!AD9 -> 11 | AE8: =Global!AE9 -> 12 | AF8: =Global!AF9 -> 13 | AG8: =Global!AG9 -> 14 | AH8: =Global!AH9 -> 15 | AI8: =Global!AI9 -> 16 | AJ8: =Global!AJ9 -> 17 | AK8: =Global!AK9 -> 18 | AL8: =Global!AL9 -> 19 | AM8: =Global!AM9 -> 20 | AN8: =Global!AN9 -> 21 | AO8: =Global!AO9 -> 22
D9: Days in Period | R9: =Global!R10 -> 30 | S9: =Global!S10 -> 31 | T9: =Global!T10 -> 30 | U9: =Global!U10 -> 31 | V9: =Global!V10 -> 31 | W9: =Global!W10 -> 30 | X9: =Global!X10 -> 31 | Y9: =Global!Y10 -> 30 | Z9: =Global!Z10 -> 31 | AA9: =Global!AA10 -> 31 | AB9: =Global!AB10 -> 28 | AC9: =Global!AC10 -> 31 | AD9: =Global!AD10 -> 30 | AE9: =Global!AE10 -> 31 | AF9: =Global!AF10 -> 30 | AG9: =Global!AG10 -> 31 | AH9: =Global!AH10 -> 31 | AI9: =Global!AI10 -> 30 | AJ9: =Global!AJ10 -> 31 | AK9: =Global!AK10 -> 30 | AL9: =Global!AL10 -> 31 | AM9: =Global!AM10 -> 31 | AN9: =Global!AN10 -> 29 | AO9: =Global!AO10 -> 31
D10: Year to Go flag | N10: 1 | P10: =Global!P11 -> 18 | T10: =Global!T11 -> 1 | U10: =Global!U11 -> 1 | V10: =Global!V11 -> 1 | W10: =Global!W11 -> 1 | X10: =Global!X11 -> 1 | Y10: =Global!Y11 -> 1 | Z10: =Global!Z11 -> 1 | AA10: =Global!AA11 -> 1 | AB10: =Global!AB11 -> 1 | AC10: =Global!AC11 -> 1 | AD10: =Global!AD11 -> 1 | AE10: =Global!AE11 -> 1 | AF10: =Global!AF11 -> 1 | AG10: =Global!AG11 -> 1 | AH10: =Global!AH11 -> 1 | AI10: =Global!AI11 -> 1 | AJ10: =Global!AJ11 -> 1 | AK10: =Global!AK11 -> 1 | AL10: =Global!AL11 -> 0 | AM10: =Global!AM11 -> 0 | AN10: =Global!AN11 -> 0 | AO10: =Global!AO11 -> 0
T11: =T6 -> 2022-06-30 | U11: 2022-07-31 | V11: 2022-08-31 | W11: 2022-09-30 | X11: 2022-10-31 | Y11: 2022-11-30 | Z11: 2022-12-31 | AA11: 2023-01-31 | AB11: 2023-02-28 | AC11: 2023-03-31 | AD11: 2023-04-30 | AE11: 2023-05-31 | AF11: 2023-06-30 | AG11: 2023-07-31 | AH11: 2023-08-31 | AI11: 2023-09-30 | AJ11: 2023-10-31 | AK11: 2023-11-30 | AL11: 2023-12-31 | AM11: 2024-01-31 | AN11: =AN6 -> 2024-02-29 | AO11: =AO6 -> 2024-03-31
F14: GLOBAL
F16: STATUS / DATA SOURCE | J16: Weighted average annual FX rate for revenue. Also used in this simplified model to translate costs. In practice, USD purchases have a different time profile, & therefore weighted average conversion rate, to sales.
J17: We have adjusted the USD cost inputs to correct for this difference (so reported NZD values reconcile to the actual F23 milk price calculation.)
F20: FX
F22: Weighted average annual FX rate | R22: 0.6357361696 | S22: 0.6357361696 | T22: 0.6357361696 | U22: 0.6357361696 | V22: 0.6357361696 | W22: 0.6357361696 | X22: 0.6357361696 | Y22: 0.6357361696 | Z22: 0.6357361696 | AA22: 0.6357361696 | AB22: 0.6357361696 | AC22: 0.6357361696 | AD22: 0.6357361696 | AE22: 0.6357361696 | AF22: 0.6357361696 | AG22: 0.6357361696 | AH22: 0.6357361696 | AI22: 0.6357361696 | AJ22: 0.6357361696 | AK22: 0.6357361696 | AL22: 0.6357361696 | AM22: 0.6357361696 | AN22: 0.6357361696
F24: MILK SUPPLY
F26: STATUS / DATA SOURCE | J26: The minor difference between 'milk paid for' and 'milk collected' reflects circumstances where Fonterra is unable to collect and process milk (eg due to adverse weather events) but is contractually obliged to pay for it.
J27: The calculation of the aggregate amount available to pay for milk is based on milk actually collected and therefore available for processing. The average milk price per kgMS is calculated based on all milk paid for by Fonterra.
F30: KGMS | O30: YTD | P30: YTG
F31: Milk Paid For | J31: 000 kgMS | N31: =SUM(T31:AE31) -> 1482585.708 | O31: =SUMIF($T$10:$AE$10,1,T31:AE31) -> 1482585.708 | P31: =N31-O31 -> 0 | T31: 14913.1316 | U31: 19030.0445 | V31: 91896.8964 | W31: 166274.2293 | X31: 200564.0825 | Y31: 188167.1582 | Z31: 173968.6011 | AA31: 161402.504 | AB31: 130738.8757 | AC31: 138233.5264 | AD31: 121187.2426 | AE31: 76209.4158
F32: Milk Supply collected | J32: 000 kgMS | N32: =SUM(T32:AE32) -> 1480305.696 | T32: 14913.1316 | U32: 19023.3826 | V32: 91740.6474 | W32: 166274.2293 | X32: 200558.4131 | Y32: 188167.1582 | Z32: 173968.6011 | AA32: 161356.9483 | AB32: 129957.8605 | AC32: 137733.0033 | AD32: 120726.3256 | AE32: 75885.9954
F33: Monthly distribution | J33: % | N33: =SUM(T33:AE33) -> 1 | T33: =T32/$N$32 -> 0.0100743594 | U33: =U32/$N$32 -> 0.0128509825 | V33: 0.06197412306 | W33: 0.1123242515 | X33: 0.1354844567 | Y33: 0.1271137162 | Z33: 0.1175220777 | AA33: 0.1090024504 | AB33: 0.08779123178 | AC33: 0.09304362176 | AD33: 0.0815549963 | AE33: 0.05126373261
F36: PRODUCTION
F38: STATUS / DATA SOURCE | J38: Milk composition shown below is weighted average composition by quarter. In practice monthly average composition is used.
F40: National average composition
F41: Fat | J41: % w/w | T41: 0.04804354027 | U41: 0.04804354027 | V41: 0.04804354027 | W41: 0.04640229642 | X41: 0.04640229642 | Y41: 0.04640229642 | Z41: 0.0489318118 | AA41: 0.0489318118 | AB41: 0.0489318118 | AC41: 0.05612930978 | AD41: 0.05612930978 | AE41: 0.05612930978
F42: Protein | J42: % w/w | T42: 0.03811358356 | U42: 0.03811358356 | V42: 0.03811358356 | W42: 0.03693065587 | X42: 0.03693065587 | Y42: 0.03693065587 | Z42: 0.03795107685 | AA42: 0.03795107685 | AB42: 0.03795107685 | AC42: 0.04329831731 | AD42: 0.04329831731 | AE42: 0.04329831731
F43: Lactose + Minerals | J43: % w/w | T43: 0.05411785235 | U43: 0.05411785235 | V43: 0.05411785235 | W43: 0.05463068909 | X43: 0.05463068909 | Y43: 0.05463068909 | Z43: 0.05351319207 | AA43: 0.05351319207 | AB43: 0.05351319207 | AC43: 0.05235800286 | AD43: 0.05235800286 | AE43: 0.05235800286
F45: Milk Composition Input Parameters
F46: Cream Fat Content | J46: % | N46: 0.42
F47: Skimmilk Fat Content | J47: % | N47: 0.0008
F48: Wholemilk Density | J48: % | N48: 1.032
F50: Lactose Standardising Inputs
F51: Lactose losses - WMP | J51: %
F52: Lactose losses - SMP | J52: %
F53: Lactose losses - BMP | J53: %
F54: Lactose content of lactose powder | J54: % | N54: 0.95
F56: Composition Target | L56: Fat | M56: Protein | N56: Moisture
F57: Butter | J57: %w/w
F58: AMF | J58: %w/w
F59: SMP | J59: %w/w
F60: BMP | J60: %w/w
F61: WMP | J61: %w/w
F63: Value Component Usage | L63: Fat | M63: Protein
F64: Butter | J64: kg/mt
F65: AMF | J65: kg/mt
F66: SMP | J66: kg/mt
F67: BMP | J67: kg/mt
F68: WMP | J68: kg/mt
F70: Product mix
F71: Annual average ratio of WMP MT to WMP + SMP | J71: % | N71: =SUMPRODUCT($T$33:$AE$33,T71:AE71) -> 0.7262604071 | T71: 0.7262604071 | U71: 0.7262604071 | V71: 0.7262604071 | W71: 0.7262604071 | X71: 0.7262604071 | Y71: 0.7262604071 | Z71: 0.7262604071 | AA71: 0.7262604071 | AB71: 0.7262604071 | AC71: 0.7262604071 | AD71: 0.7262604071 | AE71: 0.7262604071
F72: Annual average ratio of Butter MT to Butter + AMF | J72: % | N72: =SUMPRODUCT($T$33:$AE$33,T72:AE72) -> 0.6356056946 | T72: 0.6356056946 | U72: 0.6356056946 | V72: 0.6356056946 | W72: 0.6356056946 | X72: 0.6356056946 | Y72: 0.6356056946 | Z72: 0.6356056946 | AA72: 0.6356056946 | AB72: 0.6356056946 | AC72: 0.6356056946 | AD72: 0.6356056946 | AE72: 0.6356056946
F74: Fat : Protein Valued Component Ratio | N74: 0.79
F77: REVENUE
F79: STATUS / DATA SOURCE | J79: Prices and sales phasings entered as 3 month averages, consistent with the F23 Milk Price Statement.
J80: Downgrade adjustments are normally calculated separately but have been included here in average prices.
J81: Lactose prices to model are for calculated prices of lactose in month of use, under the assumption that lactose has been imported in prior months and stored for a period prior to usage.
E83: 1. Base Commodity Prices
F85: Full Year Commodity Prices - To Model
F86: Butter | J86: USD | N86: =Calculations!N361 -> 5071.566193 | T86: 0 | U86: 0 | V86: 5602.323991 | W86: 5602.323991 | X86: 5602.323991 | Y86: 5290.025246 | Z86: 5290.025246 | AA86: 5290.025246 | AB86: 4800.794515 | AC86: 4800.794515 | AD86: 4800.794515 | AE86: 4831.10219 | AF86: 4831.10219 | AG86: 4831.10219 | AH86: 5167.037375 | AI86: 5167.037375 | AJ86: 5167.037375 | AK86: 0 | AL86: 0 | AM86: 0 | AN86: 0 | AO86: 0
F87: AMF | J87: USD | N87: =Calculations!N362 -> 5380.671907 | T87: 0 | U87: 0 | V87: 5611.192509 | W87: 5611.192509 | X87: 5611.192509 | Y87: 5632.698172 | Z87: 5632.698172 | AA87: 5632.698172 | AB87: 5592.967489 | AC87: 5592.967489 | AD87: 5592.967489 | AE87: 4998.984886 | AF87: 4998.984886 | AG87: 4998.984886 | AH87: 5052.811729 | AI87: 5052.811729 | AJ87: 5052.811729 | AK87: 0 | AL87: 0 | AM87: 0 | AN87: 0 | AO87: 0
F88: SMP | J88: USD | N88: =Calculations!N363 -> 3241.547986 | T88: 0 | U88: 0 | V88: 3883.745614 | W88: 3883.745614 | X88: 3883.745614 | Y88: 3513.615491 | Z88: 3513.615491 | AA88: 3513.615491 | AB88: 3052.99147 | AC88: 3052.99147 | AD88: 3052.99147 | AE88: 2852.749381 | AF88: 2852.749381 | AG88: 2852.749381 | AH88: 2750.609327 | AI88: 2750.609327 | AJ88: 2750.609327 | AK88: 0 | AL88: 0 | AM88: 0 | AN88: 0 | AO88: 0
F89: BMP | J89: USD | N89: =Calculations!N364 -> 3136.697578 | T89: 0 | U89: 0 | V89: 3563.780196 | W89: 3563.780196 | X89: 3563.780196 | Y89: 3529.7667 | Z89: 3529.7667 | AA89: 3529.7667 | AB89: 3130.072412 | AC89: 3130.072412 | AD89: 3130.072412 | AE89: 2837.68311 | AF89: 2837.68311 | AG89: 2837.68311 | AH89: 2527.891962 | AI89: 2527.891962 | AJ89: 2527.891962 | AK89: 0 | AL89: 0 | AM89: 0 | AN89: 0 | AO89: 0
F90: WMP | J90: USD | N90: =Calculations!N365 -> 3391.503832 | T90: 0 | U90: 0 | V90: 3661.475398 | W90: 3661.475398 | X90: 3661.475398 | Y90: 3541.502233 | Z90: 3541.502233 | AA90: 3541.502233 | AB90: 3334.095003 | AC90: 3334.095003 | AD90: 3334.095003 | AE90: 3223.436872 | AF90: 3223.436872 | AG90: 3223.436872 | AH90: 3198.038659 | AI90: 3198.038659 | AJ90: 3198.038659 | AK90: 0 | AL90: 0 | AM90: 0 | AN90: 0 | AO90: 0
F92: Lactose
F93: Fonterra Price (including CIF) | J93: USD | M93: 1
F94: Competitor Price (including CIF) | J94: USD | M94: 2 | N94: =SUMPRODUCT($T$94:$AE$94,Calculations!$T$232:$AE$232)/SUM(Calculations!$T$232:$AE$232) -> 1590.292719 | T94: 1370.034464 | U94: 1389.296096 | V94: 1388.955869 | W94: 1469.757197 | X94: 1521.640989 | Y94: 1581.228469 | Z94: 1658.54574 | AA94: 1722.92091 | AB94: 1727.390166 | AC94: 1688.494202 | AD94: 1575.495915 | AE94: 1498.327915
F95: Adjustment for difference in average FX | J95: USD | N95: -54
F96: Lactose | J96: USD | M96: =IF(N93<N94,1,2) -> 1 | N96: =CHOOSE($M$96,N$93,N$94) -> 0 | T96: =T94+$N$95 -> 1316.034464 | U96: 1335.296096 | V96: 1334.955869 | W96: 1415.757197 | X96: 1467.640989 | Y96: 1527.228469 | Z96: 1604.54574 | AA96: 1668.92091 | AB96: 1673.390166 | AC96: 1634.494202 | AD96: 1521.495915 | AE96: 1444.327915
E98: 2. Sales Phasing
F99: To Model: Selected Full Year Percentage Sales Phasings Adjusted to Align to YTD Percentage Phasings
F100: Butter | J100: % | N100: =SUM(T100:AO100) -> 1 | T100: 0 | U100: 0 | V100: 0 | W100: 0.04543229493 | X100: 0.04543229493 | Y100: 0.1124977964 | Z100: 0.1124977964 | AA100: 0.1124977964 | AB100: 0.09487119935 | AC100: 0.09487119935 | AD100: 0.09487119935 | AE100: 0.07173329919 | AF100: 0.07173329919 | AG100: 0.07173329919 | AH100: 0.02394284173 | AI100: 0.02394284173 | AJ100: 0.02394284173 | AK100: 0 | AL100: 0 | AM100: 0 | AN100: 0 | AO100: 0
F101: AMF | J101: % | N101: =SUM(T101:AO101) -> 1 | T101: 0 | U101: 0 | V101: 0 | W101: 0.04668775626 | X101: 0.04668775626 | Y101: 0.09398897454 | Z101: 0.09398897454 | AA101: 0.09398897454 | AB101: 0.0806100182 | AC101: 0.0806100182 | AD101: 0.0806100182 | AE101: 0.114029887 | AF101: 0.114029887 | AG101: 0.114029887 | AH101: 0.0135792827 | AI101: 0.0135792827 | AJ101: 0.0135792827 | AK101: 0 | AL101: 0 | AM101: 0 | AN101: 0 | AO101: 0
F102: SMP | J102: % | N102: =SUM(T102:AO102) -> 1 | T102: 0 | U102: 0 | V102: 0 | W102: 0.05046525354 | X102: 0.05046525354 | Y102: 0.117698531 | Z102: 0.117698531 | AA102: 0.117698531 | AB102: 0.09122558664 | AC102: 0.09122558664 | AD102: 0.09122558664 | AE102: 0.07963431648 | AF102: 0.07963431648 | AG102: 0.07963431648 | AH102: 0.01113139681 | AI102: 0.01113139681 | AJ102: 0.01113139681 | AK102: 0 | AL102: 0 | AM102: 0 | AN102: 0 | AO102: 0
F103: BMP | J103: % | N103: =SUM(T103:AO103) -> 1 | T103: 0 | U103: 0 | V103: 0 | W103: 0.01413306226 | X103: 0.01413306226 | Y103: 0.1135496611 | Z103: 0.1135496611 | AA103: 0.1135496611 | AB103: 0.09100250829 | AC103: 0.09100250829 | AD103: 0.09100250829 | AE103: 0.07944886548 | AF103: 0.07944886548 | AG103: 0.07944886548 | AH103: 0.03991025701 | AI103: 0.03991025701 | AJ103: 0.03991025701 | AK103: 0 | AL103: 0 | AM103: 0 | AN103: 0 | AO103: 0
F104: WMP | J104: % | N104: =SUM(T104:AO104) -> 1 | T104: 0 | U104: 0 | V104: 0 | W104: 0.0470013056 | X104: 0.0470013056 | Y104: 0.1043487553 | Z104: 0.1043487553 | AA104: 0.1043487553 | AB104: 0.08639582092 | AC104: 0.08639582092 | AD104: 0.08639582092 | AE104: 0.09340317231 | AF104: 0.09340317231 | AG104: 0.09340317231 | AH104: 0.01785138107 | AI104: 0.01785138107 | AJ104: 0.01785138107 | AK104: 0 | AL104: 0 | AM104: 0 | AN104: 0 | AO104: 0
E106: 3. Edible, Stockfood and Placement Spec Downgrade
L108: Butter | M108: AMF | N108: SMP | O108: BMP | P108: WMP
F109: Placement Specs Downgrade Adjustment | J109: % of Loss in Price x % of Production
F110: Edible Downgrade Downgrade Adjustment | J110: % of Loss in Price x % of Production
F111: Stockfood Downgrade Downgrade Adjustment | J111: % of Loss in Price x % of Production
E113: 4. Trader's Commission
F115: USD fixed costs | J115: USD 000s
F116: NZD fixed costs | J116: NZD 000s | N116: 144311.3765
F117: Annual production sold on GDT | J117: %
F118: Sales support cost across all volume | J118: USD / MT
F120: GDT fees schedule thresholds
F121: Base level threshold (upper limit) | J121: MT | N121: 0
F122: 2nd level threshold (upper limit) | J122: MT | N122: 50000
F123: 3rd level threshold (upper limit) | J123: MT | N123: 250000
F125: Base level threshold | J125: USD / MT | N125: 0
F126: 2nd level threshold | J126: USD / MT | N126: 30
F127: 3rd level threshold | J127: USD / MT | N127: 20
F128: Commission costs beyond 3rd level threshold | J128: USD / MT | N128: 5
F130: Fixed commission phasing | J130: % | N130: =SUM(V130:AJ130) -> 1 | V130: 0.08333333333 | W130: 0.08333333333 | X130: 0.08333333333 | Y130: 0.08333333333 | Z130: 0.08333333333 | AA130: 0.08333333333 | AB130: 0.08333333333 | AC130: 0.08333333333 | AD130: 0.08333333333 | AE130: 0.08333333333 | AF130: 0.08333333333 | AG130: 0.08333333333
F133: COLLECTION
F135: STATUS / DATA SOURCE
F138: By Product Diversion (Transport Cost) | J138: NZD '000
F139: Farm Milk Collection | J139: NZD '000 | N139: 414714.6277
F140: Total | J140: NZD '000 | N140: =SUM(N138:N139) -> 414714.6277
F142: Phasing | J142: NZD '000 | N142: =SUM(Q142:AO142) -> 1 | T142: 0.04133948466 | U142: 0.04624914536 | V142: 0.06282986389 | W142: 0.1024957554 | X142: 0.1336531502 | Y142: 0.1259140978 | Z142: 0.1101401768 | AA142: 0.1014414357 | AB142: 0.0767290354 | AC142: 0.07488876682 | AD142: 0.06680260318 | AE142: 0.0575164849
F144: OPEX
F146: STATUS / DATA SOURCE | J146: NOTE: (a) weighted average unit costs across all RCPs, given F23 actual product mix (b) average unit costs grossed up for weighted average rework volumes.
F150: Variable Costs
L151: Butter | M151: AMF | N151: SMP | O151: BMP | P151: WMP
F152: Production | J152: MT | L152: =Calculations!$N$201 -> 258199.3593 | M152: =Calculations!$N$202 -> 150753.018 | N152: =Calculations!$N$203 -> 642724.4984 | O152: =Calculations!$N$204 -> 63792.57619 | P152: =Calculations!$N$205 -> 1730385.972
F153: Rework | J153: MT
F154: Total Manufacturer | J154: MT
F155: Average Revenue per MT | J155: NZD 000s | L155: =Calculations!N369 -> 7977.469955 | M155: =Calculations!N370 -> 8463.686926 | N155: =Calculations!N371 -> 5098.888723 | O155: =Calculations!N372 -> 4933.961175 | P155: =Calculations!N373 -> 5334.766203
F156: Weights | J156: % | L156: =L152/SUM($L$152:$P$152) -> 0.09072820678 | M156: =M152/SUM($L$152:$P$152) -> 0.05297283088 | N156: =N152/SUM($L$152:$P$152) -> 0.2258458013 | O156: =O152/SUM($L$152:$P$152) -> 0.02241595819 | P156: =P152/SUM($L$152:$P$152) -> 0.6080372029
L157: Butter | M157: AMF | N157: SMP | O157: BMP | P157: WMP
F158: Rework - downgrade adjustment | J158: % of Production
F159: Packaging costs | J159: NZD / MT | L159: 234.3360343 | M159: 234.3360343 | N159: 234.3360343 | O159: 234.3360343 | P159: 234.3360343
F160: Energy (Exclusive of ETS Costs) | J160: NZD / MT
F161: Water | J161: NZD / MT
F162: Cleaning & CIP | J162: NZD / MT
F163: Consumables | J163: NZD / MT
F164: Effluent | J164: NZD / MT
F165: Laboratory | J165: NZD / MT
F166: Carbon Credit Requirement | J166: MT CO2e / MT
F168: Fixed Manufacturing Costs
F169: Wages & ERE | J169: NZD 000s
F170: Repairs & Maintenance | J170: NZD 000s
F171: Energy | J171: NZD 000s
F172: Water (Fixed) | J172: NZD 000s
F173: Cleaning & CIP (Fixed) | J173: NZD 000s
F174: Consumables (Fixed) | J174: NZD 000s
F175: Effluent (Fixed) | J175: NZD 000s
F176: Laboratory (Fixed) | J176: NZD 000s
F177: Total | J177: NZD 000s
F179: Site Overheads
F180: Staff Costs | J180: NZD 000s
F181: Other | J181: NZD 000s | N181: 428903.8902
F182: Total | J182: NZD 000s | N182: =SUM(N180:N181) -> 428903.8902
F184: Fixed Opex - Phasing | J184: % | N184: =SUM(T184:AE184) -> 1 | T184: 0.0953967276 | U184: 0.09545026095 | V184: 0.08759421194 | W184: 0.08041636686 | X184: 0.08181526152 | Y184: 0.07762094773 | Z184: 0.07879251644 | AA184: 0.07472657194 | AB184: 0.07246617621 | AC184: 0.07832896852 | AD184: 0.08200343218 | AE184: 0.0953885581
F186: Lactose CIF costs per MT | J186: USD
F188: NZUS Surrender Ratio | J188: %
F189: NZUSSPOT Index | J189: NZD / MT CO2e
F191: SUPPLY CHAIN
F193: STATUS / DATA SOURCE
F196: Inland Freight Costs per MT
F197: Butter | J197: NZD / MT
F198: Other (Excl Lactose) | J198: NZD / MT
F199: Lactose | J199: NZD / MT
F201: Variable Supply Chain Costs
F202: Kotahi Fees | J202: USD / MT
F203: Complaints | J203: % of revenue
F204: Supply chain admin etc (excl depn & amortisation) | J204: NZD / MT | N204: 100.894754
F205: Pallets & Recycling | J205: NZD / MT
F206: Port Costs | J206: NZD / MT
F207: Dry Storage Costs | J207: NZD / MT
F208: Cool Storage Costs (Butter) per month | J208: NZD / MT
F209: Cool Storage Costs (Inbound) | J209: NZD / MT
F210: Cool Storage Costs (Outbound) | J210: NZD / MT
F211: Cool Storage Write-off Costs | J211: NZD / MT
F213: Fixed Supply Chain Costs
F214: Group Supply Chain Overheads | J214: NZD '000
F216: Supply Chain - Phasing | J216: % | N216: =SUM(T216:AO216) -> 1 | T216: 0.07695353482 | U216: 0.06080168379 | V216: 0.07477710625 | W216: 0.08379381469 | X216: 0.08673651303 | Y216: 0.09083598335 | Z216: 0.08574060333 | AA216: 0.09658340316 | AB216: 0.0834235151 | AC216: 0.09403069183 | AD216: 0.08158029806 | AE216: 0.08474285258
F218: ADMINISTRATION
F220: STATUS / DATA SOURCE
F223: NZ Manufacturing Overhead | J223: NZD '000
F224: Corporate Overhead | J224: NZD '000
F225: Fms Overheads | J225: NZD '000
F226: Shareholder Relations | J226: NZD '000
F227: Admin costs to model | J227: NZD '000 | N227: 372173.6764
F229: Admin - Phasing | J229: % | N229: =SUM(T229:AO229) -> 1 | T229: 0.0693707596 | U229: 0.1615095108 | V229: 0.07561102156 | W229: 0.07714733952 | X229: 0.08590756115 | Y229: 0.07303073976 | Z229: 0.08179312858 | AA229: 0.07253666436 | AB229: 0.0669679519 | AC229: 0.07871872691 | AD229: 0.07675565193 | AE229: 0.08065094392
F231: FIXED ASSETS
F233: STATUS / DATA SOURCE | J233: Fonterra's actual accounting and tax depreciation for collection assets are used in the calculation. Bundled here into (a) other depreciation and (b) as an adjustment to tilted annuity depreciation : tax depreciation ratio.
F237: Capital Charge | J237: NZD '000 | N237: 327405.6241
F238: Net Depreciation | J238: NZD '000 | N238: 255278.1448
F239: Accounting Depreciation - collection assets | J239: NZD '000
F240: Tax Depreciation - collection assets | J240: NZD '000
F242: INCOME TAX
F244: STATUS / DATA SOURCE | J244: Actual tax depreciation as % of accounting depreciation ratio set at 150% for assets other than collection assets, where Fonterra's actual tax depreciation is used. Ratio has been adjusted so that reported tax equals actual tax calculated in the final
J245: Farmgate Milk Price calculation. Adjustment is required due to impact of differences between this model and final model in treatment of aggregated vs disaggregated cost inputs.
F248: Company Tax Rate | J248: % | N248: 0.28
F249: Tax depn as % of accounting depn | J249: % | N249: 1.38
F252: WORKING CAPITAL
F254: STATUS / DATA SOURCE | J254: Debtor days reset to weighted average across 5 RCPs. In practice debtor days are calculated by reference to sales included in the Milk Price calcuatlion for each RCP.
J255: Creditor days 'other' normally set separately to lactose (which is paid for prior to month of utilisation, when cost is recognised in the model) and other. Have been (a) set equal here and (b) used as balancing adjustment to align simplified capital charge to actual.
F258: Creditor days - Other | J258: Days | N258: 23
F259: Creditor days - Lactose | J259: Days | N259: =N258 -> 23
F260: Debtor Days
F261: Butter | J261: Days | N261: 25
F262: AMF | J262: Days | N262: 25
F263: SMP | J263: Days | N263: 25
F264: BMP | J264: Days | N264: 25
F265: WMP | J265: Days | N265: 24.934
F267: Supplier Payables - Advance Rate Schedule
F268: Advance rate | T268: 5.7 | U268: 5.7 | V268: 5.7 | W268: 5.7 | X268: 5.7 | Y268: 5.7 | Z268: 5.7 | AA268: 6.05 | AB268: 6.3 | AC268: 6.7 | AD268: 6.7 | AE268: 6.75 | AF268: 7 | AG268: 7.4 | AH268: 7.8 | AI268: 8.2 | AJ268: =Calculations!N1275 -> 8.222182541
F269: YTD advance rate / YTG % MP | J269: % | T269: =T268 -> 5.7 | U269: =U268 -> 5.7 | V269: 5.7 | W269: 5.7 | X269: 5.7 | Y269: 5.7 | Z269: 5.7 | AA269: 6.05 | AB269: 6.3 | AC269: 6.7 | AD269: 6.7 | AE269: 6.75 | AF269: 7 | AG269: 7.4 | AH269: 7.8 | AI269: 8.2 | AJ269: =AJ268 -> 8.222182541
F271: Working Capital - incremental cash costs | J271: NZD '000 | N271: 7457.997163
F272: Working Capital - incremental cash costs phasing | J272: % | N272: =SUM(T272:AJ272) -> 1 | T272: 0 | U272: 0 | V272: 0 | W272: 0.009891194711 | X272: 0.09052027909 | Y272: 0.1191867143 | Z272: 0.1182647854 | AA272: 0.09938008293 | AB272: 0.0720719094 | AC272: 0.08587733399 | AD272: 0.09776023938 | AE272: 0.1030418396 | AF272: 0.08701436083 | AG272: 0.06671551227 | AH272: 0.0343099803 | AI272: 0.01590174817 | AJ272: 6.401960731e-05
F273: Working Capital - incremental cash costs (to model) | J273: NZD '000 | T273: =T272*$N$271 -> 0 | U273: =U272*$N$271 -> 0 | V273: 0 | W273: 73.76850209 | X273: 675.0999846 | Y273: 888.8941775 | Z273: 882.0184339 | AA273: 741.1763765 | AB273: 537.5120958 | AC273: 640.4729133 | AD273: 729.095588 | AE273: 768.4857473 | AF273: 648.9528562 | AG273: 497.5641012 | AH273: 255.8837357 | AI273: 118.5951927 | AJ273: 0.4774580497
F276: ADDITIONAL COMMODITY MILK PAYMENTS AND STANDARD SUPPLY ADJUSTMENTS
F278: STATUS / DATA SOURCE | J278: Adjustments for notional Winter Milk premiums, other additional payments or deductions for milk not supplied on standard terms, to the extent these would apply to the Farmgate Milk Price business, and demerit deductions for milk quality issues.
F281: Additional Commodity Milk Payments And Standard Supply Adjustments | J281: NZD '000 | N281: 8115.347988

Sheet Calculations
F5: Overall error check | J5: =IF(COUNTA(B:B)=COUNTIF(B:B,"Okay"),"Okay","Error") -> Okay | N5: Annual | T5: Monthly
J9: Units | K9: Cross Reference | N9: =Global!O7 -> 2023-05-31 | R9: =Global!R7 -> 2022-04-30 | S9: =Global!S7 -> 2022-05-31 | T9: =Global!T7 -> 2022-06-30 | U9: =Global!U7 -> 2022-07-31 | V9: =Global!V7 -> 2022-08-31 | W9: =Global!W7 -> 2022-09-30 | X9: =Global!X7 -> 2022-10-31 | Y9: =Global!Y7 -> 2022-11-30 | Z9: =Global!Z7 -> 2022-12-31 | AA9: =Global!AA7 -> 2023-01-31 | AB9: =Global!AB7 -> 2023-02-28 | AC9: =Global!AC7 -> 2023-03-31 | AD9: =Global!AD7 -> 2023-04-30 | AE9: =Global!AE7 -> 2023-05-31 | AF9: =Global!AF7 -> 2023-06-30 | AG9: =Global!AG7 -> 2023-07-31 | AH9: =Global!AH7 -> 2023-08-31 | AI9: =Global!AI7 -> 2023-09-30 | AJ9: =Global!AJ7 -> 2023-10-31 | AK9: =Global!AK7 -> 2023-11-30 | AL9: =Global!AL7 -> 2023-12-31 | AM9: =Global!AM7 -> 2024-01-31 | AN9: =Global!AN7 -> 2024-02-29 | AO9: =Global!AO7 -> 2024-03-31 | AP9: =Global!AP7 -> 2024-04-30 | AQ9: =Global!AQ7 -> 2024-05-31
D10: Calendar Year | T10: =YEAR(T9) -> 2022 | U10: =YEAR(U9) -> 2022 | V10: 2022 | W10: 2022 | X10: 2022 | Y10: 2022 | Z10: 2022 | AA10: 2023 | AB10: 2023 | AC10: 2023 | AD10: 2023 | AE10: 2023 | AF10: 2023 | AG10: 2023 | AH10: 2023 | AI10: 2023 | AJ10: 2023 | AK10: 2023 | AL10: 2023 | AM10: =YEAR(AM9) -> 2024 | AN10: =YEAR(AN9) -> 2024 | AO10: =YEAR(AO9) -> 2024 | AP10: =YEAR(AP9) -> 2024
D11: Month Number | T11: 1 | U11: =T11+1 -> 2 | V11: =U11+1 -> 3 | W11: =V11+1 -> 4 | X11: 5 | Y11: 6 | Z11: 7 | AA11: 8 | AB11: 9 | AC11: 10 | AD11: 11 | AE11: 12 | AF11: 13 | AG11: 14 | AH11: 15 | AI11: 16 | AJ11: 17 | AK11: 18 | AL11: 19 | AM11: =AL11+1 -> 20 | AN11: =AM11+1 -> 21 | AO11: =AN11+1 -> 22 | AP11: =AO11+1 -> 23
D12: Days in Period | R12: =Global!R10 -> 30 | S12: =Global!S10 -> 31 | T12: =Global!T10 -> 30 | U12: =U9-T9 -> 31 | V12: =V9-U9 -> 31 | W12: 30 | X12: 31 | Y12: 30 | Z12: 31 | AA12: 31 | AB12: 28 | AC12: 31 | AD12: 30 | AE12: 31 | AF12: 30 | AG12: 31 | AH12: 31 | AI12: 30 | AJ12: 31 | AK12: 30 | AL12: 31 | AM12: 31 | AN12: 29 | AO12: 31 | AP12: 30
D13: Year to Go flag | N13: 1 | P13: =Global!P11 -> 18 | T13: =Global!T11 -> 1 | U13: =Global!U11 -> 1 | V13: =Global!V11 -> 1 | W13: =Global!W11 -> 1 | X13: =Global!X11 -> 1 | Y13: =Global!Y11 -> 1 | Z13: =Global!Z11 -> 1 | AA13: =Global!AA11 -> 1 | AB13: =Global!AB11 -> 1 | AC13: =Global!AC11 -> 1 | AD13: =Global!AD11 -> 1 | AE13: =Global!AE11 -> 1 | AF13: =Global!AF11 -> 1 | AG13: =Global!AG11 -> 1 | AH13: =Global!AH11 -> 1 | AI13: =Global!AI11 -> 1 | AJ13: =Global!AJ11 -> 1 | AK13: =Global!AK11 -> 1 | AL13: =Global!AL11 -> 0 | AM13: =Global!AM11 -> 0 | AN13: =Global!AN11 -> 0 | AO13: =Global!AO11 -> 0
D14: PRODUCTION
D16: COMMENT | F16: See comments below. Production volumes to model have been hardcoded to align to actual volumes. Detail of loss assumptions & specification offsets, which is confidential to Fonterra, is required to
F17: flow milk supply through yield logic. Logic has however been retained in the model, and we have disclosed overall valued component usages by RCP (in cells O59:P63). These incorporate the
F18: valued component usages of the unstandardised products manufactured in October and November.
D20: DATA INPUT
F21: Milk Collected | J21: ='Data Input'!J32 -> 000 kgMS | N21: ='Data Input'!N32 -> 1480305.696 | T21: ='Data Input'!T32 -> 14913.1316 | U21: ='Data Input'!U32 -> 19023.3826 | V21: ='Data Input'!V32 -> 91740.6474 | W21: ='Data Input'!W32 -> 166274.2293 | X21: ='Data Input'!X32 -> 200558.4131 | Y21: ='Data Input'!Y32 -> 188167.1582 | Z21: ='Data Input'!Z32 -> 173968.6011 | AA21: ='Data Input'!AA32 -> 161356.9483 | AB21: ='Data Input'!AB32 -> 129957.8605 | AC21: ='Data Input'!AC32 -> 137733.0033 | AD21: ='Data Input'!AD32 -> 120726.3256 | AE21: ='Data Input'!AE32 -> 75885.9954
F22: Milk Supply - Phasing | J22: ='Data Input'!J33 -> % | N22: =SUM(T22:AE22) -> 1 | T22: ='Data Input'!T33 -> 0.0100743594 | U22: ='Data Input'!U33 -> 0.0128509825 | V22: ='Data Input'!V33 -> 0.06197412306 | W22: ='Data Input'!W33 -> 0.1123242515 | X22: ='Data Input'!X33 -> 0.1354844567 | Y22: ='Data Input'!Y33 -> 0.1271137162 | Z22: ='Data Input'!Z33 -> 0.1175220777 | AA22: ='Data Input'!AA33 -> 0.1090024504 | AB22: ='Data Input'!AB33 -> 0.08779123178 | AC22: ='Data Input'!AC33 -> 0.09304362176 | AD22: ='Data Input'!AD33 -> 0.0815549963 | AE22: ='Data Input'!AE33 -> 0.05126373261
F24: ='Data Input'!F40 -> National average composition
F25: ='Data Input'!F41 -> Fat | J25: ='Data Input'!J41 -> % w/w | T25: ='Data Input'!T41 -> 0.04804354027 | U25: ='Data Input'!U41 -> 0.04804354027 | V25: ='Data Input'!V41 -> 0.04804354027 | W25: ='Data Input'!W41 -> 0.04640229642 | X25: ='Data Input'!X41 -> 0.04640229642 | Y25: ='Data Input'!Y41 -> 0.04640229642 | Z25: ='Data Input'!Z41 -> 0.0489318118 | AA25: ='Data Input'!AA41 -> 0.0489318118 | AB25: ='Data Input'!AB41 -> 0.0489318118 | AC25: ='Data Input'!AC41 -> 0.05612930978 | AD25: ='Data Input'!AD41 -> 0.05612930978 | AE25: ='Data Input'!AE41 -> 0.05612930978
F26: ='Data Input'!F42 -> Protein | J26: ='Data Input'!J42 -> % w/w | T26: ='Data Input'!T42 -> 0.03811358356 | U26: ='Data Input'!U42 -> 0.03811358356 | V26: ='Data Input'!V42 -> 0.03811358356 | W26: ='Data Input'!W42 -> 0.03693065587 | X26: ='Data Input'!X42 -> 0.03693065587 | Y26: ='Data Input'!Y42 -> 0.03693065587 | Z26: ='Data Input'!Z42 -> 0.03795107685 | AA26: ='Data Input'!AA42 -> 0.03795107685 | AB26: ='Data Input'!AB42 -> 0.03795107685 | AC26: ='Data Input'!AC42 -> 0.04329831731 | AD26: ='Data Input'!AD42 -> 0.04329831731 | AE26: ='Data Input'!AE42 -> 0.04329831731
F27: ='Data Input'!F43 -> Lactose + Minerals | J27: ='Data Input'!J43 -> % w/w | T27: ='Data Input'!T43 -> 0.05411785235 | U27: ='Data Input'!U43 -> 0.05411785235 | V27: ='Data Input'!V43 -> 0.05411785235 | W27: ='Data Input'!W43 -> 0.05463068909 | X27: ='Data Input'!X43 -> 0.05463068909 | Y27: ='Data Input'!Y43 -> 0.05463068909 | Z27: ='Data Input'!Z43 -> 0.05351319207 | AA27: ='Data Input'!AA43 -> 0.05351319207 | AB27: ='Data Input'!AB43 -> 0.05351319207 | AC27: ='Data Input'!AC43 -> 0.05235800286 | AD27: ='Data Input'!AD43 -> 0.05235800286 | AE27: ='Data Input'!AE43 -> 0.05235800286
F29: ='Data Input'!F70 -> Product mix
F30: ='Data Input'!F71 -> Annual average ratio of WMP MT to WMP + SMP | J30: ='Data Input'!J71 -> % | T30: ='Data Input'!T71 -> 0.7262604071 | U30: ='Data Input'!U71 -> 0.7262604071 | V30: ='Data Input'!V71 -> 0.7262604071 | W30: ='Data Input'!W71 -> 0.7262604071 | X30: ='Data Input'!X71 -> 0.7262604071 | Y30: ='Data Input'!Y71 -> 0.7262604071 | Z30: ='Data Input'!Z71 -> 0.7262604071 | AA30: ='Data Input'!AA71 -> 0.7262604071 | AB30: ='Data Input'!AB71 -> 0.7262604071 | AC30: ='Data Input'!AC71 -> 0.7262604071 | AD30: ='Data Input'!AD71 -> 0.7262604071 | AE30: ='Data Input'!AE71 -> 0.7262604071
F31: ='Data Input'!F72 -> Annual average ratio of Butter MT to Butter + AMF | J31: ='Data Input'!J72 -> % | T31: ='Data Input'!T72 -> 0.6356056946 | U31: ='Data Input'!U72 -> 0.6356056946 | V31: ='Data Input'!V72 -> 0.6356056946 | W31: ='Data Input'!W72 -> 0.6356056946 | X31: ='Data Input'!X72 -> 0.6356056946 | Y31: ='Data Input'!Y72 -> 0.6356056946 | Z31: ='Data Input'!Z72 -> 0.6356056946 | AA31: ='Data Input'!AA72 -> 0.6356056946 | AB31: ='Data Input'!AB72 -> 0.6356056946 | AC31: ='Data Input'!AC72 -> 0.6356056946 | AD31: ='Data Input'!AD72 -> 0.6356056946 | AE31: ='Data Input'!AE72 -> 0.6356056946
F33: ='Data Input'!F45 -> Milk Composition Input Parameters
F34: ='Data Input'!F46 -> Cream Fat Content | J34: ='Data Input'!J46 -> % | N34: ='Data Input'!N46 -> 0.42
F35: ='Data Input'!F47 -> Skimmilk Fat Content | J35: ='Data Input'!J47 -> % | N35: ='Data Input'!N47 -> 0.0008
F36: ='Data Input'!F48 -> Wholemilk Density | J36: ='Data Input'!J48 -> % | N36: ='Data Input'!N48 -> 1.032
F38: ='Data Input'!F50 -> Lactose Standardising Inputs
F39: ='Data Input'!F51 -> Lactose losses - WMP | J39: ='Data Input'!J51 -> % | N39: ='Data Input'!N51 -> 0
F40: ='Data Input'!F52 -> Lactose losses - SMP | J40: ='Data Input'!J52 -> % | N40: ='Data Input'!N52 -> 0
F41: ='Data Input'!F53 -> Lactose losses - BMP | J41: ='Data Input'!J53 -> % | N41: ='Data Input'!N53 -> 0
F42: ='Data Input'!F54 -> Lactose content of lactose powder | J42: ='Data Input'!J54 -> % | N42: ='Data Input'!N54 -> 0.95
F44: ='Data Input'!F56 -> Composition Target | L44: ='Data Input'!L56 -> Fat | M44: ='Data Input'!M56 -> Protein | N44: ='Data Input'!N56 -> Moisture
F45: ='Data Input'!F57 -> Butter | J45: ='Data Input'!J57 -> %w/w | L45: ='Data Input'!L57 -> 0 | M45: ='Data Input'!M57 -> 0 | N45: ='Data Input'!N57 -> 0
F46: ='Data Input'!F58 -> AMF | J46: ='Data Input'!J58 -> %w/w | L46: ='Data Input'!L58 -> 0 | M46: ='Data Input'!M58 -> 0 | N46: ='Data Input'!N58 -> 0
F47: ='Data Input'!F59 -> SMP | J47: ='Data Input'!J59 -> %w/w | L47: ='Data Input'!L59 -> 0 | M47: ='Data Input'!M59 -> 0 | N47: ='Data Input'!N59 -> 0
F48: ='Data Input'!F60 -> BMP | J48: ='Data Input'!J60 -> %w/w | L48: ='Data Input'!L60 -> 0 | M48: ='Data Input'!M60 -> 0 | N48: ='Data Input'!N60 -> 0
F49: ='Data Input'!F61 -> WMP | J49: ='Data Input'!J61 -> %w/w | L49: ='Data Input'!L61 -> 0 | M49: ='Data Input'!M61 -> 0 | N49: ='Data Input'!N61 -> 0
F51: ='Data Input'!F63 -> Value Component Usage | L51: ='Data Input'!L63 -> Fat | M51: ='Data Input'!M63 -> Protein
F52: ='Data Input'!F64 -> Butter | J52: ='Data Input'!J64 -> kg/mt | L52: ='Data Input'!L64 -> 0 | M52: ='Data Input'!M64 -> 0
F53: ='Data Input'!F65 -> AMF | J53: ='Data Input'!J65 -> kg/mt | L53: ='Data Input'!L65 -> 0 | M53: ='Data Input'!M65 -> 0
F54: ='Data Input'!F66 -> SMP | J54: ='Data Input'!J66 -> kg/mt | L54: ='Data Input'!L66 -> 0 | M54: ='Data Input'!M66 -> 0
F55: ='Data Input'!F67 -> BMP | J55: ='Data Input'!J67 -> kg/mt | L55: ='Data Input'!L67 -> 0 | M55: ='Data Input'!M67 -> 0
F56: ='Data Input'!F68 -> WMP | J56: ='Data Input'!J68 -> kg/mt | L56: ='Data Input'!L68 -> 0 | M56: ='Data Input'!M68 -> 0
O57: Hardcoded for use in inventory calculations
D58: CALCULATIONS | F58: Valued Component Usage | L58: Fat | M58: Protein | O58: Fat | P58: Protein
D59: Logic retained, but key input cells not populated. | F59: Butter | J59: % | L59: =OFFSET($L$51,MATCH($F59,$F$52:$F$56,0),)/1000 -> 0 | M59: =OFFSET($M$51,MATCH($F59,$F$52:$F$56,0),)/1000 -> 0 | O59: 0.83145595 | P59: 0.005350275
F60: AMF | J60: % | L60: =OFFSET($L$51,MATCH($F60,$F$52:$F$56,0),)/1000 -> 0 | M60: =OFFSET($M$51,MATCH($F60,$F$52:$F$56,0),)/1000 -> 0 | O60: 1.001959844 | P60: 0.0008
F61: SMP | J61: % | L61: =OFFSET($L$51,MATCH($F61,$F$52:$F$56,0),)/1000 -> 0 | M61: =OFFSET($M$51,MATCH($F61,$F$52:$F$56,0),)/1000 -> 0 | O61: 0.008775451665 | P61: 0.327898152
F62: BMP | J62: % | L62: =OFFSET($L$51,MATCH($F62,$F$52:$F$56,0),)/1000 -> 0 | M62: =OFFSET($M$51,MATCH($F62,$F$52:$F$56,0),)/1000 -> 0 | O62: 0.07813405837 | P62: 0.3055098827
F63: WMP | J63: % | L63: =OFFSET($L$51,MATCH($F63,$F$52:$F$56,0),)/1000 -> 0 | M63: =OFFSET($M$51,MATCH($F63,$F$52:$F$56,0),)/1000 -> 0 | O63: 0.2621110245 | P63: 0.2419451793
F65: Lactose Requirements per MT
F66: SMP | J66: % | N66: =SUMPRODUCT(T66:AE66,T203:AE203)/N203 -> 1.052631579 | T66: =T$90/1000 -> 1.052631579 | U66: =U$90/1000 -> 1.052631579 | V66: 1.052631579 | W66: 1.052631579 | X66: 1.052631579 | Y66: 1.052631579 | Z66: 1.052631579 | AA66: 1.052631579 | AB66: 1.052631579 | AC66: 1.052631579 | AD66: 1.052631579 | AE66: 1.052631579
F67: BMP | J67: % | N67: =SUMPRODUCT(T67:AE67,T204:AE204)/N204 -> 1.052631579 | T67: =T$92/1000 -> 1.052631579 | U67: =U$92/1000 -> 1.052631579 | V67: 1.052631579 | W67: 1.052631579 | X67: 1.052631579 | Y67: 1.052631579 | Z67: 1.052631579 | AA67: 1.052631579 | AB67: 1.052631579 | AC67: 1.052631579 | AD67: 1.052631579 | AE67: 1.052631579
F68: WMP | J68: % | N68: =SUMPRODUCT(T68:AE68,T205:AE205)/N205 -> 1.052631579 | T68: =T$108/1000 -> 1.052631579 | U68: =U$108/1000 -> 1.052631579 | V68: 1.052631579 | W68: 1.052631579 | X68: 1.052631579 | Y68: 1.052631579 | Z68: 1.052631579 | AA68: 1.052631579 | AB68: 1.052631579 | AC68: 1.052631579 | AD68: 1.052631579 | AE68: 1.052631579
F70: Wholemilk Composition Parameters
F71: Fat | J71: kg Fat / m3 wholemilk | T71: =$N$36*T25*1000 -> 49.58093356 | U71: 49.58093356 | V71: 49.58093356 | W71: 47.88716991 | X71: 47.88716991 | Y71: 47.88716991 | Z71: 50.49762978 | AA71: 50.49762978 | AB71: 50.49762978 | AC71: 57.9254477 | AD71: 57.9254477 | AE71: 57.9254477
F72: Protein | J72: kg Protein / m3 wholemilk | T72: =$N$36*T26*1000 -> 39.33321823 | U72: 39.33321823 | V72: 39.33321823 | W72: 38.11243686 | X72: 38.11243686 | Y72: 38.11243686 | Z72: 39.16551131 | AA72: 39.16551131 | AB72: 39.16551131 | AC72: 44.68386346 | AD72: 44.68386346 | AE72: 44.68386346
F73: Raw Milk Protein : SNF Ratio | J73: % | T73: =T26/SUM(T26:T27) -> 0.4132385361 | U73: 0.4132385361 | V73: 0.4132385361 | W73: 0.4033433092 | X73: 0.4033433092 | Y73: 0.4033433092 | Z73: 0.414927898 | AA73: 0.414927898 | AB73: 0.414927898 | AC73: 0.4526446055 | AD73: 0.4526446055 | AE73: 0.4526446055
F74: Cream Protein | J74: % | T74: =(1-$N$34)/(1-T25)*T26 -> 0.02322152262 | U74: 0.02322152262 | V74: 0.02322152262 | W74: 0.02246207213 | X74: 0.02246207213 | Y74: 0.02246207213 | Z74: 0.02314410769 | AA74: 0.02314410769 | AB74: 0.02314410769 | AC74: 0.02660642427 | AD74: 0.02660642427 | AE74: 0.02660642427
F76: SMP
F77: Excess Cream
F78: kg cream | J78: kg /m3 wholemilk | T78: =IFERROR((T$72*$L$54-T$71*$M$54)/(T$74*$L$54-$N$34*$M$54),0) -> 0 | U78: =IFERROR((U$72*$L$54-U$71*$M$54)/(U$74*$L$54-$N$34*$M$54),0) -> 0 | V78: 0 | W78: 0 | X78: 0 | Y78: 0 | Z78: 0 | AA78: 0 | AB78: 0 | AC78: 0 | AD78: 0 | AE78: 0
F79: Fat | J79: kg /m3 wholemilk | T79: =T78*$N$34 -> 0 | U79: =U78*$N$34 -> 0 | V79: 0 | W79: 0 | X79: 0 | Y79: 0 | Z79: 0 | AA79: 0 | AB79: 0 | AC79: 0 | AD79: 0 | AE79: 0
F80: Protein | J80: kg /m3 wholemilk | T80: =T78*T74 -> 0 | U80: 0 | V80: 0 | W80: 0 | X80: 0 | Y80: 0 | Z80: 0 | AA80: 0 | AB80: 0 | AC80: 0 | AD80: 0 | AE80: 0
F82: SMP | J82: kg /m3 wholemilk | T82: =IFERROR((T71-T78*$N$34)/$L$54*1000,0) -> 0 | U82: =IFERROR((U71-U78*$N$34)/$L$54*1000,0) -> 0 | V82: 0 | W82: 0 | X82: 0 | Y82: 0 | Z82: 0 | AA82: 0 | AB82: 0 | AC82: 0 | AD82: 0 | AE82: 0
F83: Butter | J83: kg /m3 wholemilk | T83: =IFERROR((T79*$M$55-T80*$L$55)*1000/($L$52*$M$55-$M$52*$L$55),0) -> 0 | U83: =IFERROR((U79*$M$55-U80*$L$55)*1000/($L$52*$M$55-$M$52*$L$55),0) -> 0 | V83: 0 | W83: 0 | X83: 0 | Y83: 0 | Z83: 0 | AA83: 0 | AB83: 0 | AC83: 0 | AD83: 0 | AE83: 0
F84: BMP | J84: kg /m3 wholemilk | T84: =IFERROR((T80-T83*$M$52/1000)/($M$55/1000),0) -> 0 | U84: =IFERROR((U80-U83*$M$52/1000)/($M$55/1000),0) -> 0 | V84: 0 | W84: 0 | X84: 0 | Y84: 0 | Z84: 0 | AA84: 0 | AB84: 0 | AC84: 0 | AD84: 0 | AE84: 0
F85: AMF | J85: kg /m3 wholemilk | T85: =IFERROR((T79*$M$55-T80*$L$55)*1000/($L$53*$M$55-$M$53*$L$55),0) -> 0 | U85: =IFERROR((U79*$M$55-U80*$L$55)*1000/($L$53*$M$55-$M$53*$L$55),0) -> 0 | V85: 0 | W85: 0 | X85: 0 | Y85: 0 | Z85: 0 | AA85: 0 | AB85: 0 | AC85: 0 | AD85: 0 | AE85: 0
F86: BMP | J86: kg /m3 wholemilk | T86: =IFERROR((T80-T85*$M$53/1000)/($M$55/1000),0) -> 0 | U86: =IFERROR((U80-U85*$M$53/1000)/($M$55/1000),0) -> 0 | V86: 0 | W86: 0 | X86: 0 | Y86: 0 | Z86: 0 | AA86: 0 | AB86: 0 | AC86: 0 | AD86: 0 | AE86: 0
F88: Lactose Standardising
F89: Primary product (excl Losses) | J89: kg/mt | T89: =(1-$L$47-$N$47-$M$47/T73)*1000 -> 1000 | U89: =(1-$L$47-$N$47-$M$47/U73)*1000 -> 1000 | V89: 1000 | W89: 1000 | X89: 1000 | Y89: 1000 | Z89: 1000 | AA89: 1000 | AB89: 1000 | AC89: 1000 | AD89: 1000 | AE89: 1000
F90: Primary product (incl Losses) | J90: kg/mt | T90: =T89/(1-$N$40)/$N$42 -> 1052.631579 | U90: =U89/(1-$N$40)/$N$42 -> 1052.631579 | V90: 1052.631579 | W90: 1052.631579 | X90: 1052.631579 | Y90: 1052.631579 | Z90: 1052.631579 | AA90: 1052.631579 | AB90: 1052.631579 | AC90: 1052.631579 | AD90: 1052.631579 | AE90: 1052.631579
F91: BMP (excl Losses) | J91: kg/mt | T91: =(1-$L$48-$N$48-$M$48/T73)*1000 -> 1000 | U91: 1000 | V91: 1000 | W91: 1000 | X91: 1000 | Y91: 1000 | Z91: 1000 | AA91: 1000 | AB91: 1000 | AC91: 1000 | AD91: 1000 | AE91: 1000
F92: BMP (incl Losses and Moisture) | J92: kg/mt | T92: =T91/(1-$N$41)/$N$42 -> 1052.631579 | U92: =U91/(1-$N$41)/$N$42 -> 1052.631579 | V92: 1052.631579 | W92: 1052.631579 | X92: 1052.631579 | Y92: 1052.631579 | Z92: 1052.631579 | AA92: 1052.631579 | AB92: 1052.631579 | AC92: 1052.631579 | AD92: 1052.631579 | AE92: 1052.631579
F94: WMP
F95: Excess Cream
F96: kg cream | J96: kg /m3 wholemilk | T96: =IFERROR((T$72*$L$56-T$71*$M$56)/(T$74*$L$56-$N$34*$M$56),0) -> 0 | U96: =IFERROR((U$72*$L$56-U$71*$M$56)/(U$74*$L$56-$N$34*$M$56),0) -> 0 | V96: 0 | W96: 0 | X96: 0 | Y96: 0 | Z96: 0 | AA96: 0 | AB96: 0 | AC96: 0 | AD96: 0 | AE96: 0
F97: Fat | J97: kg /m3 wholemilk | T97: =T96*$N$34 -> 0 | U97: =U96*$N$34 -> 0 | V97: 0 | W97: 0 | X97: 0 | Y97: 0 | Z97: 0 | AA97: 0 | AB97: 0 | AC97: 0 | AD97: 0 | AE97: 0
F98: Protein | J98: kg /m3 wholemilk | T98: =T96*T74 -> 0 | U98: 0 | V98: 0 | W98: 0 | X98: 0 | Y98: 0 | Z98: 0 | AA98: 0 | AB98: 0 | AC98: 0 | AD98: 0 | AE98: 0
F100: WMP | J100: kg /m3 wholemilk | T100: =IFERROR((T71-T96*$N$34)/$L$56*1000,0) -> 0 | U100: =IFERROR((U71-U96*$N$34)/$L$56*1000,0) -> 0 | V100: 0 | W100: 0 | X100: 0 | Y100: 0 | Z100: 0 | AA100: 0 | AB100: 0 | AC100: 0 | AD100: 0 | AE100: 0
F101: Butter | J101: kg /m3 wholemilk | T101: =IFERROR((T97*$M$55-T98*$L$55)*1000/($L$52*$M$55-$M$52*$L$55),0) -> 0 | U101: =IFERROR((U97*$M$55-U98*$L$55)*1000/($L$52*$M$55-$M$52*$L$55),0) -> 0 | V101: 0 | W101: 0 | X101: 0 | Y101: 0 | Z101: 0 | AA101: 0 | AB101: 0 | AC101: 0 | AD101: 0 | AE101: 0
F102: BMP | J102: kg /m3 wholemilk | T102: =IFERROR((T98-T101*$M$52/1000)/($M$55/1000),0) -> 0 | U102: =IFERROR((U98-U101*$M$52/1000)/($M$55/1000),0) -> 0 | V102: 0 | W102: 0 | X102: 0 | Y102: 0 | Z102: 0 | AA102: 0 | AB102: 0 | AC102: 0 | AD102: 0 | AE102: 0
F103: AMF | J103: kg /m3 wholemilk | T103: =IFERROR((T97*$M$55-T98*$L$55)*1000/($L$53*$M$55-$M$53*$L$55),0) -> 0 | U103: =IFERROR((U97*$M$55-U98*$L$55)*1000/($L$53*$M$55-$M$53*$L$55),0) -> 0 | V103: 0 | W103: 0 | X103: 0 | Y103: 0 | Z103: 0 | AA103: 0 | AB103: 0 | AC103: 0 | AD103: 0 | AE103: 0
F104: BMP | J104: kg /m3 wholemilk | T104: =IFERROR((T98-T103*$M$53/1000)/($M$55/1000),0) -> 0 | U104: =IFERROR((U98-U103*$M$53/1000)/($M$55/1000),0) -> 0 | V104: 0 | W104: 0 | X104: 0 | Y104: 0 | Z104: 0 | AA104: 0 | AB104: 0 | AC104: 0 | AD104: 0 | AE104: 0
F106: Lactose Standardising
F107: Primary product (excl Losses) | J107: kg/mt | T107: =(1-$L$49-$N$49-$M$49/T73)*1000 -> 1000 | U107: =(1-$L$49-$N$49-$M$49/U73)*1000 -> 1000 | V107: 1000 | W107: 1000 | X107: 1000 | Y107: 1000 | Z107: 1000 | AA107: 1000 | AB107: 1000 | AC107: 1000 | AD107: 1000 | AE107: 1000
F108: Primary product (incl Losses) | J108: kg/mt | T108: =T107/(1-$N$39)/$N$42 -> 1052.631579 | U108: =U107/(1-$N$39)/$N$42 -> 1052.631579 | V108: 1052.631579 | W108: 1052.631579 | X108: 1052.631579 | Y108: 1052.631579 | Z108: 1052.631579 | AA108: 1052.631579 | AB108: 1052.631579 | AC108: 1052.631579 | AD108: 1052.631579 | AE108: 1052.631579
F109: BMP (excl Losses) | J109: kg/mt | T109: =(1-$L$48-$N$48-$M$48/T73)*1000 -> 1000 | U109: 1000 | V109: 1000 | W109: 1000 | X109: 1000 | Y109: 1000 | Z109: 1000 | AA109: 1000 | AB109: 1000 | AC109: 1000 | AD109: 1000 | AE109: 1000
F110: BMP (incl Losses and Moisture) | J110: kg/mt | T110: =T109/(1-$N$41)/$N$42 -> 1052.631579 | U110: 1052.631579 | V110: 1052.631579 | W110: 1052.631579 | X110: 1052.631579 | Y110: 1052.631579 | Z110: 1052.631579 | AA110: 1052.631579 | AB110: 1052.631579 | AC110: 1052.631579 | AD110: 1052.631579 | AE110: 1052.631579
F112: Monthly National Average Yields
F113: SMP | J113: % | N113: =SUMPRODUCT(T113:AE113,$T$21:$AE$21)/$N$21 -> 0 | T113: =T82/SUM(T$71:T$72) -> 0 | U113: =U82/SUM(U$71:U$72) -> 0 | V113: 0 | W113: 0 | X113: 0 | Y113: 0 | Z113: 0 | AA113: 0 | AB113: 0 | AC113: 0 | AD113: 0 | AE113: 0
F114: SMP Butter | J114: % | N114: =SUMPRODUCT(T114:AE114,$T$21:$AE$21)/$N$21 -> 0 | T114: =T83/SUM(T$71:T$72) -> 0 | U114: 0 | V114: 0 | W114: 0 | X114: 0 | Y114: 0 | Z114: 0 | AA114: 0 | AB114: 0 | AC114: 0 | AD114: 0 | AE114: 0
F115: SMP Butter BMP | J115: % | N115: 0 | T115: =T84/SUM(T$71:T$72) -> 0 | U115: 0 | V115: 0 | W115: 0 | X115: 0 | Y115: 0 | Z115: 0 | AA115: 0 | AB115: 0 | AC115: 0 | AD115: 0 | AE115: 0
F116: SMP AMF | J116: % | N116: 0 | T116: =T85/SUM(T$71:T$72) -> 0 | U116: 0 | V116: 0 | W116: 0 | X116: 0 | Y116: 0 | Z116: 0 | AA116: 0 | AB116: 0 | AC116: 0 | AD116: 0 | AE116: 0
F117: SMP AMF BMP | J117: % | N117: 0 | T117: =T86/SUM(T$71:T$72) -> 0 | U117: 0 | V117: 0 | W117: 0 | X117: 0 | Y117: 0 | Z117: 0 | AA117: 0 | AB117: 0 | AC117: 0 | AD117: 0 | AE117: 0
F119: WMP | J119: % | N119: 0 | T119: =T100/SUM(T$71:T$72) -> 0 | U119: 0 | V119: 0 | W119: 0 | X119: 0 | Y119: 0 | Z119: 0 | AA119: 0 | AB119: 0 | AC119: 0 | AD119: 0 | AE119: 0
F120: WMP Butter | J120: % | N120: 0 | T120: =T101/SUM(T$71:T$72) -> 0 | U120: 0 | V120: 0 | W120: 0 | X120: 0 | Y120: 0 | Z120: 0 | AA120: 0 | AB120: 0 | AC120: 0 | AD120: 0 | AE120: 0
F121: WMP Butter BMP | J121: % | N121: 0 | T121: =T102/SUM(T$71:T$72) -> 0 | U121: 0 | V121: 0 | W121: 0 | X121: 0 | Y121: 0 | Z121: 0 | AA121: 0 | AB121: 0 | AC121: 0 | AD121: 0 | AE121: 0
F122: WMP AMF | J122: % | N122: 0 | T122: =T103/SUM(T$71:T$72) -> 0 | U122: 0 | V122: 0 | W122: 0 | X122: 0 | Y122: 0 | Z122: 0 | AA122: 0 | AB122: 0 | AC122: 0 | AD122: 0 | AE122: 0
F123: WMP AMF BMP | J123: % | N123: 0 | T123: =T104/SUM(T$71:T$72) -> 0 | U123: 0 | V123: 0 | W123: 0 | X123: 0 | Y123: 0 | Z123: 0 | AA123: 0 | AB123: 0 | AC123: 0 | AD123: 0 | AE123: 0
F125: Calculated Mix to Model
F126: % of milksolids allocated to WMP | J126: % | N126: =SUMPRODUCT(T126:AE126,'Data Input'!$T$33:$AE$33) -> 0 | T126: =IFERROR(T30/(T30+(1-T30)*(T119/T113)),0) -> 0 | U126: 0 | V126: 0 | W126: 0 | X126: 0 | Y126: 0 | Z126: 0 | AA126: 0 | AB126: 0 | AC126: 0 | AD126: 0 | AE126: 0
F127: % of milkfat allocated to Butter - SMP | J127: % | N127: =SUMPRODUCT(T127:AE127,'Data Input'!$T$33:$AE$33) -> 0 | T127: =IFERROR(T31/(T31+(1-T31)*(T114/T116)),0) -> 0 | U127: 0 | V127: 0 | W127: 0 | X127: 0 | Y127: 0 | Z127: 0 | AA127: 0 | AB127: 0 | AC127: 0 | AD127: 0 | AE127: 0
F128: % of milkfat allocated to Butter - WMP | J128: % | N128: =SUMPRODUCT(T128:AE128,'Data Input'!$T$33:$AE$33) -> 0 | T128: =IFERROR(T31/(T31+(1-T31)*(T120/T122)),0) -> 0 | U128: 0 | V128: 0 | W128: 0 | X128: 0 | Y128: 0 | Z128: 0 | AA128: 0 | AB128: 0 | AC128: 0 | AD128: 0 | AE128: 0
F130: Product Weights
F131: SMP | J131: % | N131: =1-N126 -> 1 | T131: =1-T126 -> 1 | U131: 1 | V131: 1 | W131: 1 | X131: 1 | Y131: 1 | Z131: 1 | AA131: 1 | AB131: 1 | AC131: 1 | AD131: 1 | AE131: 1
F132: SMP Butter | J132: % | N132: =N131*N127 -> 0 | T132: =T131*T127 -> 0 | U132: 0 | V132: 0 | W132: 0 | X132: 0 | Y132: 0 | Z132: 0 | AA132: 0 | AB132: 0 | AC132: 0 | AD132: 0 | AE132: 0
F133: SMP Butter BMP | J133: % | N133: =N132 -> 0 | T133: =T132 -> 0 | U133: =U132 -> 0 | V133: 0 | W133: 0 | X133: 0 | Y133: 0 | Z133: 0 | AA133: 0 | AB133: 0 | AC133: 0 | AD133: 0 | AE133: 0
F134: SMP AMF | J134: % | N134: =N131*(1-N127) -> 1 | T134: =T131*(1-T127) -> 1 | U134: 1 | V134: 1 | W134: 1 | X134: 1 | Y134: 1 | Z134: 1 | AA134: 1 | AB134: 1 | AC134: 1 | AD134: 1 | AE134: 1
F135: SMP AMF BMP | J135: % | N135: =N134 -> 1 | T135: =T134 -> 1 | U135: =U134 -> 1 | V135: 1 | W135: 1 | X135: 1 | Y135: 1 | Z135: 1 | AA135: 1 | AB135: 1 | AC135: 1 | AD135: 1 | AE135: 1
F137: WMP | J137: % | N137: =N126 -> 0 | T137: =T126 -> 0 | U137: 0 | V137: 0 | W137: 0 | X137: 0 | Y137: 0 | Z137: 0 | AA137: 0 | AB137: 0 | AC137: 0 | AD137: 0 | AE137: 0
F138: WMP Butter | J138: % | N138: =N137*N128 -> 0 | T138: =T137*T128 -> 0 | U138: 0 | V138: 0 | W138: 0 | X138: 0 | Y138: 0 | Z138: 0 | AA138: 0 | AB138: 0 | AC138: 0 | AD138: 0 | AE138: 0
F139: WMP Butter BMP | J139: % | N139: =N138 -> 0 | T139: =T138 -> 0 | U139: =U138 -> 0 | V139: 0 | W139: 0 | X139: 0 | Y139: 0 | Z139: 0 | AA139: 0 | AB139: 0 | AC139: 0 | AD139: 0 | AE139: 0
F140: WMP AMF | J140: % | N140: =N137*(1-N128) -> 0 | T140: =T137*(1-T128) -> 0 | U140: 0 | V140: 0 | W140: 0 | X140: 0 | Y140: 0 | Z140: 0 | AA140: 0 | AB140: 0 | AC140: 0 | AD140: 0 | AE140: 0
F141: WMP AMF BMP | J141: % | N141: =N140 -> 0 | T141: =T140 -> 0 | U141: =U140 -> 0 | V141: 0 | W141: 0 | X141: 0 | Y141: 0 | Z141: 0 | AA141: 0 | AB141: 0 | AC141: 0 | AD141: 0 | AE141: 0
F142: Calculated Yields
F143: Butter | N143: =SUMPRODUCT(T143:AE143,$T$21:$AE$21)/$N$21 -> 0 | T143: =T132*T114+T138*T120 -> 0 | U143: 0 | V143: 0 | W143: 0 | X143: 0 | Y143: 0 | Z143: 0 | AA143: 0 | AB143: 0 | AC143: 0 | AD143: 0 | AE143: 0
F144: AMF | N144: =SUMPRODUCT(T144:AE144,$T$21:$AE$21)/$N$21 -> 0 | T144: =T134*T116+T140*T122 -> 0 | U144: 0 | V144: 0 | W144: 0 | X144: 0 | Y144: 0 | Z144: 0 | AA144: 0 | AB144: 0 | AC144: 0 | AD144: 0 | AE144: 0
F145: SMP | N145: =SUMPRODUCT(T145:AE145,$T$21:$AE$21)/$N$21 -> 0 | T145: =T131*T113 -> 0 | U145: 0 | V145: 0 | W145: 0 | X145: 0 | Y145: 0 | Z145: 0 | AA145: 0 | AB145: 0 | AC145: 0 | AD145: 0 | AE145: 0
F146: BMP | N146: =SUMPRODUCT(T146:AE146,$T$21:$AE$21)/$N$21 -> 0 | T146: =T133*T115+T139*T121+T135*T117+T141*T123 -> 0 | U146: 0 | V146: 0 | W146: 0 | X146: 0 | Y146: 0 | Z146: 0 | AA146: 0 | AB146: 0 | AC146: 0 | AD146: 0 | AE146: 0
F147: WMP | N147: =SUMPRODUCT(T147:AE147,$T$21:$AE$21)/$N$21 -> 0 | T147: =T137*T119 -> 0 | U147: 0 | V147: 0 | W147: 0 | X147: 0 | Y147: 0 | Z147: 0 | AA147: 0 | AB147: 0 | AC147: 0 | AD147: 0 | AE147: 0
F148: Total | N148: =SUM(N143:N147) -> 0 | T148: =SUM(T143:T147) -> 0 | U148: 0 | V148: 0 | W148: 0 | X148: 0 | Y148: 0 | Z148: 0 | AA148: 0 | AB148: 0 | AC148: 0 | AD148: 0 | AE148: 0
D150: Actual yield calculations | F150: Product Mix to Model
F151: Butter | J151: MT | N151: =SUM(T151:AE151) -> 0 | T151: =T143*T$21 -> 0 | U151: =U143*U$21 -> 0 | V151: 0 | W151: 0 | X151: 0 | Y151: 0 | Z151: 0 | AA151: 0 | AB151: 0 | AC151: 0 | AD151: 0 | AE151: 0
F152: AMF | J152: MT | N152: =SUM(T152:AE152) -> 0 | T152: =T144*T$21 -> 0 | U152: 0 | V152: 0 | W152: 0 | X152: 0 | Y152: 0 | Z152: 0 | AA152: 0 | AB152: 0 | AC152: 0 | AD152: 0 | AE152: 0
F153: SMP | J153: MT | N153: =SUM(T153:AE153) -> 0 | T153: =T145*T$21 -> 0 | U153: =U145*U$21 -> 0 | V153: 0 | W153: 0 | X153: 0 | Y153: 0 | Z153: 0 | AA153: 0 | AB153: 0 | AC153: 0 | AD153: 0 | AE153: 0
F154: BMP | J154: MT | N154: =SUM(T154:AE154) -> 0 | T154: 0 | U154: 0 | V154: 0 | W154: =W146*W$21 -> 0 | X154: 0 | Y154: 0 | Z154: 0 | AA154: 0 | AB154: 0 | AC154: 0 | AD154: 0 | AE154: 0
F155: WMP | J155: MT | N155: =SUM(T155:AE155) -> 0 | T155: =T147*T$21 -> 0 | U155: 0 | V155: 0 | W155: 0 | X155: 0 | Y155: 0 | Z155: 0 | AA155: 0 | AB155: 0 | AC155: 0 | AD155: 0 | AE155: 0
F156: Total | J156: MT | N156: =SUM(N151:N155) -> 0 | T156: =SUM(T151:T155) -> 0 | U156: =SUM(U151:U155) -> 0 | V156: =SUM(V151:V155) -> 0 | W156: =SUM(W151:W155) -> 0 | X156: 0 | Y156: 0 | Z156: 0 | AA156: 0 | AB156: 0 | AC156: 0 | AD156: 0 | AE156: 0
F158: Fat Usage
F159: Butter | J159: 000 kgMS | N159: =SUM(T159:AE159) -> 0 | T159: =T151*$L59 -> 0 | U159: 0 | V159: 0 | W159: 0 | X159: 0 | Y159: 0 | Z159: 0 | AA159: 0 | AB159: 0 | AC159: 0 | AD159: 0 | AE159: 0
F160: AMF | J160: 000 kgMS | N160: =SUM(T160:AE160) -> 0 | T160: 0 | U160: 0 | V160: 0 | W160: 0 | X160: 0 | Y160: 0 | Z160: 0 | AA160: 0 | AB160: 0 | AC160: 0 | AD160: 0 | AE160: 0
F161: SMP | J161: 000 kgMS | N161: =SUM(T161:AE161) -> 0 | T161: 0 | U161: 0 | V161: 0 | W161: 0 | X161: 0 | Y161: 0 | Z161: 0 | AA161: 0 | AB161: 0 | AC161: 0 | AD161: 0 | AE161: 0
F162: BMP | J162: 000 kgMS | N162: =SUM(T162:AE162) -> 0 | T162: 0 | U162: 0 | V162: 0 | W162: 0 | X162: 0 | Y162: 0 | Z162: 0 | AA162: 0 | AB162: 0 | AC162: 0 | AD162: 0 | AE162: 0
F163: WMP | J163: 000 kgMS | N163: =SUM(T163:AE163) -> 0 | T163: 0 | U163: 0 | V163: 0 | W163: 0 | X163: 0 | Y163: 0 | Z163: 0 | AA163: 0 | AB163: 0 | AC163: 0 | AD163: 0 | AE163: 0
F164: Total | J164: 000 kgMS | N164: =SUM(N159:N163) -> 0 | T164: =SUM(T159:T163) -> 0 | U164: 0 | V164: 0 | W164: 0 | X164: 0 | Y164: 0 | Z164: 0 | AA164: 0 | AB164: 0 | AC164: 0 | AD164: 0 | AE164: 0
F166: Protein Usage
F167: Butter | J167: 000 kgMS | N167: =SUM(T167:AE167) -> 0 | T167: =T151*$M59 -> 0 | U167: 0 | V167: 0 | W167: 0 | X167: 0 | Y167: 0 | Z167: 0 | AA167: 0 | AB167: 0 | AC167: 0 | AD167: 0 | AE167: 0
F168: AMF | J168: 000 kgMS | N168: =SUM(T168:AE168) -> 0 | T168: 0 | U168: 0 | V168: 0 | W168: 0 | X168: 0 | Y168: 0 | Z168: 0 | AA168: 0 | AB168: 0 | AC168: 0 | AD168: 0 | AE168: 0
F169: SMP | J169: 000 kgMS | N169: =SUM(T169:AE169) -> 0 | T169: 0 | U169: 0 | V169: 0 | W169: 0 | X169: 0 | Y169: 0 | Z169: 0 | AA169: 0 | AB169: 0 | AC169: 0 | AD169: 0 | AE169: 0
F170: BMP | J170: 000 kgMS | N170: =SUM(T170:AE170) -> 0 | T170: 0 | U170: 0 | V170: 0 | W170: 0 | X170: 0 | Y170: 0 | Z170: 0 | AA170: 0 | AB170: 0 | AC170: 0 | AD170: 0 | AE170: 0
F171: WMP | J171: 000 kgMS | N171: =SUM(T171:AE171) -> 0 | T171: 0 | U171: 0 | V171: 0 | W171: 0 | X171: 0 | Y171: 0 | Z171: 0 | AA171: 0 | AB171: 0 | AC171: 0 | AD171: 0 | AE171: 0
F172: Total | J172: 000 kgMS | N172: =SUM(N167:N171) -> 0 | T172: =SUM(T167:T171) -> 0 | U172: 0 | V172: 0 | W172: 0 | X172: 0 | Y172: 0 | Z172: 0 | AA172: 0 | AB172: 0 | AC172: 0 | AD172: 0 | AE172: 0
F174: Milk Composition
F175: Fat | J175: MT | N175: =IF(ISERROR(N164/SUM(N164,N172)),"N/A",N164/SUM(N164,N172)) -> N/A | T175: =IF(ISERROR(T164/SUM(T164,T172)),"N/A",T164/SUM(T164,T172)) -> N/A | U175: =IF(ISERROR(U164/SUM(U164,U172)),"N/A",U164/SUM(U164,U172)) -> N/A | V175: N/A | W175: N/A | X175: N/A | Y175: N/A | Z175: N/A | AA175: N/A | AB175: N/A | AC175: N/A | AD175: N/A | AE175: N/A
F176: Protein | J176: MT | N176: =IF(ISERROR(N172/SUM(N164,N172)),"N/A",N172/SUM(N164,N172)) -> N/A | T176: =IF(ISERROR(T172/SUM(T164,T172)),"N/A",T172/SUM(T164,T172)) -> N/A | U176: =IF(ISERROR(U172/SUM(U164,U172)),"N/A",U172/SUM(U164,U172)) -> N/A | V176: N/A | W176: N/A | X176: N/A | Y176: N/A | Z176: N/A | AA176: N/A | AB176: N/A | AC176: N/A | AD176: N/A | AE176: N/A
F178: Required Lactose - Calculated
F179: SMP | J179: MT | N179: =SUM(T179:AE179) -> 0 | T179: =T66*T153 -> 0 | U179: 0 | V179: 0 | W179: 0 | X179: 0 | Y179: 0 | Z179: 0 | AA179: 0 | AB179: 0 | AC179: 0 | AD179: 0 | AE179: 0
F180: BMP | J180: MT | N180: =SUM(T180:AE180) -> 0 | T180: 0 | U180: 0 | V180: 0 | W180: 0 | X180: 0 | Y180: 0 | Z180: 0 | AA180: 0 | AB180: 0 | AC180: 0 | AD180: 0 | AE180: 0
F181: WMP | J181: MT | N181: =SUM(T181:AE181) -> 0 | T181: 0 | U181: 0 | V181: 0 | W181: 0 | X181: 0 | Y181: 0 | Z181: 0 | AA181: 0 | AB181: 0 | AC181: 0 | AD181: 0 | AE181: 0
F182: Total | J182: MT | N182: =SUM(T182:AE182) -> 0 | T182: =SUM(T179:T181) -> 0 | U182: =SUM(U179:U181) -> 0 | V182: 0 | W182: 0 | X182: 0 | Y182: 0 | Z182: 0 | AA182: 0 | AB182: 0 | AC182: 0 | AD182: 0 | AE182: 0
F184: Standardised Product Mix
D185: Hard coded outputs from actual yield calculations | F185: Butter | J185: MT | N185: =SUM(T185:AE185) -> 258199.3593 | T185: 67.904349 | U185: 812.2500307 | V185: 17873.77643 | W185: 30214.75597 | X185: 32690.54196 | Y185: 31387.50256 | Z185: 32843.76713 | AA185: 33839.60485 | AB185: 25147.88007 | AC185: 15895.1164 | AD185: 19698.39219 | AE185: 17727.86737
F186: AMF | J186: MT | N186: =SUM(T186:AE186) -> 150753.018 | T186: 4905.196615 | U186: 6015.30858 | V186: 8396.831308 | W186: 12881.77501 | X186: 16406.01786 | Y186: 16384.28877 | Z186: 17515.90125 | AA186: 16275.38295 | AB186: 12912.01455 | AC186: 11428.57805 | AD186: 13506.8104 | AE186: 14124.9127
F187: SMP | J187: MT | N187: =SUM(T187:AE187) -> 642724.4984 | T187: 9786.423919 | U187: 14251.7843 | V187: 43629.90043 | W187: 68547.2164 | X187: 76607.3087 | Y187: 73857.17398 | Z187: 80951.71567 | AA187: 82163.45016 | AB187: 54703.54044 | AC187: 29227.16354 | AD187: 49967.08829 | AE187: 59031.73255
F188: BMP | J188: MT | N188: =SUM(T188:AE188) -> 63792.57619 | T188: 919.3310631 | U188: 1220.406397 | V188: 3903.078813 | W188: 6147.976649 | X188: 7130.275253 | Y188: 6962.305023 | Z188: 7416.366335 | AA188: 7467.884637 | AB188: 5902.378578 | AC188: 4690.083308 | AD188: 6038.507129 | AE188: 5993.983006
F189: WMP | J189: MT | N189: =SUM(T189:AE189) -> 1730385.972 | T189: 12478.86283 | U189: 13977.3614 | V189: 103514.8978 | W189: 203620.8137 | X189: 254384.9706 | Y189: 233973.0884 | Z189: 196051.431 | AA189: 170997.1659 | AB189: 149357.6664 | AC189: 201033.9611 | AD189: 141966.8371 | AE189: 49028.91542
F190: Total | J190: MT | N190: =SUM(N185:N189) -> 2845855.423 | T190: =SUM(T185:T189) -> 28157.71877 | U190: =SUM(U185:U189) -> 36277.11071 | V190: 177318.4848 | W190: 321412.5377 | X190: 387219.1144 | Y190: 362564.3588 | Z190: 334779.1814 | AA190: 310743.4885 | AB190: 248023.48 | AC190: 262274.9024 | AD190: 231177.6351 | AE190: 145907.411
F192: Unstandardised Product Mix
F193: Butter | J193: MT | N193: =SUM(T193:AE193) -> 0
F194: AMF | J194: MT | N194: =SUM(T194:AE194) -> 0
F195: SMP | J195: MT | N195: =SUM(T195:AE195) -> 0
F196: BMP | J196: MT | N196: =SUM(T196:AE196) -> 0
F197: WMP | J197: MT | N197: =SUM(T197:AE197) -> 0
F198: Total | J198: MT | N198: =SUM(N193:N197) -> 0 | T198: =SUM(T193:T197) -> 0 | U198: =SUM(U193:U197) -> 0 | V198: 0 | W198: 0 | X198: 0 | Y198: 0 | Z198: 0 | AA198: 0 | AB198: 0 | AC198: 0 | AD198: 0 | AE198: 0
F200: Product Mix to Model
F201: Butter | J201: MT | N201: =SUM(T201:AE201) -> 258199.3593 | T201: =T185+T193 -> 67.904349 | U201: =U185+U193 -> 812.2500307 | V201: 17873.77643 | W201: 30214.75597 | X201: 32690.54196 | Y201: 31387.50256 | Z201: 32843.76713 | AA201: 33839.60485 | AB201: 25147.88007 | AC201: 15895.1164 | AD201: 19698.39219 | AE201: 17727.86737
F202: AMF | J202: MT | N202: =SUM(T202:AE202) -> 150753.018 | T202: =T186+T194 -> 4905.196615 | U202: 6015.30858 | V202: 8396.831308 | W202: 12881.77501 | X202: 16406.01786 | Y202: 16384.28877 | Z202: 17515.90125 | AA202: 16275.38295 | AB202: 12912.01455 | AC202: 11428.57805 | AD202: 13506.8104 | AE202: 14124.9127
F203: SMP | J203: MT | N203: =SUM(T203:AE203) -> 642724.4984 | T203: =T187+T195 -> 9786.423919 | U203: 14251.7843 | V203: 43629.90043 | W203: 68547.2164 | X203: 76607.3087 | Y203: 73857.17398 | Z203: 80951.71567 | AA203: 82163.45016 | AB203: 54703.54044 | AC203: 29227.16354 | AD203: 49967.08829 | AE203: 59031.73255
F204: BMP | J204: MT | N204: =SUM(T204:AE204) -> 63792.57619 | T204: =T188+T196 -> 919.3310631 | U204: 1220.406397 | V204: 3903.078813 | W204: 6147.976649 | X204: 7130.275253 | Y204: 6962.305023 | Z204: 7416.366335 | AA204: 7467.884637 | AB204: 5902.378578 | AC204: 4690.083308 | AD204: 6038.507129 | AE204: 5993.983006
F205: WMP | J205: MT | N205: =SUM(T205:AE205) -> 1730385.972 | T205: =T189+T197 -> 12478.86283 | U205: 13977.3614 | V205: 103514.8978 | W205: 203620.8137 | X205: 254384.9706 | Y205: 233973.0884 | Z205: 196051.431 | AA205: 170997.1659 | AB205: 149357.6664 | AC205: 201033.9611 | AD205: 141966.8371 | AE205: 49028.91542
F206: Total | J206: MT | N206: =SUM(N201:N205) -> 2845855.423 | T206: =SUM(T201:T205) -> 28157.71877 | U206: =SUM(U201:U205) -> 36277.11071 | V206: 177318.4848 | W206: 321412.5377 | X206: 387219.1144 | Y206: 362564.3588 | Z206: 334779.1814 | AA206: 310743.4885 | AB206: 248023.48 | AC206: 262274.9024 | AD206: 231177.6351 | AE206: 145907.411
F208: Fat Usage
F209: Butter | J209: 000 kgMS | N209: =SUM(T209:AE209) -> 214681.3936 | T209: 56.45947501 | U209: 675.3501209 | V209: 14861.25777 | W209: 25122.23863 | X209: 27180.74562 | Y209: 26097.32576 | Z209: 27308.1456 | AA209: 28136.14079 | AB209: 20909.35452 | AC209: 13216.08911 | AD209: 16378.34539 | AE209: 14739.94081
F210: AMF | J210: 000 kgMS | N210: =SUM(T210:AE210) -> 151048.4704 | T210: 4914.810035 | U210: 6027.097646 | V210: 8413.287787 | W210: 12907.02128 | X210: 16438.17109 | Y210: 16416.39942 | Z210: 17550.22969 | AA210: 16307.28016 | AB210: 12937.32009 | AC210: 11450.97628 | AD210: 13533.28164 | AE210: 14152.59532
F211: SMP | J211: 000 kgMS | N211: =SUM(T211:AE211) -> 5640.197769 | T211: 85.88029007 | U211: 125.0658442 | V211: 382.8720824 | W211: 601.5327843 | X211: 672.2637347 | Y211: 648.1300604 | Z211: 710.3878681 | AA211: 721.0213855 | AB211: 480.048275 | AC211: 256.481561 | AD211: 438.4837681 | AE211: 518.0301157
F212: BMP | J212: 000 kgMS | N212: =SUM(T212:AE212) -> 4984.372872 | T212: 71.83106695 | U212: 95.35530467 | V212: 304.9633879 | W212: 480.3663664 | X212: 557.1173429 | Y212: 543.9931471 | Z212: 579.4708001 | AA212: 583.4961341 | AB212: 461.1767924 | AC212: 366.455243 | AD212: 471.8130685 | AE212: 468.3342181
F213: WMP | J213: 000 kgMS | N213: =SUM(T213:AE213) -> 453553.2398 | T213: 3270.847521 | U213: 3663.620516 | V213: 27132.39591 | W213: 53371.26008 | X213: 66677.10526 | Y213: 61326.92591 | Z213: 51387.24143 | AA213: 44820.24233 | AB213: 39148.29096 | AC213: 52693.21751 | AD213: 37211.07311 | AE213: 12851.01925
F214: Total | J214: 000 kgMS | N214: =SUM(N209:N213) -> 829907.6745 | T214: =SUM(T209:T213) -> 8399.828388 | U214: =SUM(U209:U213) -> 10586.48943 | V214: =SUM(V209:V213) -> 51094.77693 | W214: =SUM(W209:W213) -> 92482.41914 | X214: =SUM(X209:X213) -> 111525.4031 | Y214: =SUM(Y209:Y213) -> 105032.7743 | Z214: =SUM(Z209:Z213) -> 97535.47539 | AA214: =SUM(AA209:AA213) -> 90568.18081 | AB214: =SUM(AB209:AB213) -> 73936.19063 | AC214: =SUM(AC209:AC213) -> 77983.2197 | AD214: =SUM(AD209:AD213) -> 68032.99697 | AE214: =SUM(AE209:AE213) -> 42729.91971
F216: Protein Usage
F217: Butter | J217: 000 kgMS | N217: =SUM(T217:AE217) -> 1381.437577 | T217: 0.3633069408 | U217: 4.345761033 | V217: 95.62961921 | W217: 161.6572535 | X217: 174.9033894 | Y217: 167.9317703 | Z217: 175.7231862 | AA217: 181.0511918 | AB217: 134.5480741 | AC217: 85.04324389 | AD217: 105.3918153 | AE217: 94.8489656
F218: AMF | J218: 000 kgMS | N218: =SUM(T218:AE218) -> 120.6024144 | T218: 3.924157292 | U218: 4.812246864 | V218: 6.717465046 | W218: 10.30542 | X218: 13.12481428 | Y218: 13.10743102 | Z218: 14.012721 | AA218: 13.02030636 | AB218: 10.32961164 | AC218: 9.142862444 | AD218: 10.80544832 | AE218: 11.29993016
F219: SMP | J219: 000 kgMS | N219: =SUM(T219:AE219) -> 210748.1753 | T219: 3208.950318 | U219: 4673.133734 | V219: 14306.16372 | W219: 22476.50558 | X219: 25119.39495 | Y219: 24217.63086 | Z219: 26543.91797 | AA219: 26941.24347 | AB219: 17937.18982 | AC219: 9583.532914 | AD219: 16384.11591 | AE219: 19356.39601
F220: BMP | J220: 000 kgMS | N220: =SUM(T220:AE220) -> 19489.26247 | T220: 280.8647252 | U220: 372.8462152 | V220: 1192.42915 | W220: 1878.267625 | X220: 2178.369556 | Y220: 2127.052991 | Z220: 2265.773209 | AA220: 2281.512559 | AB220: 1803.234987 | AC220: 1432.866801 | AD220: 1844.823605 | AE220: 1831.221045
F221: WMP | J221: 000 kgMS | N221: =SUM(T221:AE221) -> 418658.5442 | T221: 3019.200705 | U221: 3381.755211 | V221: 25044.93051 | W221: 49265.07428 | X221: 61547.21733 | Y221: 56608.66084 | Z221: 47433.69863 | AA221: 41371.93996 | AB221: 36136.36738 | AC221: 48639.19778 | AD221: 34348.19185 | AE221: 11862.30973
F222: Total | J222: 000 kgMS | N222: =SUM(N217:N221) -> 650398.0219 | T222: =SUM(T217:T221) -> 6513.303212 | U222: =SUM(U217:U221) -> 8436.893168 | V222: =SUM(V217:V221) -> 40645.87047 | W222: =SUM(W217:W221) -> 73791.81016 | X222: =SUM(X217:X221) -> 89033.01005 | Y222: =SUM(Y217:Y221) -> 83134.38389 | Z222: =SUM(Z217:Z221) -> 76433.12571 | AA222: =SUM(AA217:AA221) -> 70788.76749 | AB222: =SUM(AB217:AB221) -> 56021.66987 | AC222: =SUM(AC217:AC221) -> 59749.7836 | AD222: =SUM(AD217:AD221) -> 52693.32863 | AE222: =SUM(AE217:AE221) -> 33156.07569
F224: Milk Composition
F225: Fat | J225: % | N225: =IF(ISERROR(N214/SUM(N214,N222)),"N/A",N214/SUM(N214,N222)) -> 0.5606326291 | T225: 0.5632504703 | U225: 0.5564987918 | V225: 0.5569480746 | W225: 0.5562041666 | X225: 0.5560744191 | Y225: 0.5581886622 | Z225: 0.5606498803 | AA225: 0.5612908633 | AB225: 0.5689243447 | AC225: 0.5661912384 | AD225: 0.5635307513 | AE225: 0.5630804404
F226: Protein | J226: % | N226: =IF(ISERROR(N222/SUM(N214,N222)),"N/A",N222/SUM(N214,N222)) -> 0.4393673709 | T226: 0.4367495297 | U226: 0.4435012082 | V226: 0.4430519254 | W226: 0.4437958334 | X226: 0.4439255809 | Y226: 0.4418113378 | Z226: 0.4393501197 | AA226: 0.4387091367 | AB226: 0.4310756553 | AC226: 0.4338087616 | AD226: 0.4364692487 | AE226: 0.4369195596
F228: Required Lactose - Calculated
F229: SMP | J229: MT | N229: =SUM(T229:AE229) -> 0
F230: BMP | J230: MT | N230: =SUM(T230:AE230) -> 0
F231: WMP | J231: MT | N231: =SUM(T231:AE231) -> 0
F232: Total | J232: MT | N232: =SUM(T232:AE232) -> 363785.4471 | T232: 3807.965803 | U232: 4821.255763 | V232: 20868.81775 | W232: 33611.57584 | X232: 41768.15543 | Y232: 39579.04049 | Z232: 38585.66325 | AA232: 37812.8946 | AB232: 33417.7256 | AC232: 41963.04512 | AD232: 40797.35194 | AE232: 26751.95549
D234: COMPONENT MILK PRICE
D237: COMMENT | F237: The average cash milk price used for inventory valuation is the average cash amount paid for all supply, including milk supplied on standard terms, Winter Milk, and milk supplied under non-standard
F238: contracts, adjusted for demerit deductions for milk quality issues.
F241: Average cash milk price | J241: NZD | N241: =IF(ISERROR(N1275),2,N1275) -> 8.222182541 | T241: =$N241 -> 8.222182541 | U241: 8.222182541 | V241: 8.222182541 | W241: 8.222182541 | X241: 8.222182541 | Y241: 8.222182541 | Z241: 8.222182541 | AA241: 8.222182541 | AB241: 8.222182541 | AC241: 8.222182541 | AD241: 8.222182541 | AE241: 8.222182541 | AF241: 8.222182541 | AG241: 8.222182541 | AH241: 8.222182541 | AI241: 8.222182541 | AJ241: 8.222182541 | AK241: 8.222182541 | AL241: 8.222182541 | AM241: 8.222182541 | AN241: 8.222182541 | AO241: 8.222182541
F243: kgMS into production
F244: Total | J244: 000 kgMS | K244: ="Row "&ROW(K$21) -> Row 21 | N244: =SUM(T244:AE244) -> 1480305.696 | T244: =T21 -> 14913.1316 | U244: 19023.3826 | V244: 91740.6474 | W244: 166274.2293 | X244: 200558.4131 | Y244: 188167.1582 | Z244: 173968.6011 | AA244: 161356.9483 | AB244: 129957.8605 | AC244: 137733.0033 | AD244: 120726.3256 | AE244: 75885.9954
F245: Fat | J245: 000 kgMS | N245: =SUM(T245:AE245) -> 829907.6745 | T245: =T214 -> 8399.828388 | U245: =U214 -> 10586.48943 | V245: 51094.77693 | W245: 92482.41914 | X245: 111525.4031 | Y245: 105032.7743 | Z245: 97535.47539 | AA245: 90568.18081 | AB245: 73936.19063 | AC245: 77983.2197 | AD245: 68032.99697 | AE245: 42729.91971
F246: Protein | J246: 000 kgMS | N246: =SUM(T246:AE246) -> 650398.0219 | T246: =T222 -> 6513.303212 | U246: =U222 -> 8436.893168 | V246: 40645.87047 | W246: 73791.81016 | X246: 89033.01005 | Y246: 83134.38389 | Z246: 76433.12571 | AA246: 70788.76749 | AB246: 56021.66987 | AC246: 59749.7836 | AD246: 52693.32863 | AE246: 33156.07569
... 854 more rows

Sheet Summary
J3: 1
S4: MONTHLY
I5: Period Number | O5: 1 | P5: 1 | Q5: 1 | R5: =IF(Q5=12,1,Q5+1) -> 2 | S5: 3 | T5: 4 | U5: 5 | V5: 6 | W5: 7 | X5: 8 | Y5: 9 | Z5: 10 | AA5: 11 | AB5: 12 | AC5: 1 | AD5: 2 | AE5: 3 | AF5: 4 | AG5: 5 | AH5: 6 | AI5: 7 | AJ5: 8
O6: =Global!R36 -> 2022-04-30 | P6: =Global!S36 -> 2022-05-31 | Q6: =Global!T36 -> 2022-06-30 | R6: =Global!U36 -> 2022-07-31 | S6: =Global!V36 -> 2022-08-31 | T6: =Global!W36 -> 2022-09-30 | U6: =Global!X36 -> 2022-10-31 | V6: =Global!Y36 -> 2022-11-30 | W6: =Global!Z36 -> 2022-12-31 | X6: =Global!AA36 -> 2023-01-31 | Y6: =Global!AB36 -> 2023-02-28 | Z6: =Global!AC36 -> 2023-03-31 | AA6: =Global!AD36 -> 2023-04-30 | AB6: =Global!AE36 -> 2023-05-31 | AC6: =Global!AF36 -> 2023-06-30 | AD6: =Global!AG36 -> 2023-07-31 | AE6: =Global!AH36 -> 2023-08-31 | AF6: =Global!AI36 -> 2023-09-30 | AG6: =Global!AJ36 -> 2023-10-31 | AH6: =Global!AK36 -> 2023-11-30 | AI6: =Global!AL36 -> 2023-12-31 | AJ6: =Global!AM36 -> 2024-01-31
I7: Period | O7: 1 | P7: 1 | Q7: 1 | R7: =Q7+1 -> 2 | S7: 3 | T7: 4 | U7: 5 | V7: 6 | W7: 7 | X7: 8 | Y7: 9 | Z7: 10 | AA7: 11 | AB7: 12 | AC7: 13 | AD7: 14 | AE7: 15 | AF7: 16 | AG7: 17 | AH7: 18 | AI7: 19 | AJ7: 20
I9: Financial Year | L9: =Global!O7 -> 2023-05-31 | O9: =Global!R36 -> 2022-04-30 | P9: =Global!S36 -> 2022-05-31 | Q9: =Global!T36 -> 2022-06-30 | R9: =Global!U36 -> 2022-07-31 | S9: =Global!V36 -> 2022-08-31 | T9: =Global!W36 -> 2022-09-30 | U9: =Global!X36 -> 2022-10-31 | V9: =Global!Y36 -> 2022-11-30 | W9: =Global!Z36 -> 2022-12-31 | X9: =Global!AA36 -> 2023-01-31 | Y9: =Global!AB36 -> 2023-02-28 | Z9: =Global!AC36 -> 2023-03-31 | AA9: =Global!AD36 -> 2023-04-30 | AB9: =Global!AE36 -> 2023-05-31 | AC9: =Global!AF36 -> 2023-06-30 | AD9: =Global!AG36 -> 2023-07-31 | AE9: =Global!AH36 -> 2023-08-31 | AF9: =Global!AI36 -> 2023-09-30 | AG9: =Global!AJ36 -> 2023-10-31 | AH9: =Global!AK36 -> 2023-11-30 | AI9: =Global!AL36 -> 2023-12-31 | AJ9: =Global!AM36 -> 2024-01-31
I10: KGMS 000s
I11: Milk Supply Paid for | L11: =SUM(O11:AB11) -> 1482585.708 | O11: ='Data Input'!R31 -> 0 | P11: ='Data Input'!S31 -> 0 | Q11: ='Data Input'!T31 -> 14913.1316 | R11: ='Data Input'!U31 -> 19030.0445 | S11: ='Data Input'!V31 -> 91896.8964 | T11: ='Data Input'!W31 -> 166274.2293 | U11: ='Data Input'!X31 -> 200564.0825 | V11: ='Data Input'!Y31 -> 188167.1582 | W11: ='Data Input'!Z31 -> 173968.6011 | X11: ='Data Input'!AA31 -> 161402.504 | Y11: ='Data Input'!AB31 -> 130738.8757 | Z11: ='Data Input'!AC31 -> 138233.5264 | AA11: ='Data Input'!AD31 -> 121187.2426 | AB11: ='Data Input'!AE31 -> 76209.4158
I12: Milk Supply Collected | L12: =SUM(O12:AB12) -> 1480305.696 | O12: ='Data Input'!R32 -> 0 | P12: ='Data Input'!S32 -> 0 | Q12: ='Data Input'!T32 -> 14913.1316 | R12: ='Data Input'!U32 -> 19023.3826 | S12: ='Data Input'!V32 -> 91740.6474 | T12: ='Data Input'!W32 -> 166274.2293 | U12: ='Data Input'!X32 -> 200558.4131 | V12: ='Data Input'!Y32 -> 188167.1582 | W12: ='Data Input'!Z32 -> 173968.6011 | X12: ='Data Input'!AA32 -> 161356.9483 | Y12: ='Data Input'!AB32 -> 129957.8605 | Z12: ='Data Input'!AC32 -> 137733.0033 | AA12: ='Data Input'!AD32 -> 120726.3256 | AB12: ='Data Input'!AE32 -> 75885.9954
I14: $'000
I16: NZD Revenue
I17: Sales | J17: =$J$3&I17 -> 1Sales | L17: =SUM(O17:AJ17) -> 16158839.37 | O17: =-SUMIF(Calculations!$I$15:$I$1344,$J17,Calculations!R$15:R$1344) -> 0 | P17: =-SUMIF(Calculations!$I$15:$I$1344,$J17,Calculations!S$15:S$1344) -> 0 | Q17: =-SUMIF(Calculations!$I$15:$I$1344,$J17,Calculations!T$15:T$1344) -> 0 | R17: =-SUMIF(Calculations!$I$15:$I$1344,$J17,Calculations!U$15:U$1344) -> 0 | S17: =-SUMIF(Calculations!$I$15:$I$1344,$J17,Calculations!V$15:V$1344) -> 0 | T17: =-SUMIF(Calculations!$I$15:$I$1344,$J17,Calculations!W$15:W$1344) -> 837115.3677 | U17: =-SUMIF(Calculations!$I$15:$I$1344,$J17,Calculations!X$15:X$1344) -> 837115.3677 | V17: =-SUMIF(Calculations!$I$15:$I$1344,$J17,Calculations!Y$15:Y$1344) -> 1831421.384 | W17: =-SUMIF(Calculations!$I$15:$I$1344,$J17,Calculations!Z$15:Z$1344) -> 1831421.384 | X17: =-SUMIF(Calculations!$I$15:$I$1344,$J17,Calculations!AA$15:AA$1344) -> 1831421.384 | Y17: =-SUMIF(Calculations!$I$15:$I$1344,$J17,Calculations!AB$15:AB$1344) -> 1386083.329 | Z17: =-SUMIF(Calculations!$I$15:$I$1344,$J17,Calculations!AC$15:AC$1344) -> 1386083.329 | AA17: =-SUMIF(Calculations!$I$15:$I$1344,$J17,Calculations!AD$15:AD$1344) -> 1386083.329 | AB17: =-SUMIF(Calculations!$I$15:$I$1344,$J17,Calculations!AE$15:AE$1344) -> 1347714.628 | AC17: =-SUMIF(Calculations!$I$15:$I$1344,$J17,Calculations!AF$15:AF$1344) -> 1347714.628 | AD17: =-SUMIF(Calculations!$I$15:$I$1344,$J17,Calculations!AG$15:AG$1344) -> 1347714.628 | AE17: =-SUMIF(Calculations!$I$15:$I$1344,$J17,Calculations!AH$15:AH$1344) -> 262983.5379 | AF17: =-SUMIF(Calculations!$I$15:$I$1344,$J17,Calculations!AI$15:AI$1344) -> 262983.5379 | AG17: =-SUMIF(Calculations!$I$15:$I$1344,$J17,Calculations!AJ$15:AJ$1344) -> 262983.5379 | AH17: =-SUMIF(Calculations!$I$15:$I$1344,$J17,Calculations!AK$15:AK$1344) -> 0 | AI17: =-SUMIF(Calculations!$I$15:$I$1344,$J17,Calculations!AL$15:AL$1344) -> 0 | AJ17: =-SUMIF(Calculations!$I$15:$I$1344,$J17,Calculations!AM$15:AM$1344) -> 0
I18: Downgrade expense (excl rework) | J18: =$J$3&I18 -> 1Downgrade expense (excl rework) | L18: =SUM(O18:AJ18) -> 0 | O18: =-SUMIF(Calculations!$I$15:$I$1344,$J18,Calculations!R$15:R$1344) -> 0 | P18: =-SUMIF(Calculations!$I$15:$I$1344,$J18,Calculations!S$15:S$1344) -> 0 | Q18: =-SUMIF(Calculations!$I$15:$I$1344,$J18,Calculations!T$15:T$1344) -> 0 | R18: =-SUMIF(Calculations!$I$15:$I$1344,$J18,Calculations!U$15:U$1344) -> 0 | S18: =-SUMIF(Calculations!$I$15:$I$1344,$J18,Calculations!V$15:V$1344) -> 0 | T18: =-SUMIF(Calculations!$I$15:$I$1344,$J18,Calculations!W$15:W$1344) -> 0 | U18: =-SUMIF(Calculations!$I$15:$I$1344,$J18,Calculations!X$15:X$1344) -> 0 | V18: =-SUMIF(Calculations!$I$15:$I$1344,$J18,Calculations!Y$15:Y$1344) -> 0 | W18: =-SUMIF(Calculations!$I$15:$I$1344,$J18,Calculations!Z$15:Z$1344) -> 0 | X18: =-SUMIF(Calculations!$I$15:$I$1344,$J18,Calculations!AA$15:AA$1344) -> 0 | Y18: =-SUMIF(Calculations!$I$15:$I$1344,$J18,Calculations!AB$15:AB$1344) -> 0 | Z18: =-SUMIF(Calculations!$I$15:$I$1344,$J18,Calculations!AC$15:AC$1344) -> 0 | AA18: =-SUMIF(Calculations!$I$15:$I$1344,$J18,Calculations!AD$15:AD$1344) -> 0 | AB18: =-SUMIF(Calculations!$I$15:$I$1344,$J18,Calculations!AE$15:AE$1344) -> 0 | AC18: =-SUMIF(Calculations!$I$15:$I$1344,$J18,Calculations!AF$15:AF$1344) -> 0 | AD18: =-SUMIF(Calculations!$I$15:$I$1344,$J18,Calculations!AG$15:AG$1344) -> 0 | AE18: =-SUMIF(Calculations!$I$15:$I$1344,$J18,Calculations!AH$15:AH$1344) -> 0 | AF18: =-SUMIF(Calculations!$I$15:$I$1344,$J18,Calculations!AI$15:AI$1344) -> 0 | AG18: =-SUMIF(Calculations!$I$15:$I$1344,$J18,Calculations!AJ$15:AJ$1344) -> 0 | AH18: =-SUMIF(Calculations!$I$15:$I$1344,$J18,Calculations!AK$15:AK$1344) -> 0 | AI18: =-SUMIF(Calculations!$I$15:$I$1344,$J18,Calculations!AL$15:AL$1344) -> 0 | AJ18: =-SUMIF(Calculations!$I$15:$I$1344,$J18,Calculations!AM$15:AM$1344) -> 0
I19: Net Sales | L19: =SUM(L17:L18) -> 16158839.37 | O19: =SUM(O17:O18) -> 0 | P19: =SUM(P17:P18) -> 0 | Q19: =SUM(Q17:Q18) -> 0 | R19: 0 | S19: 0 | T19: 837115.3677 | U19: 837115.3677 | V19: 1831421.384 | W19: 1831421.384 | X19: 1831421.384 | Y19: 1386083.329 | Z19: 1386083.329 | AA19: 1386083.329 | AB19: 1347714.628 | AC19: 1347714.628 | AD19: 1347714.628 | AE19: 262983.5379 | AF19: 262983.5379 | AG19: 262983.5379 | AH19: 0 | AI19: 0 | AJ19: 0
I20: Average conversion rate (Sales) | L20: =Calculations!N350/Calculations!N358 -> 0.6357361696
I21: Non-Milk Costs
I22: Commission | J22: =$J$3&I22 -> 1Commission | L22: =SUM(O22:AJ22) -> 144311.3765 | O22: =SUMIF(Calculations!$I$15:$I$1344,$J22,Calculations!R$15:R$1344) -> 0 | P22: =SUMIF(Calculations!$I$15:$I$1344,$J22,Calculations!S$15:S$1344) -> 0 | Q22: =SUMIF(Calculations!$I$15:$I$1344,$J22,Calculations!T$15:T$1344) -> 0 | R22: =SUMIF(Calculations!$I$15:$I$1344,$J22,Calculations!U$15:U$1344) -> 0 | S22: =SUMIF(Calculations!$I$15:$I$1344,$J22,Calculations!V$15:V$1344) -> 12025.94804 | T22: =SUMIF(Calculations!$I$15:$I$1344,$J22,Calculations!W$15:W$1344) -> 12025.94804 | U22: =SUMIF(Calculations!$I$15:$I$1344,$J22,Calculations!X$15:X$1344) -> 12025.94804 | V22: =SUMIF(Calculations!$I$15:$I$1344,$J22,Calculations!Y$15:Y$1344) -> 12025.94804 | W22: =SUMIF(Calculations!$I$15:$I$1344,$J22,Calculations!Z$15:Z$1344) -> 12025.94804 | X22: =SUMIF(Calculations!$I$15:$I$1344,$J22,Calculations!AA$15:AA$1344) -> 12025.94804 | Y22: =SUMIF(Calculations!$I$15:$I$1344,$J22,Calculations!AB$15:AB$1344) -> 12025.94804 | Z22: =SUMIF(Calculations!$I$15:$I$1344,$J22,Calculations!AC$15:AC$1344) -> 12025.94804 | AA22: =SUMIF(Calculations!$I$15:$I$1344,$J22,Calculations!AD$15:AD$1344) -> 12025.94804 | AB22: =SUMIF(Calculations!$I$15:$I$1344,$J22,Calculations!AE$15:AE$1344) -> 12025.94804 | AC22: =SUMIF(Calculations!$I$15:$I$1344,$J22,Calculations!AF$15:AF$1344) -> 12025.94804 | AD22: =SUMIF(Calculations!$I$15:$I$1344,$J22,Calculations!AG$15:AG$1344) -> 12025.94804 | AE22: =SUMIF(Calculations!$I$15:$I$1344,$J22,Calculations!AH$15:AH$1344) -> 0 | AF22: =SUMIF(Calculations!$I$15:$I$1344,$J22,Calculations!AI$15:AI$1344) -> 0 | AG22: =SUMIF(Calculations!$I$15:$I$1344,$J22,Calculations!AJ$15:AJ$1344) -> 0 | AH22: =SUMIF(Calculations!$I$15:$I$1344,$J22,Calculations!AK$15:AK$1344) -> 0 | AI22: =SUMIF(Calculations!$I$15:$I$1344,$J22,Calculations!AL$15:AL$1344) -> 0 | AJ22: =SUMIF(Calculations!$I$15:$I$1344,$J22,Calculations!AM$15:AM$1344) -> 0
I23: Collection Costs | J23: 1Collection Costs | L23: =SUM(O23:AJ23) -> 414714.6277 | O23: =SUMIF(Calculations!$I$15:$I$1344,$J23,Calculations!R$15:R$1344) -> 0 | P23: =SUMIF(Calculations!$I$15:$I$1344,$J23,Calculations!S$15:S$1344) -> 0 | Q23: =SUMIF(Calculations!$I$15:$I$1344,$J23,Calculations!T$15:T$1344) -> 17144.08899 | R23: =SUMIF(Calculations!$I$15:$I$1344,$J23,Calculations!U$15:U$1344) -> 19180.1971 | S23: =SUMIF(Calculations!$I$15:$I$1344,$J23,Calculations!V$15:V$1344) -> 26056.46361 | T23: =SUMIF(Calculations!$I$15:$I$1344,$J23,Calculations!W$15:W$1344) -> 42506.48902 | U23: =SUMIF(Calculations!$I$15:$I$1344,$J23,Calculations!X$15:X$1344) -> 55427.91643 | V23: =SUMIF(Calculations!$I$15:$I$1344,$J23,Calculations!Y$15:Y$1344) -> 52218.41818 | W23: =SUMIF(Calculations!$I$15:$I$1344,$J23,Calculations!Z$15:Z$1344) -> 45676.74241 | X23: =SUMIF(Calculations!$I$15:$I$1344,$J23,Calculations!AA$15:AA$1344) -> 42069.24723 | Y23: =SUMIF(Calculations!$I$15:$I$1344,$J23,Calculations!AB$15:AB$1344) -> 31820.65335 | Z23: =SUMIF(Calculations!$I$15:$I$1344,$J23,Calculations!AC$15:AC$1344) -> 31057.46705 | AA23: =SUMIF(Calculations!$I$15:$I$1344,$J23,Calculations!AD$15:AD$1344) -> 27704.01671 | AB23: =SUMIF(Calculations!$I$15:$I$1344,$J23,Calculations!AE$15:AE$1344) -> 23852.92762 | AC23: =SUMIF(Calculations!$I$15:$I$1344,$J23,Calculations!AF$15:AF$1344) -> 0 | AD23: =SUMIF(Calculations!$I$15:$I$1344,$J23,Calculations!AG$15:AG$1344) -> 0 | AE23: =SUMIF(Calculations!$I$15:$I$1344,$J23,Calculations!AH$15:AH$1344) -> 0 | AF23: =SUMIF(Calculations!$I$15:$I$1344,$J23,Calculations!AI$15:AI$1344) -> 0 | AG23: =SUMIF(Calculations!$I$15:$I$1344,$J23,Calculations!AJ$15:AJ$1344) -> 0 | AH23: =SUMIF(Calculations!$I$15:$I$1344,$J23,Calculations!AK$15:AK$1344) -> 0 | AI23: =SUMIF(Calculations!$I$15:$I$1344,$J23,Calculations!AL$15:AL$1344) -> 0 | AJ23: =SUMIF(Calculations!$I$15:$I$1344,$J23,Calculations!AM$15:AM$1344) -> 0
I24: Lactose | J24: 1Lactose | L24: =SUM(O24:AJ24) -> 879108.2845 | O24: =SUMIF(Calculations!$I$15:$I$1344,$J24,Calculations!R$15:R$1344) -> 0 | P24: =SUMIF(Calculations!$I$15:$I$1344,$J24,Calculations!S$15:S$1344) -> 0 | Q24: =SUMIF(Calculations!$I$15:$I$1344,$J24,Calculations!T$15:T$1344) -> 7882.852153 | R24: =SUMIF(Calculations!$I$15:$I$1344,$J24,Calculations!U$15:U$1344) -> 10126.5341 | S24: =SUMIF(Calculations!$I$15:$I$1344,$J24,Calculations!V$15:V$1344) -> 43821.56004 | T24: =SUMIF(Calculations!$I$15:$I$1344,$J24,Calculations!W$15:W$1344) -> 74851.53853 | U24: =SUMIF(Calculations!$I$15:$I$1344,$J24,Calculations!X$15:X$1344) -> 96424.68038 | V24: =SUMIF(Calculations!$I$15:$I$1344,$J24,Calculations!Y$15:Y$1344) -> 95080.69587 | W24: =SUMIF(Calculations!$I$15:$I$1344,$J24,Calculations!Z$15:Z$1344) -> 97387.03655 | X24: =SUMIF(Calculations!$I$15:$I$1344,$J24,Calculations!AA$15:AA$1344) -> 99265.59706 | Y24: =SUMIF(Calculations!$I$15:$I$1344,$J24,Calculations!AB$15:AB$1344) -> 87962.42223 | Z24: =SUMIF(Calculations!$I$15:$I$1344,$J24,Calculations!AC$15:AC$1344) -> 107888.0788 | AA24: =SUMIF(Calculations!$I$15:$I$1344,$J24,Calculations!AD$15:AD$1344) -> 97639.567 | AB24: =SUMIF(Calculations!$I$15:$I$1344,$J24,Calculations!AE$15:AE$1344) -> 60777.72185 | AC24: =SUMIF(Calculations!$I$15:$I$1344,$J24,Calculations!AF$15:AF$1344) -> 0 | AD24: =SUMIF(Calculations!$I$15:$I$1344,$J24,Calculations!AG$15:AG$1344) -> 0 | AE24: =SUMIF(Calculations!$I$15:$I$1344,$J24,Calculations!AH$15:AH$1344) -> 0 | AF24: =SUMIF(Calculations!$I$15:$I$1344,$J24,Calculations!AI$15:AI$1344) -> 0 | AG24: =SUMIF(Calculations!$I$15:$I$1344,$J24,Calculations!AJ$15:AJ$1344) -> 0 | AH24: =SUMIF(Calculations!$I$15:$I$1344,$J24,Calculations!AK$15:AK$1344) -> 0 | AI24: =SUMIF(Calculations!$I$15:$I$1344,$J24,Calculations!AL$15:AL$1344) -> 0 | AJ24: =SUMIF(Calculations!$I$15:$I$1344,$J24,Calculations!AM$15:AM$1344) -> 0
I25: Operating Costs
I26: Packaging | J26: 1Packaging | L26: =SUM(O26:AJ26) -> 666886.4741 | O26: =SUMIF(Calculations!$I$15:$I$1344,$J26,Calculations!R$15:R$1344) -> 0 | P26: =SUMIF(Calculations!$I$15:$I$1344,$J26,Calculations!S$15:S$1344) -> 0 | Q26: =SUMIF(Calculations!$I$15:$I$1344,$J26,Calculations!T$15:T$1344) -> 6598.368152 | R26: =SUMIF(Calculations!$I$15:$I$1344,$J26,Calculations!U$15:U$1344) -> 8501.034258 | S26: =SUMIF(Calculations!$I$15:$I$1344,$J26,Calculations!V$15:V$1344) -> 41552.11053 | T26: =SUMIF(Calculations!$I$15:$I$1344,$J26,Calculations!W$15:W$1344) -> 75318.53945 | U26: =SUMIF(Calculations!$I$15:$I$1344,$J26,Calculations!X$15:X$1344) -> 90739.39166 | V26: =SUMIF(Calculations!$I$15:$I$1344,$J26,Calculations!Y$15:Y$1344) -> 84961.894 | W26: =SUMIF(Calculations!$I$15:$I$1344,$J26,Calculations!Z$15:Z$1344) -> 78450.82572 | X26: =SUMIF(Calculations!$I$15:$I$1344,$J26,Calculations!AA$15:AA$1344) -> 72818.39676 | Y26: =SUMIF(Calculations!$I$15:$I$1344,$J26,Calculations!AB$15:AB$1344) -> 58120.83872 | Z26: =SUMIF(Calculations!$I$15:$I$1344,$J26,Calculations!AC$15:AC$1344) -> 61460.46052 | AA26: =SUMIF(Calculations!$I$15:$I$1344,$J26,Calculations!AD$15:AD$1344) -> 54173.25021 | AB26: =SUMIF(Calculations!$I$15:$I$1344,$J26,Calculations!AE$15:AE$1344) -> 34191.36408 | AC26: =SUMIF(Calculations!$I$15:$I$1344,$J26,Calculations!AF$15:AF$1344) -> 0 | AD26: =SUMIF(Calculations!$I$15:$I$1344,$J26,Calculations!AG$15:AG$1344) -> 0 | AE26: =SUMIF(Calculations!$I$15:$I$1344,$J26,Calculations!AH$15:AH$1344) -> 0 | AF26: =SUMIF(Calculations!$I$15:$I$1344,$J26,Calculations!AI$15:AI$1344) -> 0 | AG26: =SUMIF(Calculations!$I$15:$I$1344,$J26,Calculations!AJ$15:AJ$1344) -> 0 | AH26: =SUMIF(Calculations!$I$15:$I$1344,$J26,Calculations!AK$15:AK$1344) -> 0 | AI26: =SUMIF(Calculations!$I$15:$I$1344,$J26,Calculations!AL$15:AL$1344) -> 0 | AJ26: =SUMIF(Calculations!$I$15:$I$1344,$J26,Calculations!AM$15:AM$1344) -> 0
I27: Energy - Variable | J27: 1Energy - Variable | L27: 0 | O27: =SUMIF(Calculations!$I$15:$I$1344,$J27,Calculations!R$15:R$1344) -> 0 | P27: =SUMIF(Calculations!$I$15:$I$1344,$J27,Calculations!S$15:S$1344) -> 0 | Q27: =SUMIF(Calculations!$I$15:$I$1344,$J27,Calculations!T$15:T$1344) -> 0 | R27: =SUMIF(Calculations!$I$15:$I$1344,$J27,Calculations!U$15:U$1344) -> 0 | S27: =SUMIF(Calculations!$I$15:$I$1344,$J27,Calculations!V$15:V$1344) -> 0 | T27: =SUMIF(Calculations!$I$15:$I$1344,$J27,Calculations!W$15:W$1344) -> 0 | U27: =SUMIF(Calculations!$I$15:$I$1344,$J27,Calculations!X$15:X$1344) -> 0 | V27: =SUMIF(Calculations!$I$15:$I$1344,$J27,Calculations!Y$15:Y$1344) -> 0 | W27: =SUMIF(Calculations!$I$15:$I$1344,$J27,Calculations!Z$15:Z$1344) -> 0 | X27: =SUMIF(Calculations!$I$15:$I$1344,$J27,Calculations!AA$15:AA$1344) -> 0 | Y27: =SUMIF(Calculations!$I$15:$I$1344,$J27,Calculations!AB$15:AB$1344) -> 0 | Z27: =SUMIF(Calculations!$I$15:$I$1344,$J27,Calculations!AC$15:AC$1344) -> 0 | AA27: =SUMIF(Calculations!$I$15:$I$1344,$J27,Calculations!AD$15:AD$1344) -> 0 | AB27: =SUMIF(Calculations!$I$15:$I$1344,$J27,Calculations!AE$15:AE$1344) -> 0 | AC27: =SUMIF(Calculations!$I$15:$I$1344,$J27,Calculations!AF$15:AF$1344) -> 0 | AD27: =SUMIF(Calculations!$I$15:$I$1344,$J27,Calculations!AG$15:AG$1344) -> 0 | AE27: =SUMIF(Calculations!$I$15:$I$1344,$J27,Calculations!AH$15:AH$1344) -> 0 | AF27: =SUMIF(Calculations!$I$15:$I$1344,$J27,Calculations!AI$15:AI$1344) -> 0 | AG27: =SUMIF(Calculations!$I$15:$I$1344,$J27,Calculations!AJ$15:AJ$1344) -> 0 | AH27: =SUMIF(Calculations!$I$15:$I$1344,$J27,Calculations!AK$15:AK$1344) -> 0 | AI27: =SUMIF(Calculations!$I$15:$I$1344,$J27,Calculations!AL$15:AL$1344) -> 0 | AJ27: =SUMIF(Calculations!$I$15:$I$1344,$J27,Calculations!AM$15:AM$1344) -> 0
I28: Water | J28: 1Water | L28: 0 | O28: =SUMIF(Calculations!$I$15:$I$1344,$J28,Calculations!R$15:R$1344) -> 0 | P28: =SUMIF(Calculations!$I$15:$I$1344,$J28,Calculations!S$15:S$1344) -> 0 | Q28: =SUMIF(Calculations!$I$15:$I$1344,$J28,Calculations!T$15:T$1344) -> 0 | R28: =SUMIF(Calculations!$I$15:$I$1344,$J28,Calculations!U$15:U$1344) -> 0 | S28: =SUMIF(Calculations!$I$15:$I$1344,$J28,Calculations!V$15:V$1344) -> 0 | T28: =SUMIF(Calculations!$I$15:$I$1344,$J28,Calculations!W$15:W$1344) -> 0 | U28: =SUMIF(Calculations!$I$15:$I$1344,$J28,Calculations!X$15:X$1344) -> 0 | V28: =SUMIF(Calculations!$I$15:$I$1344,$J28,Calculations!Y$15:Y$1344) -> 0 | W28: =SUMIF(Calculations!$I$15:$I$1344,$J28,Calculations!Z$15:Z$1344) -> 0 | X28: =SUMIF(Calculations!$I$15:$I$1344,$J28,Calculations!AA$15:AA$1344) -> 0 | Y28: =SUMIF(Calculations!$I$15:$I$1344,$J28,Calculations!AB$15:AB$1344) -> 0 | Z28: =SUMIF(Calculations!$I$15:$I$1344,$J28,Calculations!AC$15:AC$1344) -> 0 | AA28: =SUMIF(Calculations!$I$15:$I$1344,$J28,Calculations!AD$15:AD$1344) -> 0 | AB28: =SUMIF(Calculations!$I$15:$I$1344,$J28,Calculations!AE$15:AE$1344) -> 0 | AC28: =SUMIF(Calculations!$I$15:$I$1344,$J28,Calculations!AF$15:AF$1344) -> 0 | AD28: =SUMIF(Calculations!$I$15:$I$1344,$J28,Calculations!AG$15:AG$1344) -> 0 | AE28: =SUMIF(Calculations!$I$15:$I$1344,$J28,Calculations!AH$15:AH$1344) -> 0 | AF28: =SUMIF(Calculations!$I$15:$I$1344,$J28,Calculations!AI$15:AI$1344) -> 0 | AG28: =SUMIF(Calculations!$I$15:$I$1344,$J28,Calculations!AJ$15:AJ$1344) -> 0 | AH28: =SUMIF(Calculations!$I$15:$I$1344,$J28,Calculations!AK$15:AK$1344) -> 0 | AI28: =SUMIF(Calculations!$I$15:$I$1344,$J28,Calculations!AL$15:AL$1344) -> 0 | AJ28: =SUMIF(Calculations!$I$15:$I$1344,$J28,Calculations!AM$15:AM$1344) -> 0
I29: Cleaning & CIP | J29: 1Cleaning & CIP | L29: 0 | O29: =SUMIF(Calculations!$I$15:$I$1344,$J29,Calculations!R$15:R$1344) -> 0 | P29: =SUMIF(Calculations!$I$15:$I$1344,$J29,Calculations!S$15:S$1344) -> 0 | Q29: =SUMIF(Calculations!$I$15:$I$1344,$J29,Calculations!T$15:T$1344) -> 0 | R29: =SUMIF(Calculations!$I$15:$I$1344,$J29,Calculations!U$15:U$1344) -> 0 | S29: =SUMIF(Calculations!$I$15:$I$1344,$J29,Calculations!V$15:V$1344) -> 0 | T29: =SUMIF(Calculations!$I$15:$I$1344,$J29,Calculations!W$15:W$1344) -> 0 | U29: =SUMIF(Calculations!$I$15:$I$1344,$J29,Calculations!X$15:X$1344) -> 0 | V29: =SUMIF(Calculations!$I$15:$I$1344,$J29,Calculations!Y$15:Y$1344) -> 0 | W29: =SUMIF(Calculations!$I$15:$I$1344,$J29,Calculations!Z$15:Z$1344) -> 0 | X29: =SUMIF(Calculations!$I$15:$I$1344,$J29,Calculations!AA$15:AA$1344) -> 0 | Y29: =SUMIF(Calculations!$I$15:$I$1344,$J29,Calculations!AB$15:AB$1344) -> 0 | Z29: =SUMIF(Calculations!$I$15:$I$1344,$J29,Calculations!AC$15:AC$1344) -> 0 | AA29: =SUMIF(Calculations!$I$15:$I$1344,$J29,Calculations!AD$15:AD$1344) -> 0 | AB29: =SUMIF(Calculations!$I$15:$I$1344,$J29,Calculations!AE$15:AE$1344) -> 0 | AC29: =SUMIF(Calculations!$I$15:$I$1344,$J29,Calculations!AF$15:AF$1344) -> 0 | AD29: =SUMIF(Calculations!$I$15:$I$1344,$J29,Calculations!AG$15:AG$1344) -> 0 | AE29: =SUMIF(Calculations!$I$15:$I$1344,$J29,Calculations!AH$15:AH$1344) -> 0 | AF29: =SUMIF(Calculations!$I$15:$I$1344,$J29,Calculations!AI$15:AI$1344) -> 0 | AG29: =SUMIF(Calculations!$I$15:$I$1344,$J29,Calculations!AJ$15:AJ$1344) -> 0 | AH29: =SUMIF(Calculations!$I$15:$I$1344,$J29,Calculations!AK$15:AK$1344) -> 0 | AI29: =SUMIF(Calculations!$I$15:$I$1344,$J29,Calculations!AL$15:AL$1344) -> 0 | AJ29: =SUMIF(Calculations!$I$15:$I$1344,$J29,Calculations!AM$15:AM$1344) -> 0
I30: Consumables | J30: 1Consumables | L30: 0 | O30: =SUMIF(Calculations!$I$15:$I$1344,$J30,Calculations!R$15:R$1344) -> 0 | P30: =SUMIF(Calculations!$I$15:$I$1344,$J30,Calculations!S$15:S$1344) -> 0 | Q30: =SUMIF(Calculations!$I$15:$I$1344,$J30,Calculations!T$15:T$1344) -> 0 | R30: =SUMIF(Calculations!$I$15:$I$1344,$J30,Calculations!U$15:U$1344) -> 0 | S30: =SUMIF(Calculations!$I$15:$I$1344,$J30,Calculations!V$15:V$1344) -> 0 | T30: =SUMIF(Calculations!$I$15:$I$1344,$J30,Calculations!W$15:W$1344) -> 0 | U30: =SUMIF(Calculations!$I$15:$I$1344,$J30,Calculations!X$15:X$1344) -> 0 | V30: =SUMIF(Calculations!$I$15:$I$1344,$J30,Calculations!Y$15:Y$1344) -> 0 | W30: =SUMIF(Calculations!$I$15:$I$1344,$J30,Calculations!Z$15:Z$1344) -> 0 | X30: =SUMIF(Calculations!$I$15:$I$1344,$J30,Calculations!AA$15:AA$1344) -> 0 | Y30: =SUMIF(Calculations!$I$15:$I$1344,$J30,Calculations!AB$15:AB$1344) -> 0 | Z30: =SUMIF(Calculations!$I$15:$I$1344,$J30,Calculations!AC$15:AC$1344) -> 0 | AA30: =SUMIF(Calculations!$I$15:$I$1344,$J30,Calculations!AD$15:AD$1344) -> 0 | AB30: =SUMIF(Calculations!$I$15:$I$1344,$J30,Calculations!AE$15:AE$1344) -> 0 | AC30: =SUMIF(Calculations!$I$15:$I$1344,$J30,Calculations!AF$15:AF$1344) -> 0 | AD30: =SUMIF(Calculations!$I$15:$I$1344,$J30,Calculations!AG$15:AG$1344) -> 0 | AE30: =SUMIF(Calculations!$I$15:$I$1344,$J30,Calculations!AH$15:AH$1344) -> 0 | AF30: =SUMIF(Calculations!$I$15:$I$1344,$J30,Calculations!AI$15:AI$1344) -> 0 | AG30: =SUMIF(Calculations!$I$15:$I$1344,$J30,Calculations!AJ$15:AJ$1344) -> 0 | AH30: =SUMIF(Calculations!$I$15:$I$1344,$J30,Calculations!AK$15:AK$1344) -> 0 | AI30: =SUMIF(Calculations!$I$15:$I$1344,$J30,Calculations!AL$15:AL$1344) -> 0 | AJ30: =SUMIF(Calculations!$I$15:$I$1344,$J30,Calculations!AM$15:AM$1344) -> 0
I31: Effluent | J31: 1Effluent | L31: 0 | O31: =SUMIF(Calculations!$I$15:$I$1344,$J31,Calculations!R$15:R$1344) -> 0 | P31: =SUMIF(Calculations!$I$15:$I$1344,$J31,Calculations!S$15:S$1344) -> 0 | Q31: =SUMIF(Calculations!$I$15:$I$1344,$J31,Calculations!T$15:T$1344) -> 0 | R31: =SUMIF(Calculations!$I$15:$I$1344,$J31,Calculations!U$15:U$1344) -> 0 | S31: =SUMIF(Calculations!$I$15:$I$1344,$J31,Calculations!V$15:V$1344) -> 0 | T31: =SUMIF(Calculations!$I$15:$I$1344,$J31,Calculations!W$15:W$1344) -> 0 | U31: =SUMIF(Calculations!$I$15:$I$1344,$J31,Calculations!X$15:X$1344) -> 0 | V31: =SUMIF(Calculations!$I$15:$I$1344,$J31,Calculations!Y$15:Y$1344) -> 0 | W31: =SUMIF(Calculations!$I$15:$I$1344,$J31,Calculations!Z$15:Z$1344) -> 0 | X31: =SUMIF(Calculations!$I$15:$I$1344,$J31,Calculations!AA$15:AA$1344) -> 0 | Y31: =SUMIF(Calculations!$I$15:$I$1344,$J31,Calculations!AB$15:AB$1344) -> 0 | Z31: =SUMIF(Calculations!$I$15:$I$1344,$J31,Calculations!AC$15:AC$1344) -> 0 | AA31: =SUMIF(Calculations!$I$15:$I$1344,$J31,Calculations!AD$15:AD$1344) -> 0 | AB31: =SUMIF(Calculations!$I$15:$I$1344,$J31,Calculations!AE$15:AE$1344) -> 0 | AC31: =SUMIF(Calculations!$I$15:$I$1344,$J31,Calculations!AF$15:AF$1344) -> 0 | AD31: =SUMIF(Calculations!$I$15:$I$1344,$J31,Calculations!AG$15:AG$1344) -> 0 | AE31: =SUMIF(Calculations!$I$15:$I$1344,$J31,Calculations!AH$15:AH$1344) -> 0 | AF31: =SUMIF(Calculations!$I$15:$I$1344,$J31,Calculations!AI$15:AI$1344) -> 0 | AG31: =SUMIF(Calculations!$I$15:$I$1344,$J31,Calculations!AJ$15:AJ$1344) -> 0 | AH31: =SUMIF(Calculations!$I$15:$I$1344,$J31,Calculations!AK$15:AK$1344) -> 0 | AI31: =SUMIF(Calculations!$I$15:$I$1344,$J31,Calculations!AL$15:AL$1344) -> 0 | AJ31: =SUMIF(Calculations!$I$15:$I$1344,$J31,Calculations!AM$15:AM$1344) -> 0
I32: Laboratory | J32: 1Laboratory | L32: 0 | O32: =SUMIF(Calculations!$I$15:$I$1344,$J32,Calculations!R$15:R$1344) -> 0 | P32: =SUMIF(Calculations!$I$15:$I$1344,$J32,Calculations!S$15:S$1344) -> 0 | Q32: =SUMIF(Calculations!$I$15:$I$1344,$J32,Calculations!T$15:T$1344) -> 0 | R32: =SUMIF(Calculations!$I$15:$I$1344,$J32,Calculations!U$15:U$1344) -> 0 | S32: =SUMIF(Calculations!$I$15:$I$1344,$J32,Calculations!V$15:V$1344) -> 0 | T32: =SUMIF(Calculations!$I$15:$I$1344,$J32,Calculations!W$15:W$1344) -> 0 | U32: =SUMIF(Calculations!$I$15:$I$1344,$J32,Calculations!X$15:X$1344) -> 0 | V32: =SUMIF(Calculations!$I$15:$I$1344,$J32,Calculations!Y$15:Y$1344) -> 0 | W32: =SUMIF(Calculations!$I$15:$I$1344,$J32,Calculations!Z$15:Z$1344) -> 0 | X32: =SUMIF(Calculations!$I$15:$I$1344,$J32,Calculations!AA$15:AA$1344) -> 0 | Y32: =SUMIF(Calculations!$I$15:$I$1344,$J32,Calculations!AB$15:AB$1344) -> 0 | Z32: =SUMIF(Calculations!$I$15:$I$1344,$J32,Calculations!AC$15:AC$1344) -> 0 | AA32: =SUMIF(Calculations!$I$15:$I$1344,$J32,Calculations!AD$15:AD$1344) -> 0 | AB32: =SUMIF(Calculations!$I$15:$I$1344,$J32,Calculations!AE$15:AE$1344) -> 0 | AC32: =SUMIF(Calculations!$I$15:$I$1344,$J32,Calculations!AF$15:AF$1344) -> 0 | AD32: =SUMIF(Calculations!$I$15:$I$1344,$J32,Calculations!AG$15:AG$1344) -> 0 | AE32: =SUMIF(Calculations!$I$15:$I$1344,$J32,Calculations!AH$15:AH$1344) -> 0 | AF32: =SUMIF(Calculations!$I$15:$I$1344,$J32,Calculations!AI$15:AI$1344) -> 0 | AG32: =SUMIF(Calculations!$I$15:$I$1344,$J32,Calculations!AJ$15:AJ$1344) -> 0 | AH32: =SUMIF(Calculations!$I$15:$I$1344,$J32,Calculations!AK$15:AK$1344) -> 0 | AI32: =SUMIF(Calculations!$I$15:$I$1344,$J32,Calculations!AL$15:AL$1344) -> 0 | AJ32: =SUMIF(Calculations!$I$15:$I$1344,$J32,Calculations!AM$15:AM$1344) -> 0
I33: Variable operating costs | L33: =SUM(L26:L32) -> 666886.4741 | O33: =SUM(O26:O32) -> 0 | P33: 0 | Q33: 6598.368152 | R33: 8501.034258 | S33: 41552.11053 | T33: 75318.53945 | U33: 90739.39166 | V33: 84961.894 | W33: 78450.82572 | X33: 72818.39676 | Y33: 58120.83872 | Z33: 61460.46052 | AA33: 54173.25021 | AB33: 34191.36408 | AC33: 0 | AD33: 0 | AE33: 0 | AF33: 0 | AG33: 0 | AH33: 0 | AI33: 0 | AJ33: 0
I34: Wages & ERE | J34: 1Wages & ERE | L34: =SUM(O34:AJ34) -> 0 | O34: =SUMIF(Calculations!$I$15:$I$1344,$J34,Calculations!R$15:R$1344) -> 0 | P34: =SUMIF(Calculations!$I$15:$I$1344,$J34,Calculations!S$15:S$1344) -> 0 | Q34: =SUMIF(Calculations!$I$15:$I$1344,$J34,Calculations!T$15:T$1344) -> 0 | R34: =SUMIF(Calculations!$I$15:$I$1344,$J34,Calculations!U$15:U$1344) -> 0 | S34: =SUMIF(Calculations!$I$15:$I$1344,$J34,Calculations!V$15:V$1344) -> 0 | T34: =SUMIF(Calculations!$I$15:$I$1344,$J34,Calculations!W$15:W$1344) -> 0 | U34: =SUMIF(Calculations!$I$15:$I$1344,$J34,Calculations!X$15:X$1344) -> 0 | V34: =SUMIF(Calculations!$I$15:$I$1344,$J34,Calculations!Y$15:Y$1344) -> 0 | W34: =SUMIF(Calculations!$I$15:$I$1344,$J34,Calculations!Z$15:Z$1344) -> 0 | X34: =SUMIF(Calculations!$I$15:$I$1344,$J34,Calculations!AA$15:AA$1344) -> 0 | Y34: =SUMIF(Calculations!$I$15:$I$1344,$J34,Calculations!AB$15:AB$1344) -> 0 | Z34: =SUMIF(Calculations!$I$15:$I$1344,$J34,Calculations!AC$15:AC$1344) -> 0 | AA34: =SUMIF(Calculations!$I$15:$I$1344,$J34,Calculations!AD$15:AD$1344) -> 0 | AB34: =SUMIF(Calculations!$I$15:$I$1344,$J34,Calculations!AE$15:AE$1344) -> 0 | AC34: =SUMIF(Calculations!$I$15:$I$1344,$J34,Calculations!AF$15:AF$1344) -> 0 | AD34: =SUMIF(Calculations!$I$15:$I$1344,$J34,Calculations!AG$15:AG$1344) -> 0 | AE34: =SUMIF(Calculations!$I$15:$I$1344,$J34,Calculations!AH$15:AH$1344) -> 0 | AF34: =SUMIF(Calculations!$I$15:$I$1344,$J34,Calculations!AI$15:AI$1344) -> 0 | AG34: =SUMIF(Calculations!$I$15:$I$1344,$J34,Calculations!AJ$15:AJ$1344) -> 0 | AH34: =SUMIF(Calculations!$I$15:$I$1344,$J34,Calculations!AK$15:AK$1344) -> 0 | AI34: =SUMIF(Calculations!$I$15:$I$1344,$J34,Calculations!AL$15:AL$1344) -> 0 | AJ34: =SUMIF(Calculations!$I$15:$I$1344,$J34,Calculations!AM$15:AM$1344) -> 0
I35: Repairs & Maintenance | J35: 1Repairs & Maintenance | L35: =SUM(O35:AJ35) -> 0 | O35: =SUMIF(Calculations!$I$15:$I$1344,$J35,Calculations!R$15:R$1344) -> 0 | P35: =SUMIF(Calculations!$I$15:$I$1344,$J35,Calculations!S$15:S$1344) -> 0 | Q35: =SUMIF(Calculations!$I$15:$I$1344,$J35,Calculations!T$15:T$1344) -> 0 | R35: =SUMIF(Calculations!$I$15:$I$1344,$J35,Calculations!U$15:U$1344) -> 0 | S35: =SUMIF(Calculations!$I$15:$I$1344,$J35,Calculations!V$15:V$1344) -> 0 | T35: =SUMIF(Calculations!$I$15:$I$1344,$J35,Calculations!W$15:W$1344) -> 0 | U35: =SUMIF(Calculations!$I$15:$I$1344,$J35,Calculations!X$15:X$1344) -> 0 | V35: =SUMIF(Calculations!$I$15:$I$1344,$J35,Calculations!Y$15:Y$1344) -> 0 | W35: =SUMIF(Calculations!$I$15:$I$1344,$J35,Calculations!Z$15:Z$1344) -> 0 | X35: =SUMIF(Calculations!$I$15:$I$1344,$J35,Calculations!AA$15:AA$1344) -> 0 | Y35: =SUMIF(Calculations!$I$15:$I$1344,$J35,Calculations!AB$15:AB$1344) -> 0 | Z35: =SUMIF(Calculations!$I$15:$I$1344,$J35,Calculations!AC$15:AC$1344) -> 0 | AA35: =SUMIF(Calculations!$I$15:$I$1344,$J35,Calculations!AD$15:AD$1344) -> 0 | AB35: =SUMIF(Calculations!$I$15:$I$1344,$J35,Calculations!AE$15:AE$1344) -> 0 | AC35: =SUMIF(Calculations!$I$15:$I$1344,$J35,Calculations!AF$15:AF$1344) -> 0 | AD35: =SUMIF(Calculations!$I$15:$I$1344,$J35,Calculations!AG$15:AG$1344) -> 0 | AE35: =SUMIF(Calculations!$I$15:$I$1344,$J35,Calculations!AH$15:AH$1344) -> 0 | AF35: =SUMIF(Calculations!$I$15:$I$1344,$J35,Calculations!AI$15:AI$1344) -> 0 | AG35: =SUMIF(Calculations!$I$15:$I$1344,$J35,Calculations!AJ$15:AJ$1344) -> 0 | AH35: =SUMIF(Calculations!$I$15:$I$1344,$J35,Calculations!AK$15:AK$1344) -> 0 | AI35: =SUMIF(Calculations!$I$15:$I$1344,$J35,Calculations!AL$15:AL$1344) -> 0 | AJ35: =SUMIF(Calculations!$I$15:$I$1344,$J35,Calculations!AM$15:AM$1344) -> 0
I36: Energy - Fixed | J36: =$J$3&I36 -> 1Energy - Fixed | L36: =SUM(O36:AJ36) -> 0 | O36: =SUMIF(Calculations!$I$15:$I$1344,$J36,Calculations!R$15:R$1344) -> 0 | P36: =SUMIF(Calculations!$I$15:$I$1344,$J36,Calculations!S$15:S$1344) -> 0 | Q36: =SUMIF(Calculations!$I$15:$I$1344,$J36,Calculations!T$15:T$1344) -> 0 | R36: =SUMIF(Calculations!$I$15:$I$1344,$J36,Calculations!U$15:U$1344) -> 0 | S36: =SUMIF(Calculations!$I$15:$I$1344,$J36,Calculations!V$15:V$1344) -> 0 | T36: =SUMIF(Calculations!$I$15:$I$1344,$J36,Calculations!W$15:W$1344) -> 0 | U36: =SUMIF(Calculations!$I$15:$I$1344,$J36,Calculations!X$15:X$1344) -> 0 | V36: =SUMIF(Calculations!$I$15:$I$1344,$J36,Calculations!Y$15:Y$1344) -> 0 | W36: =SUMIF(Calculations!$I$15:$I$1344,$J36,Calculations!Z$15:Z$1344) -> 0 | X36: =SUMIF(Calculations!$I$15:$I$1344,$J36,Calculations!AA$15:AA$1344) -> 0 | Y36: =SUMIF(Calculations!$I$15:$I$1344,$J36,Calculations!AB$15:AB$1344) -> 0 | Z36: =SUMIF(Calculations!$I$15:$I$1344,$J36,Calculations!AC$15:AC$1344) -> 0 | AA36: =SUMIF(Calculations!$I$15:$I$1344,$J36,Calculations!AD$15:AD$1344) -> 0 | AB36: =SUMIF(Calculations!$I$15:$I$1344,$J36,Calculations!AE$15:AE$1344) -> 0 | AC36: =SUMIF(Calculations!$I$15:$I$1344,$J36,Calculations!AF$15:AF$1344) -> 0 | AD36: =SUMIF(Calculations!$I$15:$I$1344,$J36,Calculations!AG$15:AG$1344) -> 0 | AE36: =SUMIF(Calculations!$I$15:$I$1344,$J36,Calculations!AH$15:AH$1344) -> 0 | AF36: =SUMIF(Calculations!$I$15:$I$1344,$J36,Calculations!AI$15:AI$1344) -> 0 | AG36: =SUMIF(Calculations!$I$15:$I$1344,$J36,Calculations!AJ$15:AJ$1344) -> 0 | AH36: =SUMIF(Calculations!$I$15:$I$1344,$J36,Calculations!AK$15:AK$1344) -> 0 | AI36: =SUMIF(Calculations!$I$15:$I$1344,$J36,Calculations!AL$15:AL$1344) -> 0 | AJ36: =SUMIF(Calculations!$I$15:$I$1344,$J36,Calculations!AM$15:AM$1344) -> 0
I37: Site Overheads | J37: 1Site Overheads | L37: =SUM(O37:AJ37) -> 428903.8902 | O37: =SUMIF(Calculations!$I$15:$I$1344,$J37,Calculations!R$15:R$1344) -> 0 | P37: =SUMIF(Calculations!$I$15:$I$1344,$J37,Calculations!S$15:S$1344) -> 0 | Q37: =SUMIF(Calculations!$I$15:$I$1344,$J37,Calculations!T$15:T$1344) -> 40916.02758 | R37: =SUMIF(Calculations!$I$15:$I$1344,$J37,Calculations!U$15:U$1344) -> 40938.98824 | S37: =SUMIF(Calculations!$I$15:$I$1344,$J37,Calculations!V$15:V$1344) -> 37569.49826 | T37: =SUMIF(Calculations!$I$15:$I$1344,$J37,Calculations!W$15:W$1344) -> 34490.89258 | U37: =SUMIF(Calculations!$I$15:$I$1344,$J37,Calculations!X$15:X$1344) -> 35090.88395 | V37: =SUMIF(Calculations!$I$15:$I$1344,$J37,Calculations!Y$15:Y$1344) -> 33291.92644 | W37: =SUMIF(Calculations!$I$15:$I$1344,$J37,Calculations!Z$15:Z$1344) -> 33794.41682 | X37: =SUMIF(Calculations!$I$15:$I$1344,$J37,Calculations!AA$15:AA$1344) -> 32050.51741 | Y37: =SUMIF(Calculations!$I$15:$I$1344,$J37,Calculations!AB$15:AB$1344) -> 31081.02489 | Z37: =SUMIF(Calculations!$I$15:$I$1344,$J37,Calculations!AC$15:AC$1344) -> 33595.59931 | AA37: =SUMIF(Calculations!$I$15:$I$1344,$J37,Calculations!AD$15:AD$1344) -> 35171.59107 | AB37: =SUMIF(Calculations!$I$15:$I$1344,$J37,Calculations!AE$15:AE$1344) -> 40912.52365 | AC37: =SUMIF(Calculations!$I$15:$I$1344,$J37,Calculations!AF$15:AF$1344) -> 0 | AD37: =SUMIF(Calculations!$I$15:$I$1344,$J37,Calculations!AG$15:AG$1344) -> 0 | AE37: =SUMIF(Calculations!$I$15:$I$1344,$J37,Calculations!AH$15:AH$1344) -> 0 | AF37: =SUMIF(Calculations!$I$15:$I$1344,$J37,Calculations!AI$15:AI$1344) -> 0 | AG37: =SUMIF(Calculations!$I$15:$I$1344,$J37,Calculations!AJ$15:AJ$1344) -> 0 | AH37: =SUMIF(Calculations!$I$15:$I$1344,$J37,Calculations!AK$15:AK$1344) -> 0 | AI37: =SUMIF(Calculations!$I$15:$I$1344,$J37,Calculations!AL$15:AL$1344) -> 0 | AJ37: =SUMIF(Calculations!$I$15:$I$1344,$J37,Calculations!AM$15:AM$1344) -> 0
I38: Fixed operating costs | L38: =SUM(L34:L37) -> 428903.8902 | O38: =SUM(O34:O37) -> 0 | P38: =SUM(P34:P37) -> 0 | Q38: =SUM(Q34:Q37) -> 40916.02758 | R38: =SUM(R34:R37) -> 40938.98824 | S38: 37569.49826 | T38: 34490.89258 | U38: 35090.88395 | V38: 33291.92644 | W38: 33794.41682 | X38: 32050.51741 | Y38: 31081.02489 | Z38: 33595.59931 | AA38: 35171.59107 | AB38: 40912.52365 | AC38: 0 | AD38: 0 | AE38: 0 | AF38: 0 | AG38: 0 | AH38: 0 | AI38: 0 | AJ38: 0
I39: Operating Costs | L39: =L33+L38 -> 1095790.364 | O39: =SUM(O33,O38) -> 0 | P39: =SUM(P33,P38) -> 0 | Q39: =SUM(Q33,Q38) -> 47514.39573 | R39: =SUM(R33,R38) -> 49440.0225 | S39: 79121.60878 | T39: 109809.432 | U39: 125830.2756 | V39: 118253.8204 | W39: 112245.2425 | X39: 104868.9142 | Y39: 89201.86361 | Z39: 95056.05984 | AA39: 89344.84128 | AB39: 75103.88773 | AC39: 0 | AD39: 0 | AE39: 0 | AF39: 0 | AG39: 0 | AH39: 0 | AI39: 0 | AJ39: 0
I40: Variable supply chain costs | J40: 1Variable supply chain costs | L40: =SUM(O40:AJ40) -> 287131.8829 | O40: =SUMIF(Calculations!$I$15:$I$1344,$J40,Calculations!R$15:R$1344) -> 0 | P40: =SUMIF(Calculations!$I$15:$I$1344,$J40,Calculations!S$15:S$1344) -> 0 | Q40: =SUMIF(Calculations!$I$15:$I$1344,$J40,Calculations!T$15:T$1344) -> 0 | R40: =SUMIF(Calculations!$I$15:$I$1344,$J40,Calculations!U$15:U$1344) -> 0 | S40: =SUMIF(Calculations!$I$15:$I$1344,$J40,Calculations!V$15:V$1344) -> 0 | T40: =SUMIF(Calculations!$I$15:$I$1344,$J40,Calculations!W$15:W$1344) -> 13463.0074 | U40: =SUMIF(Calculations!$I$15:$I$1344,$J40,Calculations!X$15:X$1344) -> 13463.0074 | V40: =SUMIF(Calculations!$I$15:$I$1344,$J40,Calculations!Y$15:Y$1344) -> 30941.49083 | W40: =SUMIF(Calculations!$I$15:$I$1344,$J40,Calculations!Z$15:Z$1344) -> 30941.49083 | X40: =SUMIF(Calculations!$I$15:$I$1344,$J40,Calculations!AA$15:AA$1344) -> 30941.49083 | Y40: =SUMIF(Calculations!$I$15:$I$1344,$J40,Calculations!AB$15:AB$1344) -> 25282.6319 | Z40: =SUMIF(Calculations!$I$15:$I$1344,$J40,Calculations!AC$15:AC$1344) -> 25282.6319 | AA40: =SUMIF(Calculations!$I$15:$I$1344,$J40,Calculations!AD$15:AD$1344) -> 25282.6319 | AB40: =SUMIF(Calculations!$I$15:$I$1344,$J40,Calculations!AE$15:AE$1344) -> 25585.55303 | AC40: =SUMIF(Calculations!$I$15:$I$1344,$J40,Calculations!AF$15:AF$1344) -> 25585.55303 | AD40: =SUMIF(Calculations!$I$15:$I$1344,$J40,Calculations!AG$15:AG$1344) -> 25585.55303 | AE40: =SUMIF(Calculations!$I$15:$I$1344,$J40,Calculations!AH$15:AH$1344) -> 4925.613601 | AF40: =SUMIF(Calculations!$I$15:$I$1344,$J40,Calculations!AI$15:AI$1344) -> 4925.613601 | AG40: =SUMIF(Calculations!$I$15:$I$1344,$J40,Calculations!AJ$15:AJ$1344) -> 4925.613601 | AH40: =SUMIF(Calculations!$I$15:$I$1344,$J40,Calculations!AK$15:AK$1344) -> 0 | AI40: =SUMIF(Calculations!$I$15:$I$1344,$J40,Calculations!AL$15:AL$1344) -> 0 | AJ40: =SUMIF(Calculations!$I$15:$I$1344,$J40,Calculations!AM$15:AM$1344) -> 0
I41: Fixed supply chain costs | J41: 1Fixed supply chain costs | L41: =SUM(O41:AJ41) -> 0 | O41: =SUMIF(Calculations!$I$15:$I$1344,$J41,Calculations!R$15:R$1344) -> 0 | P41: =SUMIF(Calculations!$I$15:$I$1344,$J41,Calculations!S$15:S$1344) -> 0 | Q41: =SUMIF(Calculations!$I$15:$I$1344,$J41,Calculations!T$15:T$1344) -> 0 | R41: =SUMIF(Calculations!$I$15:$I$1344,$J41,Calculations!U$15:U$1344) -> 0 | S41: =SUMIF(Calculations!$I$15:$I$1344,$J41,Calculations!V$15:V$1344) -> 0 | T41: =SUMIF(Calculations!$I$15:$I$1344,$J41,Calculations!W$15:W$1344) -> 0 | U41: =SUMIF(Calculations!$I$15:$I$1344,$J41,Calculations!X$15:X$1344) -> 0 | V41: =SUMIF(Calculations!$I$15:$I$1344,$J41,Calculations!Y$15:Y$1344) -> 0 | W41: =SUMIF(Calculations!$I$15:$I$1344,$J41,Calculations!Z$15:Z$1344) -> 0 | X41: =SUMIF(Calculations!$I$15:$I$1344,$J41,Calculations!AA$15:AA$1344) -> 0 | Y41: =SUMIF(Calculations!$I$15:$I$1344,$J41,Calculations!AB$15:AB$1344) -> 0 | Z41: =SUMIF(Calculations!$I$15:$I$1344,$J41,Calculations!AC$15:AC$1344) -> 0 | AA41: =SUMIF(Calculations!$I$15:$I$1344,$J41,Calculations!AD$15:AD$1344) -> 0 | AB41: =SUMIF(Calculations!$I$15:$I$1344,$J41,Calculations!AE$15:AE$1344) -> 0 | AC41: =SUMIF(Calculations!$I$15:$I$1344,$J41,Calculations!AF$15:AF$1344) -> 0 | AD41: =SUMIF(Calculations!$I$15:$I$1344,$J41,Calculations!AG$15:AG$1344) -> 0 | AE41: =SUMIF(Calculations!$I$15:$I$1344,$J41,Calculations!AH$15:AH$1344) -> 0 | AF41: =SUMIF(Calculations!$I$15:$I$1344,$J41,Calculations!AI$15:AI$1344) -> 0 | AG41: =SUMIF(Calculations!$I$15:$I$1344,$J41,Calculations!AJ$15:AJ$1344) -> 0 | AH41: =SUMIF(Calculations!$I$15:$I$1344,$J41,Calculations!AK$15:AK$1344) -> 0 | AI41: =SUMIF(Calculations!$I$15:$I$1344,$J41,Calculations!AL$15:AL$1344) -> 0 | AJ41: =SUMIF(Calculations!$I$15:$I$1344,$J41,Calculations!AM$15:AM$1344) -> 0
I42: Supply Chain | L42: =SUM(L40:L41) -> 287131.8829 | O42: =SUM(O40:O41) -> 0 | P42: =SUM(P40:P41) -> 0 | Q42: =SUM(Q40:Q41) -> 0 | R42: 0 | S42: 0 | T42: 13463.0074 | U42: 13463.0074 | V42: 30941.49083 | W42: 30941.49083 | X42: 30941.49083 | Y42: 25282.6319 | Z42: 25282.6319 | AA42: 25282.6319 | AB42: 25585.55303 | AC42: 25585.55303 | AD42: 25585.55303 | AE42: 4925.613601 | AF42: 4925.613601 | AG42: 4925.613601 | AH42: 0 | AI42: 0 | AJ42: 0
I43: Administration | J43: 1Administration | L43: =SUM(O43:AJ43) -> 372173.6764 | O43: =SUMIF(Calculations!$I$15:$I$1344,$J43,Calculations!R$15:R$1344) -> 0 | P43: =SUMIF(Calculations!$I$15:$I$1344,$J43,Calculations!S$15:S$1344) -> 0 | Q43: =SUMIF(Calculations!$I$15:$I$1344,$J43,Calculations!T$15:T$1344) -> 25817.97063 | R43: =SUMIF(Calculations!$I$15:$I$1344,$J43,Calculations!U$15:U$1344) -> 60109.58842 | S43: =SUMIF(Calculations!$I$15:$I$1344,$J43,Calculations!V$15:V$1344) -> 28140.43187 | T43: =SUMIF(Calculations!$I$15:$I$1344,$J43,Calculations!W$15:W$1344) -> 28712.20898 | U43: =SUMIF(Calculations!$I$15:$I$1344,$J43,Calculations!X$15:X$1344) -> 31972.53286 | V43: =SUMIF(Calculations!$I$15:$I$1344,$J43,Calculations!Y$15:Y$1344) -> 27180.11891 | W43: =SUMIF(Calculations!$I$15:$I$1344,$J43,Calculations!Z$15:Z$1344) -> 30441.24937 | X43: =SUMIF(Calculations!$I$15:$I$1344,$J43,Calculations!AA$15:AA$1344) -> 26996.23705 | Y43: =SUMIF(Calculations!$I$15:$I$1344,$J43,Calculations!AB$15:AB$1344) -> 24923.70886 | Z43: =SUMIF(Calculations!$I$15:$I$1344,$J43,Calculations!AC$15:AC$1344) -> 29297.038 | AA43: =SUMIF(Calculations!$I$15:$I$1344,$J43,Calculations!AD$15:AD$1344) -> 28566.43316 | AB43: =SUMIF(Calculations!$I$15:$I$1344,$J43,Calculations!AE$15:AE$1344) -> 30016.1583 | AC43: =SUMIF(Calculations!$I$15:$I$1344,$J43,Calculations!AF$15:AF$1344) -> 0 | AD43: =SUMIF(Calculations!$I$15:$I$1344,$J43,Calculations!AG$15:AG$1344) -> 0 | AE43: =SUMIF(Calculations!$I$15:$I$1344,$J43,Calculations!AH$15:AH$1344) -> 0 | AF43: =SUMIF(Calculations!$I$15:$I$1344,$J43,Calculations!AI$15:AI$1344) -> 0 | AG43: =SUMIF(Calculations!$I$15:$I$1344,$J43,Calculations!AJ$15:AJ$1344) -> 0 | AH43: =SUMIF(Calculations!$I$15:$I$1344,$J43,Calculations!AK$15:AK$1344) -> 0 | AI43: =SUMIF(Calculations!$I$15:$I$1344,$J43,Calculations!AL$15:AL$1344) -> 0 | AJ43: =SUMIF(Calculations!$I$15:$I$1344,$J43,Calculations!AM$15:AM$1344) -> 0
I44: Miscellaneous costs | J44: =$J$3&I44 -> 1Miscellaneous costs | L44: =SUM(O44:AJ44) -> 0 | O44: =SUMIF(Calculations!$I$15:$I$1344,$J44,Calculations!R$15:R$1344) -> 0 | P44: =SUMIF(Calculations!$I$15:$I$1344,$J44,Calculations!S$15:S$1344) -> 0 | Q44: =SUMIF(Calculations!$I$15:$I$1344,$J44,Calculations!T$15:T$1344) -> 0 | R44: =SUMIF(Calculations!$I$15:$I$1344,$J44,Calculations!U$15:U$1344) -> 0 | S44: =SUMIF(Calculations!$I$15:$I$1344,$J44,Calculations!V$15:V$1344) -> 0 | T44: =SUMIF(Calculations!$I$15:$I$1344,$J44,Calculations!W$15:W$1344) -> 0 | U44: =SUMIF(Calculations!$I$15:$I$1344,$J44,Calculations!X$15:X$1344) -> 0 | V44: =SUMIF(Calculations!$I$15:$I$1344,$J44,Calculations!Y$15:Y$1344) -> 0 | W44: =SUMIF(Calculations!$I$15:$I$1344,$J44,Calculations!Z$15:Z$1344) -> 0 | X44: =SUMIF(Calculations!$I$15:$I$1344,$J44,Calculations!AA$15:AA$1344) -> 0 | Y44: =SUMIF(Calculations!$I$15:$I$1344,$J44,Calculations!AB$15:AB$1344) -> 0 | Z44: =SUMIF(Calculations!$I$15:$I$1344,$J44,Calculations!AC$15:AC$1344) -> 0 | AA44: =SUMIF(Calculations!$I$15:$I$1344,$J44,Calculations!AD$15:AD$1344) -> 0 | AB44: =SUMIF(Calculations!$I$15:$I$1344,$J44,Calculations!AE$15:AE$1344) -> 0 | AC44: =SUMIF(Calculations!$I$15:$I$1344,$J44,Calculations!AF$15:AF$1344) -> 0 | AD44: =SUMIF(Calculations!$I$15:$I$1344,$J44,Calculations!AG$15:AG$1344) -> 0 | AE44: =SUMIF(Calculations!$I$15:$I$1344,$J44,Calculations!AH$15:AH$1344) -> 0 | AF44: =SUMIF(Calculations!$I$15:$I$1344,$J44,Calculations!AI$15:AI$1344) -> 0 | AG44: =SUMIF(Calculations!$I$15:$I$1344,$J44,Calculations!AJ$15:AJ$1344) -> 0 | AH44: =SUMIF(Calculations!$I$15:$I$1344,$J44,Calculations!AK$15:AK$1344) -> 0 | AI44: =SUMIF(Calculations!$I$15:$I$1344,$J44,Calculations!AL$15:AL$1344) -> 0 | AJ44: =SUMIF(Calculations!$I$15:$I$1344,$J44,Calculations!AM$15:AM$1344) -> 0
I45: Depreciation Expense | J45: =$J$3&I45 -> 1Depreciation Expense | L45: =SUM(O45:AJ45) -> 255278.1448 | O45: =SUMIF(Calculations!$I$15:$I$1344,$J45,Calculations!R$15:R$1344) -> 0 | P45: =SUMIF(Calculations!$I$15:$I$1344,$J45,Calculations!S$15:S$1344) -> 0 | Q45: =SUMIF(Calculations!$I$15:$I$1344,$J45,Calculations!T$15:T$1344) -> 0 | R45: =SUMIF(Calculations!$I$15:$I$1344,$J45,Calculations!U$15:U$1344) -> 0 | S45: =SUMIF(Calculations!$I$15:$I$1344,$J45,Calculations!V$15:V$1344) -> 0 | T45: =SUMIF(Calculations!$I$15:$I$1344,$J45,Calculations!W$15:W$1344) -> 0 | U45: =SUMIF(Calculations!$I$15:$I$1344,$J45,Calculations!X$15:X$1344) -> 0 | V45: =SUMIF(Calculations!$I$15:$I$1344,$J45,Calculations!Y$15:Y$1344) -> 0 | W45: =SUMIF(Calculations!$I$15:$I$1344,$J45,Calculations!Z$15:Z$1344) -> 0 | X45: =SUMIF(Calculations!$I$15:$I$1344,$J45,Calculations!AA$15:AA$1344) -> 0 | Y45: =SUMIF(Calculations!$I$15:$I$1344,$J45,Calculations!AB$15:AB$1344) -> 0 | Z45: =SUMIF(Calculations!$I$15:$I$1344,$J45,Calculations!AC$15:AC$1344) -> 0 | AA45: =SUMIF(Calculations!$I$15:$I$1344,$J45,Calculations!AD$15:AD$1344) -> 0 | AB45: =SUMIF(Calculations!$I$15:$I$1344,$J45,Calculations!AE$15:AE$1344) -> 255278.1448 | AC45: =SUMIF(Calculations!$I$15:$I$1344,$J45,Calculations!AF$15:AF$1344) -> 0 | AD45: =SUMIF(Calculations!$I$15:$I$1344,$J45,Calculations!AG$15:AG$1344) -> 0 | AE45: =SUMIF(Calculations!$I$15:$I$1344,$J45,Calculations!AH$15:AH$1344) -> 0 | AF45: =SUMIF(Calculations!$I$15:$I$1344,$J45,Calculations!AI$15:AI$1344) -> 0 | AG45: =SUMIF(Calculations!$I$15:$I$1344,$J45,Calculations!AJ$15:AJ$1344) -> 0 | AH45: =SUMIF(Calculations!$I$15:$I$1344,$J45,Calculations!AK$15:AK$1344) -> 0 | AI45: =SUMIF(Calculations!$I$15:$I$1344,$J45,Calculations!AL$15:AL$1344) -> 0 | AJ45: =SUMIF(Calculations!$I$15:$I$1344,$J45,Calculations!AM$15:AM$1344) -> 0
I46: Inventory Movement | J46: =$J$3&I46 -> 1Inventory Movement | L46: =SUM(O46:AJ46) -> -3.085006028e-09 | O46: =SUMIF(Calculations!$I$15:$I$1344,$J46,Calculations!R$15:R$1344) -> 0 | P46: =SUMIF(Calculations!$I$15:$I$1344,$J46,Calculations!S$15:S$1344) -> 0 | Q46: =SUMIF(Calculations!$I$15:$I$1344,$J46,Calculations!T$15:T$1344) -> -242174.5721 | R46: =SUMIF(Calculations!$I$15:$I$1344,$J46,Calculations!U$15:U$1344) -> -316697.1483 | S46: =SUMIF(Calculations!$I$15:$I$1344,$J46,Calculations!V$15:V$1344) -> -953383.1278 | T46: =SUMIF(Calculations!$I$15:$I$1344,$J46,Calculations!W$15:W$1344) -> -733230.7491 | U46: =SUMIF(Calculations!$I$15:$I$1344,$J46,Calculations!X$15:X$1344) -> -1282302.136 | V46: =SUMIF(Calculations!$I$15:$I$1344,$J46,Calculations!Y$15:Y$1344) -> -315559.4294 | W46: =SUMIF(Calculations!$I$15:$I$1344,$J46,Calculations!Z$15:Z$1344) -> -195308.674 | X46: =SUMIF(Calculations!$I$15:$I$1344,$J46,Calculations!AA$15:AA$1344) -> -64194.81729 | Y46: =SUMIF(Calculations!$I$15:$I$1344,$J46,Calculations!AB$15:AB$1344) -> -31939.43045 | Z46: =SUMIF(Calculations!$I$15:$I$1344,$J46,Calculations!AC$15:AC$1344) -> -117023.5192 | AA46: =SUMIF(Calculations!$I$15:$I$1344,$J46,Calculations!AD$15:AD$1344) -> 49964.84148 | AB46: =SUMIF(Calculations!$I$15:$I$1344,$J46,Calculations!AE$15:AE$1344) -> 519516.2369 | AC46: =SUMIF(Calculations!$I$15:$I$1344,$J46,Calculations!AF$15:AF$1344) -> 1393480.943 | AD46: =SUMIF(Calculations!$I$15:$I$1344,$J46,Calculations!AG$15:AG$1344) -> 1410858.356 | AE46: =SUMIF(Calculations!$I$15:$I$1344,$J46,Calculations!AH$15:AH$1344) -> 292529.3332 | AF46: =SUMIF(Calculations!$I$15:$I$1344,$J46,Calculations!AI$15:AI$1344) -> 292731.9461 | AG46: =SUMIF(Calculations!$I$15:$I$1344,$J46,Calculations!AJ$15:AJ$1344) -> 292731.9461 | AH46: =SUMIF(Calculations!$I$15:$I$1344,$J46,Calculations!AK$15:AK$1344) -> 0 | AI46: =SUMIF(Calculations!$I$15:$I$1344,$J46,Calculations!AL$15:AL$1344) -> 0 | AJ46: =SUMIF(Calculations!$I$15:$I$1344,$J46,Calculations!AM$15:AM$1344) -> 0
I47: Non-Milk Expenses | L47: =SUM(L22:L24,L39,L42:L46) -> 3448508.357 | O47: =SUM(O22:O24,O39,O42:O46) -> 0 | P47: 0 | Q47: -143815.2646 | R47: -177840.8061 | S47: -764217.1155 | T47: -451862.1251 | U47: -947157.7751 | V47: 20141.06285 | W47: 133409.0358 | X47: 251972.6171 | Y47: 239277.7975 | Z47: 183583.7044 | AA47: 330528.2796 | AB47: 1002156.578 | AC47: 1431092.444 | AD47: 1448469.857 | AE47: 297454.9468 | AF47: 297657.5597 | AG47: 297657.5597 | AH47: 0 | AI47: 0 | AJ47: 0
I49: Cost of Milk | J49: =$J$3&I49 -> 1Cost of Milk | L49: =SUM(O49:AJ49) -> 12190090.33 | O49: =SUMIF(Calculations!$I$15:$I$1344,$J49,Calculations!R$15:R$1344) -> 0 | P49: =SUMIF(Calculations!$I$15:$I$1344,$J49,Calculations!S$15:S$1344) -> 0 | Q49: =SUMIF(Calculations!$I$15:$I$1344,$J49,Calculations!T$15:T$1344) -> 122618.4903 | R49: =SUMIF(Calculations!$I$15:$I$1344,$J49,Calculations!U$15:U$1344) -> 156468.4996 | S49: =SUMIF(Calculations!$I$15:$I$1344,$J49,Calculations!V$15:V$1344) -> 755593.0572 | T49: =SUMIF(Calculations!$I$15:$I$1344,$J49,Calculations!W$15:W$1344) -> 1367137.065 | U49: =SUMIF(Calculations!$I$15:$I$1344,$J49,Calculations!X$15:X$1344) -> 1649074.498 | V49: =SUMIF(Calculations!$I$15:$I$1344,$J49,Calculations!Y$15:Y$1344) -> 1547144.723 | W49: =SUMIF(Calculations!$I$15:$I$1344,$J49,Calculations!Z$15:Z$1344) -> 1430401.595 | X49: =SUMIF(Calculations!$I$15:$I$1344,$J49,Calculations!AA$15:AA$1344) -> 1327080.851 | Y49: =SUMIF(Calculations!$I$15:$I$1344,$J49,Calculations!AB$15:AB$1344) -> 1074958.901 | Z49: =SUMIF(Calculations!$I$15:$I$1344,$J49,Calculations!AC$15:AC$1344) -> 1136581.287 | AA49: =SUMIF(Calculations!$I$15:$I$1344,$J49,Calculations!AD$15:AD$1344) -> 996423.6303 | AB49: =SUMIF(Calculations!$I$15:$I$1344,$J49,Calculations!AE$15:AE$1344) -> 626607.7281 | AC49: =SUMIF(Calculations!$I$15:$I$1344,$J49,Calculations!AF$15:AF$1344) -> 0 | AD49: =SUMIF(Calculations!$I$15:$I$1344,$J49,Calculations!AG$15:AG$1344) -> 0 | AE49: =SUMIF(Calculations!$I$15:$I$1344,$J49,Calculations!AH$15:AH$1344) -> 0 | AF49: =SUMIF(Calculations!$I$15:$I$1344,$J49,Calculations!AI$15:AI$1344) -> 0 | AG49: =SUMIF(Calculations!$I$15:$I$1344,$J49,Calculations!AJ$15:AJ$1344) -> 0 | AH49: =SUMIF(Calculations!$I$15:$I$1344,$J49,Calculations!AK$15:AK$1344) -> 0 | AI49: =SUMIF(Calculations!$I$15:$I$1344,$J49,Calculations!AL$15:AL$1344) -> 0 | AJ49: =SUMIF(Calculations!$I$15:$I$1344,$J49,Calculations!AM$15:AM$1344) -> 0
I51: Additional Commodity Milk Payments And Standard Supply Adjustments | L51: ='Data Input'!N281 -> 8115.347988
I53: Aggregate Farmgate Milk Price | L53: =L49-L51 -> 12181974.98
I55: EBIT | J55: =$J$3&I55 -> 1EBIT | L55: =L19-L47-L49 -> 520240.687 | O55: =O19-O47-O49 -> 0 | P55: 0 | Q55: 21196.77432 | R55: 21372.3065 | S55: 8624.058284 | T55: -78159.57238 | U55: 135198.6453 | V55: 264135.598 | W55: 267610.7534 | X55: 252367.9162 | Y55: 71846.62981 | Z55: 65918.33679 | AA55: 59131.41869 | AB55: -281049.6788 | AC55: -83377.8167 | AD55: -100755.2299 | AE55: -34471.40896 | AF55: -34674.02178 | AG55: -34674.02178 | AH55: 0 | AI55: 0 | AJ55: 0
I57: Tax Expense | J57: =$J$3&I57 -> 1Tax Expense | L57: =SUM(O57:AJ57) -> 118505.7978 | O57: =SUMIF(Calculations!$I$15:$I$1344,$J57,Calculations!R$15:R$1344) -> 0 | P57: =SUMIF(Calculations!$I$15:$I$1344,$J57,Calculations!S$15:S$1344) -> 0 | Q57: =SUMIF(Calculations!$I$15:$I$1344,$J57,Calculations!T$15:T$1344) -> 9875.483147 | R57: =SUMIF(Calculations!$I$15:$I$1344,$J57,Calculations!U$15:U$1344) -> 9875.483147 | S57: =SUMIF(Calculations!$I$15:$I$1344,$J57,Calculations!V$15:V$1344) -> 9875.483147 | T57: =SUMIF(Calculations!$I$15:$I$1344,$J57,Calculations!W$15:W$1344) -> 9875.483147 | U57: =SUMIF(Calculations!$I$15:$I$1344,$J57,Calculations!X$15:X$1344) -> 9875.483147 | V57: =SUMIF(Calculations!$I$15:$I$1344,$J57,Calculations!Y$15:Y$1344) -> 9875.483147 | W57: =SUMIF(Calculations!$I$15:$I$1344,$J57,Calculations!Z$15:Z$1344) -> 9875.483147 | X57: =SUMIF(Calculations!$I$15:$I$1344,$J57,Calculations!AA$15:AA$1344) -> 9875.483147 | Y57: =SUMIF(Calculations!$I$15:$I$1344,$J57,Calculations!AB$15:AB$1344) -> 9875.483147 | Z57: =SUMIF(Calculations!$I$15:$I$1344,$J57,Calculations!AC$15:AC$1344) -> 9875.483147 | AA57: =SUMIF(Calculations!$I$15:$I$1344,$J57,Calculations!AD$15:AD$1344) -> 9875.483147 | AB57: =SUMIF(Calculations!$I$15:$I$1344,$J57,Calculations!AE$15:AE$1344) -> 9875.483147 | AC57: =SUMIF(Calculations!$I$15:$I$1344,$J57,Calculations!AF$15:AF$1344) -> 0 | AD57: =SUMIF(Calculations!$I$15:$I$1344,$J57,Calculations!AG$15:AG$1344) -> 0 | AE57: =SUMIF(Calculations!$I$15:$I$1344,$J57,Calculations!AH$15:AH$1344) -> 0 | AF57: =SUMIF(Calculations!$I$15:$I$1344,$J57,Calculations!AI$15:AI$1344) -> 0 | AG57: =SUMIF(Calculations!$I$15:$I$1344,$J57,Calculations!AJ$15:AJ$1344) -> 0 | AH57: =SUMIF(Calculations!$I$15:$I$1344,$J57,Calculations!AK$15:AK$1344) -> 0 | AI57: =SUMIF(Calculations!$I$15:$I$1344,$J57,Calculations!AL$15:AL$1344) -> 0 | AJ57: =SUMIF(Calculations!$I$15:$I$1344,$J57,Calculations!AM$15:AM$1344) -> 0
I59: NOPLAT | L59: =L55-L57 -> 401734.8893 | O59: =O55-O57 -> 0 | P59: =P55-P57 -> 0 | Q59: =Q55-Q57 -> 11321.29117 | R59: 11496.82335 | S59: -1251.424863 | T59: -88035.05553 | U59: 125323.1621 | V59: 254260.1149 | W59: 257735.2702 | X59: 242492.4331 | Y59: 61971.14667 | Z59: 56042.85365 | AA59: 49255.93554 | AB59: -290925.1619 | AC59: -83377.8167 | AD59: -100755.2299 | AE59: -34471.40896 | AF59: -34674.02178 | AG59: -34674.02178 | AH59: 0 | AI59: 0 | AJ59: 0
I61: Capital Charge | J61: =$J$3&I61 -> 1Capital Charge | L61: =L71 -> 401734.8893 | O61: =O71 -> 0 | P61: =P71 -> 0 | Q61: =Q71 -> 0 | R61: 139.6275402 | S61: 986.0038216 | T61: 2115.212026 | U61: 4919.548937 | V61: 7234.392619 | W61: 10254.24627 | X61: 9265.607849 | Y61: 9334.330877 | Z61: 9235.010323 | AA61: 9866.191688 | AB61: 336965.0597 | AC61: 8396.779214 | AD61: 6891.16136 | AE61: 3173.990111 | AF61: 801.5824111 | AG61: 1935.194162 | AH61: 847.8177509 | AI61: -1.37521538e-08 | AJ61: -1.654667303e-08
G63: 1
I65: Capital Charge Rate | J65: =$J$3&I65 -> 1Capital Charge Rate | O65: =Global!$O$39 -> 0.004074123784 | P65: =Global!$O$39 -> 0.004074123784 | Q65: =Global!$O$39 -> 0.004074123784 | R65: =Q65 -> 0.004074123784 | S65: 0.004074123784 | T65: 0.004074123784 | U65: 0.004074123784 | V65: 0.004074123784 | W65: 0.004074123784 | X65: 0.004074123784 | Y65: 0.004074123784 | Z65: 0.004074123784 | AA65: 0.004074123784 | AB65: 0.004074123784 | AC65: 0.004074123784 | AD65: 0.004074123784 | AE65: 0.004074123784 | AF65: 0.004074123784 | AG65: 0.004074123784 | AH65: 0.004074123784 | AI65: 0.004074123784 | AJ65: 0.004074123784
I66: Capital Charge on Fixed Assets | L66: =Calculations!N1214 -> 327405.6241 | O66: =Calculations!R1214 -> 0 | P66: =Calculations!S1214 -> 0 | Q66: =Calculations!T1214 -> 0 | R66: =Calculations!U1214 -> 0 | S66: =Calculations!V1214 -> 0 | T66: =Calculations!W1214 -> 0 | U66: =Calculations!X1214 -> 0 | V66: =Calculations!Y1214 -> 0 | W66: =Calculations!Z1214 -> 0 | X66: =Calculations!AA1214 -> 0 | Y66: =Calculations!AB1214 -> 0 | Z66: =Calculations!AC1214 -> 0 | AA66: =Calculations!AD1214 -> 0 | AB66: =Calculations!AE1214 -> 327405.6241 | AC66: =Calculations!AF1214 -> 0 | AD66: =Calculations!AG1214 -> 0
I68: 12 Month Average | L68: =SUM(O68:AJ68)/12 -> 1789712.75 | O68: =Calculations!R1226 -> 0 | P68: =Calculations!S1226 -> 0 | Q68: =Calculations!T1226 -> 0 | R68: =Calculations!U1226 -> 34271.79626 | S68: =Calculations!V1226 -> 242016.1669 | T68: =Calculations!W1226 -> 501075.4785 | U68: =Calculations!X1226 -> 1041806.577 | V68: =Calculations!Y1226 -> 1557512.432 | W68: =Calculations!Z1226 -> 2300427.854 | X68: =Calculations!AA1226 -> 2092334.923 | Y68: =Calculations!AB1226 -> 2159192.81 | Z68: =Calculations!AC1226 -> 2109542.534 | AA68: =Calculations!AD1226 -> 2242714.406 | AB68: =Calculations!AE1226 -> 2157752.271 | AC68: =Calculations!AF1226 -> 1901715.993 | AD68: =Calculations!AG1226 -> 1569318.361 | AE68: =Calculations!AH1226 -> 716253.7346 | AF68: =Calculations!AI1226 -> 167640.2718 | AG68: =Calculations!AJ1226 -> 474879.215 | AH68: =Calculations!AK1226 -> 208098.1816 | AI68: =Calculations!AL1226 -> -2.803189753e-06 | AJ68: =Calculations!AM1226 -> -3.375487475e-06
I69: Capital Charge on Net Working Capital | L69: =SUM(O69:AJ69) -> 94956.13255 | O69: =Calculations!R1230 -> 0 | P69: =Calculations!S1230 -> 0 | Q69: =Calculations!T1230 -> 0 | R69: =Calculations!U1230 -> 139.6275402 | S69: =Calculations!V1230 -> 986.0038216 | T69: =Calculations!W1230 -> 2115.212026 | U69: =Calculations!X1230 -> 4919.548937 | V69: =Calculations!Y1230 -> 7234.392619 | W69: =Calculations!Z1230 -> 10254.24627 | X69: =Calculations!AA1230 -> 9265.607849 | Y69: =Calculations!AB1230 -> 9334.330877 | Z69: =Calculations!AC1230 -> 9235.010323 | AA69: =Calculations!AD1230 -> 9866.191688 | AB69: =Calculations!AE1230 -> 9559.435593 | AC69: =Calculations!AF1230 -> 8396.779214 | AD69: =Calculations!AG1230 -> 6891.16136 | AE69: =Calculations!AH1230 -> 3173.990111 | AF69: =Calculations!AI1230 -> 801.5824111 | AG69: =Calculations!AJ1230 -> 1935.194162 | AH69: =Calculations!AK1230 -> 847.8177509 | AI69: =Calculations!AL1230 -> -1.142054204e-08 | AJ69: =Calculations!AM1230 -> -1.37521538e-08
I70: Time Value of Money Adjustment | L70: =L59-L66-L69 -> -20626.8674
I71: Total Capital Charge | L71: =L69+L66+L70 -> 401734.8893 | O71: =O69+O66 -> 0 | P71: 0 | Q71: 0 | R71: 139.6275402 | S71: 986.0038216 | T71: 2115.212026 | U71: 4919.548937 | V71: 7234.392619 | W71: 10254.24627 | X71: 9265.607849 | Y71: 9334.330877 | Z71: 9235.010323 | AA71: 9866.191688 | AB71: 336965.0597 | AC71: 8396.779214 | AD71: 6891.16136 | AE71: 3173.990111 | AF71: 801.5824111 | AG71: 1935.194162 | AH71: 847.8177509 | AI71: -1.142054204e-08 | AJ71: -1.37521538e-08
I73: Per KGMS
I74: Revenue
I75: Sales | J75: =$J$3&I75 -> 1Sales | L75: =L17/L$11 -> 10.8990929
I76: Downgrade expense (excl rework) | J76: =$J$3&I76 -> 1Downgrade expense (excl rework) | L76: =L18/L$11 -> 0
I77: Net Sales | L77: =SUM(L75:L76) -> 10.8990929
I79: Non-Milk Costs
I80: Commission | J80: =$J$3&I80 -> 1Commission | L80: =L22/L$11 -> 0.09733762827
I81: Collection Costs | J81: =$J$3&I81 -> 1Collection Costs | L81: =L23/L$11 -> 0.2797238807
I82: Lactose | L82: =L24/L$11 -> 0.5929561305
I83: Operating Costs
I84: Packaging | J84: =$J$3&I84 -> 1Packaging | L84: =L26/L$11 -> 0.4498131005
I85: Energy - Variable | J85: 1Energy - Variable | L85: 0
I86: Water | J86: 1Water | L86: 0
I87: Cleaning & CIP | J87: 1Cleaning & CIP | L87: 0
I88: Consumables | J88: 1Consumables | L88: 0
I89: Effluent | J89: 1Effluent | L89: 0
I90: Laboratory | J90: 1Laboratory | L90: 0
I91: Variable operating costs | L91: 0.4498131005
I92: Wages & ERE | J92: =$J$3&I92 -> 1Wages & ERE | L92: 0
I93: Repairs & Maintenance | J93: =$J$3&I93 -> 1Repairs & Maintenance | L93: 0
I94: Energy - Fixed | J94: =$J$3&I94 -> 1Energy - Fixed | L94: 0
I95: Site Overheads | J95: =$J$3&I95 -> 1Site Overheads | L95: 0.2892944994
I96: Fixed operating costs | L96: 0.2892944994
I97: Operating Costs | J97: =$J$3&I97 -> 1Operating Costs | L97: 0.7391075998
I98: Variable supply chain costs | J98: 1Variable supply chain costs | L98: 0.1936696687
I99: Fixed supply chain costs | J99: 1Fixed supply chain costs | L99: 0
I100: Supply Chain | J100: 1Supply Chain | L100: 0.1936696687
I101: Administration | J101: 1Administration | L101: 0.2510301255
I102: Miscellaneous costs | J102: 1Miscellaneous costs | L102: 0
I103: Depreciation Expense | J103: 1Depreciation Expense | L103: 0.1721844096
I104: Capital Charge | J104: 1Capital Charge | L104: =L117 -> 0.2709690826
I105: Tax Expense | J105: 1Tax Expense | L105: =L57/L$11 -> 0.07993183606
I106: Total Expenses | L106: =SUM(L80:L82,L97,L100:L105) -> 2.676910362
I108: Additional Commodity Milk Payments And Standard Supply Adjustments | L108: =L51/L$11 -> 0.005473779993
I110: Farmgate Milk Price | L110: =Calculations!$N$1275-L108 -> 8.216708761
L111: =L110-(L77-L106-L108) -> -1.154631946e-13
I113: Capital Base
I114: Capital Charge on Fixed Assets | L114: =L66/L$11 -> 0.2208341969
I115: Capital Charge on Net Working Capital | L115: =L69/L$11 -> 0.06404765136
I116: Time Value of Money Adjustment | L116: =L70/L$11 -> -0.01391276558
I117: Total Capital Charge | L117: =L115+L114+L116 -> 0.2709690826
I119: Cash Flows
I121: Cash From Sales | L121: =SUM(O121:AJ121) -> 16158839.37 | O121: =Calculations!R929 -> 0 | P121: =Calculations!S929 -> 0 | Q121: =Calculations!T929 -> 0 | R121: =Calculations!U929 -> 0 | S121: =Calculations!V929 -> 0 | T121: =Calculations!W929 -> 140549.7441 | U121: =Calculations!X929 -> 859585.2266 | V121: =Calculations!Y929 -> 981545.5711 | W121: =Calculations!Z929 -> 1880581.757 | X121: =Calculations!AA929 -> 1831421.384 | Y121: =Calculations!AB929 -> 1625168.22 | Z121: =Calculations!AC929 -> 1505669.746 | AA121: =Calculations!AD929 -> 1348878.665 | AB121: =Calculations!AE929 -> 1415937.284 | AC121: =Calculations!AF929 -> 1311543.898 | AD121: =Calculations!AG929 -> 1383885.358 | AE121: =Calculations!AH929 -> 1136352.77 | AF121: =Calculations!AI929 -> 255925.1156 | AG121: =Calculations!AJ929 -> 270041.9602 | AH121: =Calculations!AK929 -> 211752.6691 | AI121: =Calculations!AL929 -> 0 | AJ121: =Calculations!AM929 -> 0
I123: Trade Creditors | L123: =SUM(O123:AJ123) -> -3200688.209 | O123: =Calculations!R1282 -> 0 | P123: =Calculations!S1282 -> 0 | Q123: =Calculations!T1282 -> -22950.50509 | R123: =Calculations!U1282 -> -111242.6972 | S123: =Calculations!V1282 -> -151839.4828 | T123: =Calculations!W1282 -> -206075.4243 | U123: =Calculations!X1282 -> -302879.9123 | V123: =Calculations!Y1282 -> -327874.5025 | W123: =Calculations!Z1282 -> -343082.7725 | X123: =Calculations!AA1282 -> -326220.1054 | Y123: =Calculations!AB1282 -> -283544.9984 | Z123: =Calculations!AC1282 -> -301002.1108 | AA123: =Calculations!AD1282 -> -289225.0637 | AB123: =Calculations!AE1282 -> -274541.2369 | AC123: =Calculations!AF1282 -> -178113.0511 | AD123: =Calculations!AG1282 -> -39039.24209 | AE123: =Calculations!AH1282 -> -29432.31708 | AF123: =Calculations!AI1282 -> -4922.392543 | AG123: =Calculations!AJ1282 -> -5047.907309 | AH123: =Calculations!AK1282 -> -3654.48751 | AI123: =Calculations!AL1282 -> 0 | AJ123: =Calculations!AM1282 -> 0
I124: Suppliers | L124: =SUM(O124:AJ124) -> -12190090.33 | O124: =Calculations!R1283 -> 0 | P124: =Calculations!S1283 -> 0 | Q124: =Calculations!T1283 -> 0 | R124: =Calculations!U1283 -> -85004.85012 | S124: =Calculations!V1283 -> -108471.2536 | T124: =Calculations!W1283 -> -523812.3095 | U124: =Calculations!X1283 -> -947763.107 | V124: =Calculations!Y1283 -> -1143215.27 | W124: =Calculations!Z1283 -> -1072552.802 | X124: =Calculations!AA1283 -> -1290805.977 | Y124: =Calculations!AB1283 -> -1230539.311 | Z124: =Calculations!AC1283 -> -1282437.126 | AA124: =Calculations!AD1283 -> -926164.6269 | AB124: =Calculations!AE1283 -> -882273.34 | AC124: =Calculations!AF1283 -> -885059.9837 | AD124: =Calculations!AG1283 -> -593034.2832 | AE124: =Calculations!AH1283 -> -593034.2832 | AF124: =Calculations!AI1283 -> -593034.2832 | AG124: =Calculations!AJ1283 -> -32887.51868 | AH124: =Calculations!AK1283 -> 0 | AI124: =Calculations!AL1283 -> 0 | AJ124: =Calculations!AM1283 -> 0
I125: Tax | L125: =SUM(O125:AJ125) -> -118505.7978 | O125: =Calculations!R1284 -> 0 | P125: =Calculations!S1284 -> 0 | Q125: =Calculations!T1284 -> 0 | R125: =Calculations!U1284 -> 0 | S125: =Calculations!V1284 -> 0 | T125: =Calculations!W1284 -> -39501.93259 | U125: =Calculations!X1284 -> 0 | V125: =Calculations!Y1284 -> 0 | W125: =Calculations!Z1284 -> 0 | X125: =Calculations!AA1284 -> -39501.93259 | Y125: =Calculations!AB1284 -> 0 | Z125: =Calculations!AC1284 -> 0 | AA125: =Calculations!AD1284 -> 0 | AB125: =Calculations!AE1284 -> -39501.93259 | AC125: =Calculations!AF1284 -> 0 | AD125: =Calculations!AG1284 -> 0 | AE125: =Calculations!AH1284 -> 0 | AF125: =Calculations!AI1284 -> 0 | AG125: =Calculations!AJ1284 -> 0 | AH125: =Calculations!AK1284 -> 0 | AI125: =Calculations!AL1284 -> 0 | AJ125: =Calculations!AM1284 -> 0
I127: Operating Cash Flow | L127: =SUM(O127:AJ127) -> 649555.0369 | O127: =SUM(O121,O123:O125) -> 0 | P127: =SUM(P121,P123:P125) -> 0 | Q127: =SUM(Q121,Q123:Q125) -> -22950.50509 | R127: -196247.5473 | S127: -260310.7365 | T127: -628839.9223 | U127: -391057.7928 | V127: -489544.2017 | W127: 464946.183 | X127: 174893.3693 | Y127: 111083.9109 | Z127: -77769.49105 | AA127: 133488.9748 | AB127: 219620.7747 | AC127: 248370.8628 | AD127: 751811.8323 | AE127: 513886.1701 | AF127: -342031.5602 | AG127: 232106.5342 | AH127: 208098.1816 | AI127: 0 | AJ127: 0
I129: WACC | L129: =Global!O38 -> 0.05 | O129: =O65 -> 0.004074123784 | P129: 0.004074123784 | Q129: 0.004074123784 | R129: 0.004074123784 | S129: 0.004074123784 | T129: 0.004074123784 | U129: 0.004074123784 | V129: 0.004074123784 | W129: 0.004074123784 | X129: 0.004074123784 | Y129: 0.004074123784 | Z129: 0.004074123784 | AA129: 0.004074123784 | AB129: 0.004074123784 | AC129: 0.004074123784 | AD129: 0.004074123784 | AE129: 0.004074123784 | AF129: 0.004074123784 | AG129: 0.004074123784 | AH129: 0.004074123784 | AI129: 0.004074123784 | AJ129: 0.004074123784
I131: Discount Factor | O131: =P131*(1+O129) -> 1.004074124 | P131: =Q131*(1+P129) -> 1 | Q131: =1/(1+Q129) -> 0.9959424074 | R131: =Q131/(1+R129) -> 0.9919012788 | S131: =R131/(1+S129) -> 0.9878765474 | T131: 0.9838681468 | U131: 0.9798760106 | V131: 0.9759000729 | W131: 0.971940268 | X131: 0.9679965303 | Y131: 0.9640687947 | Z131: 0.9601569962 | AA131: 0.9562610703 | AB131: 0.9523809524 | AC131: 0.9485165784 | AD131: 0.9446678845 | AE131: 0.9408348071 | AF131: 0.9370172827 | AG131: 0.9332152482 | AH131: 0.9294286409 | AI131: 0.9256573981 | AJ131: 0.9219014574
I132: Discounted Cash Flows | L132: =SUM(O132:AJ132) -> 554936.9228 | O132: =O131*O127 -> 0 | P132: =P131*P127 -> 0 | Q132: =Q131*Q127 -> -22857.38128 | R132: =R131*R127 -> -194658.1931 | S132: =S131*S127 -> -257154.8716 | T132: -618695.569 | U132: -383188.1499 | V132: -477746.2221 | W132: 451899.9177 | X132: 169296.1747 | Y132: 107092.5321 | Z132: -74670.92093 | AA132: 127650.31 | AB132: 209162.6426 | AC132: 235583.8809 | AD132: 710212.4932 | AE132: 483481.9957 | AF132: -320489.4831 | AG132: 216605.3569 | AH132: 193412.4101 | AI132: 0 | AJ132: 0
I134: Present Value of required return
I135: Capital charge on fixed assets (discounted) | L135: =SUMPRODUCT(Q$131:AD$131,Q66:AD66) -> 311814.8801
I136: Depreciation (discounted) | L136: =SUMPRODUCT(Q$131:AD$131,Q45:AD45) -> 243122.0427
I137: Net | L137: =SUM(L135:L136) -> 554936.9228
I139: Excess / (Deficit) Return | L139: =L132-L137 -> -1.882435754e-07
I140: cents / kgms | L140: =L139/L12 -> -1.271653388e-13
I142: Check consistency of financials / cash flows
I143: NOPLAT | O143: =O59 -> 0 | P143: 0 | Q143: 11321.29117 | R143: 11496.82335 | S143: -1251.424863 | T143: -88035.05553 | U143: 125323.1621 | V143: 254260.1149 | W143: 257735.2702 | X143: 242492.4331 | Y143: 61971.14667 | Z143: 56042.85365 | AA143: 49255.93554 | AB143: -290925.1619 | AC143: -83377.8167 | AD143: -100755.2299 | AE143: -34471.40896 | AF143: -34674.02178 | AG143: -34674.02178 | AH143: 0 | AI143: 0 | AJ143: 0
I144: + depreciation | O144: =O45 -> 0 | P144: 0 | Q144: 0 | R144: 0 | S144: 0 | T144: 0 | U144: 0 | V144: 0 | W144: 0 | X144: 0 | Y144: 0 | Z144: 0 | AA144: 0 | AB144: 255278.1448 | AC144: 0 | AD144: 0 | AE144: 0 | AF144: 0 | AG144: 0 | AH144: 0 | AI144: 0 | AJ144: 0
I145: + change in working capital | O145: =-(Calculations!S1226-Calculations!R1226+Calculations!R1229) -> 0 | P145: =-(Calculations!T1226-Calculations!S1226+Calculations!S1229) -> 0 | Q145: =-(Calculations!U1226-Calculations!T1226+Calculations!T1229) -> -34271.79626 | R145: =-(Calculations!V1226-Calculations!U1226+Calculations!U1229) -> -207744.3706 | S145: =-(Calculations!W1226-Calculations!V1226+Calculations!V1229) -> -259059.3116 | T145: =-(Calculations!X1226-Calculations!W1226+Calculations!W1229) -> -540804.8668 | U145: =-(Calculations!Y1226-Calculations!X1226+Calculations!X1229) -> -516380.9549 | V145: =-(Calculations!Z1226-Calculations!Y1226+Calculations!Y1229) -> -743804.3165 | W145: =-(Calculations!AA1226-Calculations!Z1226+Calculations!Z1229) -> 207210.9128 | X145: =-(Calculations!AB1226-Calculations!AA1226+Calculations!AA1229) -> -67599.06375 | Y145: =-(Calculations!AC1226-Calculations!AB1226+Calculations!AB1229) -> 49112.7642 | Z145: =-(Calculations!AD1226-Calculations!AC1226+Calculations!AC1229) -> -133812.3447 | AA145: =-(Calculations!AE1226-Calculations!AD1226+Calculations!AD1229) -> 84233.0393 | AB145: =-(Calculations!AF1226-Calculations!AE1226+Calculations!AE1229) -> 255267.7918 | AC145: =-(Calculations!AG1226-Calculations!AF1226+Calculations!AF1229) -> 331748.6795 | AD145: =-(Calculations!AH1226-Calculations!AG1226+Calculations!AG1229) -> 852567.0622 | AE145: =-(Calculations!AI1226-Calculations!AH1226+Calculations!AH1229) -> 548357.5791 | AF145: =-(Calculations!AJ1226-Calculations!AI1226+Calculations!AI1229) -> -307357.5384 | AG145: =-(Calculations!AK1226-Calculations!AJ1226+Calculations!AJ1229) -> 266780.556 | AH145: =-(Calculations!AL1226-Calculations!AK1226+Calculations!AK1229) -> 208098.1816 | AI145: =-(Calculations!AM1226-Calculations!AL1226+Calculations!AL1229) -> 5.722977221e-07 | AJ145: =-(Calculations!AN1226-Calculations!AM1226+Calculations!AM1229) -> 6.859190762e-07
I146: Operating Cash Flow | O146: =SUM(O143:O145) -> 0 | P146: 0 | Q146: -22950.50509 | R146: -196247.5473 | S146: -260310.7365 | T146: -628839.9223 | U146: -391057.7928 | V146: -489544.2017 | W146: 464946.183 | X146: 174893.3693 | Y146: 111083.9109 | Z146: -77769.49105 | AA146: 133488.9748 | AB146: 219620.7747 | AC146: 248370.8628 | AD146: 751811.8323 | AE146: 513886.1701 | AF146: -342031.5602 | AG146: 232106.5342 | AH146: 208098.1816 | AI146: 5.722977221e-07 | AJ146: 6.859190762e-07
I147: check | L147: =IF(ROUND(SUM(O147:AJ147),3)=0,"Okay","Error") -> Okay | O147: =O127-O146 -> 0 | P147: 0 | Q147: 2.728484105e-09 | R147: 3.754394129e-09 | S147: 2.473825589e-09 | T147: -1.338776201e-08 | U147: -2.287561074e-08 | V147: -3.346940503e-08 | W147: -4.610046744e-08 | X147: -7.264316082e-08 | Y147: -9.17352736e-08 | Z147: -1.143489499e-07 | AA147: -1.379521564e-07 | AB147: -1.806474756e-07 | AC147: -2.200831659e-07 | AD147: -2.62632966e-07 | AE147: -3.167660907e-07 | AF147: -3.817840479e-07 | AG147: -3.953464329e-07 | AH147: -4.718021955e-07 | AI147: -5.722977221e-07 | AJ147: -6.859190762e-07

Sheet LookupTables (hidden)
E10: Year to date month | I10: Selected
E11: =Global!K32 -> 2022-06-30 | F11: YTD_Months | I11: 18
E12: =EOMONTH(E11,1) -> 2022-07-31 | I12: =CHOOSE(YTD_Months_No,$E$11,$E$12,$E$13,$E$14,$E$15,$E$16,$E$17,$E$18,$E$19,$E$20,$E$21,$E$22,$E$23,$E$24,$E$25,$E$26,$E$27,$E$28) -> 2023-11-30
E13: =EOMONTH(E12,1) -> 2022-08-31
E14: 2022-09-30
E15: 2022-10-31
E16: 2022-11-30
E17: 2022-12-31
E18: 2023-01-31
E19: 2023-02-28
E20: 2023-03-31
E21: 2023-04-30
E22: 2023-05-31
E23: 2023-06-30
E24: 2023-07-31
E25: 2023-08-31
E26: 2023-09-30
E27: 2023-10-31
E28: 2023-11-30

Sheet nav_inputs (hidden)
B5: Full | C5: References | F5: Caption
B6: Caption | C6: Worksheet | D6: Cell | E6: Level A | F6: Level B | G6: Level C
B7: Entities | C7: Global | D7: A1 | E7: Global
B8: =E8&IF(F8="","",IF(G8=""," / "&F8," / "&F8&" / "&G8)) -> Data Input / GLOBAL | C8: Data Input | D8: ="A"&MATCH(F8,'Data Input'!$F$13:$F$719,0)+15 -> A17 | E8: Data Input | F8: ='Data Input'!F14 -> GLOBAL
B9: Data Input / MILK SUPPLY | C9: Data Input | D9: ="A"&MATCH(F9,'Data Input'!$F$13:$F$719,0)+15 -> A27 | E9: Data Input | F9: ='Data Input'!F24 -> MILK SUPPLY
B10: Data Input / PRODUCTION | C10: Data Input | D10: ="A"&MATCH(F10,'Data Input'!$F$13:$F$719,0)+15 -> A39 | E10: Data Input | F10: ='Data Input'!F36 -> PRODUCTION
B11: Data Input / REVENUE / 1. Base Commodity Prices | C11: Data Input | D11: ="A"&MATCH(G11,'Data Input'!$E$13:$E$719,0)+15 -> A86 | E11: Data Input | F11: ='Data Input'!F77 -> REVENUE | G11: ='Data Input'!E83 -> 1. Base Commodity Prices
B12: =E12&IF(F12="","",IF(G12=""," / "&F12," / "&F12&" / "&G12)) -> Data Input / REVENUE / 2. Sales Phasing | C12: Data Input | D12: ="A"&MATCH(G12,'Data Input'!$E$13:$E$719,0)+15 -> A101 | E12: Data Input | F12: =F11 -> REVENUE | G12: ='Data Input'!E98 -> 2. Sales Phasing
B13: =E13&IF(F13="","",IF(G13=""," / "&F13," / "&F13&" / "&G13)) -> Data Input / COLLECTION | C13: Data Input | D13: ="A"&MATCH(F13,'Data Input'!$F$13:$F$719,0)+15 -> A136 | E13: Data Input | F13: ='Data Input'!F133 -> COLLECTION
B14: Data Input / OPEX | C14: Data Input | D14: ="A"&MATCH(F14,'Data Input'!$F$13:$F$719,0)+15 -> A147 | E14: Data Input | F14: ='Data Input'!F144 -> OPEX
B15: Data Input / SUPPLY CHAIN | C15: Data Input | D15: ="A"&MATCH(F15,'Data Input'!$F$13:$F$719,0)+15 -> A194 | E15: Data Input | F15: ='Data Input'!F191 -> SUPPLY CHAIN
B16: Data Input / ADMINISTRATION | C16: Data Input | D16: ="A"&MATCH(F16,'Data Input'!$F$13:$F$719,0)+15 -> A221 | E16: Data Input | F16: ='Data Input'!F218 -> ADMINISTRATION
B17: Data Input / FIXED ASSETS | C17: Data Input | D17: ="A"&MATCH(F17,'Data Input'!$F$13:$F$719,0)+15 -> A234 | E17: Data Input | F17: ='Data Input'!F231 -> FIXED ASSETS
B18: Data Input / INCOME TAX | C18: Data Input | D18: ="A"&MATCH(F18,'Data Input'!$F$13:$F$719,0)+15 -> A245 | E18: Data Input | F18: ='Data Input'!F242 -> INCOME TAX
B19: Data Input / WORKING CAPITAL | C19: Data Input | D19: ="A"&MATCH(F19,'Data Input'!$F$13:$F$719,0)+15 -> A255 | E19: Data Input | F19: ='Data Input'!F252 -> WORKING CAPITAL
B20: Data Input / WORKING CAPITAL | C20: Data Input | D20: ="A"&MATCH(F20,'Data Input'!$F$13:$F$719,0)+14 -> A254 | E20: Data Input | F20: ='Data Input'!F252 -> WORKING CAPITAL
B21: Calculations / PRODUCTION | C21: Calculations | D21: ="A"&MATCH(F21,Calculations!$D$11:$D$1344,0)+13 -> A17 | E21: =C21 -> Calculations | F21: =Calculations!D14 -> PRODUCTION
B22: Calculations / COMPONENT MILK PRICE | C22: Calculations | D22: ="A"&MATCH(F22,Calculations!$D$11:$D$1344,0)+13 -> A237 | E22: Calculations | F22: =Calculations!D234 -> COMPONENT MILK PRICE
B23: Calculations / SALES REVENUE | C23: Calculations | D23: ="A"&MATCH(F23,Calculations!$D$11:$D$1344,0)+13 -> A298 | E23: Calculations | F23: =Calculations!D295 -> SALES REVENUE
B24: Calculations / COST OF MILK | C24: Calculations | D24: ="A"&MATCH(F24,Calculations!$D$11:$D$1344,0)+13 -> A523 | E24: Calculations | F24: =Calculations!D520 -> COST OF MILK
B25: Calculations / COLLECTION COSTS | C25: Calculations | D25: ="A"&MATCH(F25,Calculations!$D$11:$D$1344,0)+13 -> A539 | E25: Calculations | F25: =Calculations!D536 -> COLLECTION COSTS
B26: Calculations / OPEX | C26: Calculations | D26: ="A"&MATCH(F26,Calculations!$D$11:$D$1344,0)+13 -> A560 | E26: Calculations | F26: =Calculations!D557 -> OPEX
B27: Calculations / SUPPLY CHAIN COSTS | C27: Calculations | D27: ="A"&MATCH(F27,Calculations!$D$11:$D$1344,0)+13 -> A761 | E27: Calculations | F27: =Calculations!D758 -> SUPPLY CHAIN COSTS
B28: Calculations / ADMINISTRATION COSTS | C28: Calculations | D28: ="A"&MATCH(F28,Calculations!$D$11:$D$1344,0)+13 -> A850 | E28: Calculations | F28: =Calculations!D847 -> ADMINISTRATION COSTS
B29: Calculations / CURRENT ASSET MOVEMENTS / Receivables | C29: Calculations | D29: ="A"&MATCH(G29,Calculations!$D$11:$D$1344,0)+13 -> A888 | E29: Calculations | F29: =Calculations!D883 -> CURRENT ASSET MOVEMENTS | G29: =Calculations!D885 -> Receivables
B30: Calculations / CURRENT ASSET MOVEMENTS / INVENTORY | C30: Calculations | D30: ="A"&MATCH(G30,Calculations!$D$11:$D$1344,0)+13 -> A936 | E30: Calculations | F30: =F29 -> CURRENT ASSET MOVEMENTS | G30: =Calculations!D933 -> INVENTORY
B31: Calculations / CURRENT LIABILITY MOVEMENTS / TRADE CREDITORS | C31: Calculations | D31: ="A"&MATCH(G31,Calculations!$D$11:$D$1344,0)+13 -> A1102 | E31: Calculations | F31: =Calculations!D1097 -> CURRENT LIABILITY MOVEMENTS | G31: =Calculations!D1099 -> TRADE CREDITORS
B32: Calculations / CURRENT LIABILITY MOVEMENTS / OWING TO SUPPLIERS | C32: Calculations | D32: ="A"&MATCH(G32,Calculations!$D$11:$D$1344,0)+13 -> A1160 | E32: Calculations | F32: =F31 -> CURRENT LIABILITY MOVEMENTS | G32: =Calculations!D1157 -> OWING TO SUPPLIERS
B33: Calculations / FIXED ASSETS | C33: Calculations | D33: ="A"&MATCH(F33,Calculations!$D$11:$D$1344,0)+13 -> A1191 | E33: Calculations | F33: =Calculations!D1188 -> FIXED ASSETS
B34: Calculations / CAPITAL CHARGE | C34: Calculations | D34: ="A"&MATCH(F34,Calculations!$D$11:$D$1344,0)+13 -> A1202 | E34: Calculations | F34: =Calculations!D1199 -> CAPITAL CHARGE
B35: Calculations / MILK PRICE CALCULATION | C35: Calculations | D35: ="A"&MATCH(F35,Calculations!$D$11:$D$1344,0)+13 -> A1235 | E35: Calculations | F35: =Calculations!D1232 -> MILK PRICE CALCULATION
B36: Calculations / TAX EXPENSE | C36: Calculations | D36: ="A"&MATCH(F36,Calculations!$D$11:$D$1344,0)+13 -> A1298 | E36: Calculations | F36: =Calculations!D1295 -> TAX EXPENSE
B37: Calculations / TAX PAYMENTS | C37: Calculations | D37: ="A"&MATCH(F37,Calculations!$D$11:$D$1344,0)+13 -> A1327 | E37: Calculations | F37: =Calculations!D1324 -> TAX PAYMENTS
B38: Summary | C38: Summary | D38: A1 | E38: Summary
B40: =E40&IF(F40="","",IF(G40=""," / "&F40," / "&F40&" / "&G40)) -> 
D67: Worksheet Names
D69: Global
D70: Data Input
D71: GDT
D72: Calculations
D73: Summary
D74: LookupTables
